Workbook

Sheet Opening Values
B2: Calculating Opening Values | D2: RPI | E2: 2006-09-01 | F2: 200.1
E3: 2010-09-01 | F3: 225.3
E4: 2011-09-01 | F4: 237.9
E5: 2012-09-01 | F5: 244.2
E6: 2014-09-01 | F6: 257.6
E7: 2014-12-01 | F7: 257.5
B11: Opening DAV/TRV (2017)
B12: Sep £2014 | D12: 2016
D13: £'000s
B14: DAV | D14: =DAV!I37 -> 409537.772
B15: PA | D15: 192305.9
B16: Q & CC | D16: -9870.164793
B17: TRV UM Adjustments PNGL12 | D17: 6214.575624
B18: TRV UM Adjustments GD14 | D18: -1867.80152
B20: TRV | D20: =SUM(D14:D19) -> 596320.2813
B22: 5-year Allowed Capex Overspend | C22: £'000s
B23: Sep £2014 | C23: GD14 Determined | H23: PNGL12 Actuals | J23: GD14 Actuals
C24: 2012 | D24: 2013 | E24: 2014 | F24: 2015 | G24: 2016 | H24: 2017 | I24: 2018 | J24: 2019 | K24: 2020 | L24: 2021
B25: Inclusions of overspend in DAVt | C25: =0/1000 -> 0 | D25: =0/1000 -> 0 | E25: =299551.037728997/1000/rpi_06*rpi_14 -> 385.6289221 | F25: =480869.248089519/1000/rpi_06*rpi_14 -> 619.0500665 | G25: =270457.265233916/1000/rpi_06*rpi_14 -> 348.1748702 | H25: 0 | I25: 0 | J25: 113.6807187 | K25: 764.1822918 | L25: 1364.139435
B26: remaining average life | C26: 0 | D26: 0 | E26: 24 | F26: 25 | G26: 22 | H26: 0 | I26: 0 | J26: 15 | K26: 24 | L26: 27

Sheet Inputs
A1: Inputs
B3: Sep £2014 | C3: Source | D3: 2011 | E3: =D3+1 -> 2012 | F3: =E3+1 -> 2013 | G3: 2014 | H3: 2015 | I3: 2016 | J3: 2017 | K3: 2018 | L3: 2019 | M3: 2020 | N3: 2021 | O3: 2022 | P3: 2023 | Q3: 2024 | R3: 2025 | S3: 2026 | T3: 2027 | U3: 2028 | V3: 2029 | W3: 2030 | X3: 2031 | Y3: 2032 | Z3: 2033 | AA3: 2034 | AB3: 2035 | AC3: 2036 | AD3: 2037 | AE3: 2038 | AF3: 2039 | AG3: 2040 | AH3: 2041 | AI3: 2042 | AJ3: 2043 | AK3: 2044 | AL3: 2045 | AM3: 2046
E4: PNGL12 Retro Adj Actuals | F4: PNGL12 Retro Adj Actuals | G4: GD14 Retro Adj Actuals (INCL EAST DOWN) | H4: GD14 Retro Adj Forecast (INCL EAST DOWN) | I4: GD14 Retro Adj Forecast (INCL EAST DOWN) | J4: =IF($B$128=$B$129,$B$129,IF($B$128=$B$130,$B$130,IF($B$128=$B$131,$B$131))) -> UR Draft Det - Incl East Down | K4: UR Draft Det - Incl East Down | L4: UR Draft Det - Incl East Down | M4: UR Draft Det - Incl East Down | N4: UR Draft Det - Incl East Down | O4: UR Draft Det - Incl East Down | P4: UR Draft Det - Incl East Down | Q4: UR Draft Det - Incl East Down | R4: UR Draft Det - Incl East Down | S4: UR Draft Det - Incl East Down | T4: UR Draft Det - Incl East Down | U4: UR Draft Det - Incl East Down | V4: UR Draft Det - Incl East Down | W4: UR Draft Det - Incl East Down | X4: UR Draft Det - Incl East Down | Y4: UR Draft Det - Incl East Down | Z4: UR Draft Det - Incl East Down | AA4: UR Draft Det - Incl East Down | AB4: UR Draft Det - Incl East Down | AC4: UR Draft Det - Incl East Down | AD4: UR Draft Det - Incl East Down | AE4: UR Draft Det - Incl East Down | AF4: UR Draft Det - Incl East Down | AG4: UR Draft Det - Incl East Down | AH4: UR Draft Det - Incl East Down | AI4: UR Draft Det - Incl East Down | AJ4: UR Draft Det - Incl East Down | AK4: UR Draft Det - Incl East Down | AL4: UR Draft Det - Incl East Down | AM4: UR Draft Det - Incl East Down
E6: 2012 | F6: =E6+1 -> 2013 | G6: =F6+1 -> 2014 | H6: 2015 | I6: 2016 | J6: 2017 | K6: 2018 | L6: 2019 | M6: 2020 | N6: 2021 | O6: 2022 | P6: 2023 | Q6: 2024 | R6: 2025 | S6: 2026 | T6: 2027 | U6: 2028 | V6: 2029 | W6: 2030 | X6: 2031 | Y6: 2032 | Z6: 2033 | AA6: 2034 | AB6: 2035 | AC6: 2036 | AD6: 2037 | AE6: 2038 | AF6: 2039 | AG6: 2040 | AH6: 2041 | AI6: 2042 | AJ6: 2043 | AK6: 2044 | AL6: 2045 | AM6: 2046
A8: Capex - PNGL - GD17 Submission - Sep £2014 | B8: ** EAST DOWN EXCLUDED **
D9: Category
A10: Bulk transmission & IP/MP | B10: >7 & 7 bar mains | D10: Mains | E10: 15249.66778 | F10: 5882.014714 | G10: 0 | H10: 0 | I10: 0 | J10: 0 | K10: 0 | L10: 0 | M10: 1411722.316 | N10: 0 | O10: 0 | P10: 0 | Q10: 0 | R10: 3054407.335 | S10: 1213897.996 | T10: 0 | U10: 0 | V10: 0 | W10: 0 | X10: 0 | Y10: 0 | Z10: 0 | AA10: 0 | AB10: 0 | AC10: 0 | AD10: 0 | AE10: 0 | AF10: 0 | AG10: 0 | AH10: 0 | AI10: 0 | AJ10: 0 | AK10: 0 | AL10: 0 | AM10: 0
A11: Bulk transmission & IP/MP | B11: 4 bar mains | D11: Mains | E11: 324926.8498 | F11: 392759.8654 | G11: 0 | H11: 0 | I11: 0
A12: Bulk transmission & IP/MP | B12: presure reduction | D12: Mains | E12: 0 | F12: 0 | G12: 156833.6104 | H12: 155223.3998 | I12: 0 | J12: 0 | K12: 101342.6699 | L12: 223928.6782 | M12: 114898.0516 | N12: 95734.5289 | O12: 195715.9543 | P12: 0 | Q12: 0 | R12: 0 | S12: 0 | T12: 0 | U12: 0 | V12: 0 | W12: 0 | X12: 0 | Y12: 0 | Z12: 0 | AA12: 0 | AB12: 0 | AC12: 0 | AD12: 0 | AE12: 0 | AF12: 0 | AG12: 0 | AH12: 0 | AI12: 0 | AJ12: 0 | AK12: 0 | AL12: 0 | AM12: 0
A13: LP | B13: feeder mains | D13: Mains | E13: 86593.4742 | F13: 77946.75347 | G13: 0 | H13: 0 | I13: 0
A14: LP | B14: infill mains | D14: Mains | E14: 1594618.896 | F14: 1790746.436 | G14: 2677085.587 | H14: 2686660.117 | I14: 2392344.355 | J14: 2864139.101 | K14: 2884395.622 | L14: 2845027.688 | M14: 2649384.141 | N14: 2869730.302 | O14: 2147242.887 | P14: 2157389.985 | Q14: 2145698.5 | R14: 1764239.705 | S14: 1912235.612 | T14: 2142783.238 | U14: 2140671.252 | V14: 2138626.521 | W14: 2136646.204 | X14: 2138361.335 | Y14: 2136415.68 | Z14: 2134533.446 | AA14: 2132712.144 | AB14: 2130950.863 | AC14: 2045527.213 | AD14: 2044300.793 | AE14: 2043140.757 | AF14: 2042079.047 | AG14: 2041057.473 | AH14: 2043657.536 | AI14: 2042630.018 | AJ14: 2041645.372 | AK14: 2041645.372 | AL14: 2041645.372 | AM14: 2041645.372
A15: domestic | B15: services | D15: Services | E15: 5214018.097 | F15: 5927058.985 | G15: 6861021.573 | H15: 5975399.572 | I15: 5426732.185 | J15: 4769236.988 | K15: 4770723.728 | L15: 4842437.123 | M15: 4837241.857 | N15: 4838480.947 | O15: 4615369.629 | P15: 4241043.018 | Q15: 4139915.288 | R15: 4140455.451 | S15: 4178613.004 | T15: 4206655.833 | U15: 4286839.388 | V15: 4267477.953 | W15: 4286529.017 | X15: 4268583.694 | Y15: 4239550.601 | Z15: 4207731.612 | AA15: 4217073.559 | AB15: 4249056.243 | AC15: 1935340.659 | AD15: 1965008.12 | AE15: 1963889.955 | AF15: 1957637.44 | AG15: 1956638.15 | AH15: 1959256.832 | AI15: 1958275.942 | AJ15: 1986561.813 | AK15: 1986561.813 | AL15: 1986561.813 | AM15: 1986561.813
A16: domestic | B16: meters | D16: Meters | E16: 2137406.991 | F16: 2345905.626 | G16: 2392522.926 | H16: 2158166.897 | I16: 2022785.969 | J16: 3523593.921 | K16: 3496448.82 | L16: 3512434.027 | M16: 3520726.962 | N16: 3521246.594 | O16: 5655946.124 | P16: 5499566.22 | Q16: 5166372.911 | R16: 5138616.928 | S16: 4453578.869 | T16: 4612242.724 | U16: 3873750.04 | V16: 3955727.388 | W16: 3941206.565 | X16: 4403003.428 | Y16: 4614619.044 | Z16: 5011786.844 | AA16: 4768690.169 | AB16: 4526651.695 | AC16: 3664995.455 | AD16: 3285619.316 | AE16: 3284325.982 | AF16: 3336378.733 | AG16: 3335627.731 | AH16: 3340819.981 | AI16: 3339801.803 | AJ16: 3135993.115 | AK16: 3135993.115 | AL16: 3135993.115 | AM16: 3135993.115
A17: Industrial/ commercial | B17: services | D17: Services | E17: 416258.1818 | F17: 341696.8384 | G17: 279987.3574 | H17: 285854.7535 | I17: 283853.7702 | J17: 406279.6454 | K17: 406389.7959 | L17: 403663.4516 | M17: 403213.7869 | N17: 403305.3174 | O17: 384692.9966 | P17: 172744.6155 | Q17: 174246.7964 | R17: 174265.859 | S17: 175859.8665 | T17: 177034.9081 | U17: 180404.2065 | V17: 179584.2909 | W17: 180380.8893 | X17: 179620.6804 | Y17: 178393.9893 | Z17: 177050.1738 | AA17: 177438.3562 | AB17: 178779.1535 | AC17: 191724.9758 | AD17: 194651.5255 | AE17: 194528.3637 | AF17: 193896.7337 | AG17: 193785.5142 | AH17: 194032.658 | AI17: 193923.3585 | AJ17: 196712.1503 | AK17: 196712.1503 | AL17: 196712.1503 | AM17: 196712.1503
A18: Industrial/ commercial | B18: meters | D18: Meters | E18: 221313.4218 | F18: 104958.5883 | G18: 267127.3629 | H18: 269564.6687 | I18: 267677.716 | J18: 1662527.446 | K18: 1662978.191 | L18: 1651821.781 | M18: 1649981.719 | N18: 1650356.268 | O18: 2407794.526 | P18: 1511061.635 | Q18: 1243046.325 | R18: 1223852.769 | S18: 1441337.923 | T18: 903422.1886 | U18: 755150.3411 | V18: 834699.8248 | W18: 631322.0929 | X18: 374324.3269 | Y18: 435133.1547 | Z18: 362314.0727 | AA18: 470262.2115 | AB18: 338835.997 | AC18: 363371.9146 | AD18: 421527.5958 | AE18: 421260.8828 | AF18: 419893.0565 | AG18: 419652.2052 | AH18: 420187.4073 | AI18: 419950.7137 | AJ18: 343214.6816 | AK18: 343214.6816 | AL18: 343214.6816 | AM18: 343214.6816
A19: Other capex | D19: Other | E19: 201032.4324 | F19: 28287.93648 | G19: 100704.7338 | H19: 100100.5054 | I19: 1930143.365 | J19: 818661.2061 | K19: 818661.2061 | L19: 828661.2061 | M19: 238661.2061 | N19: 238661.2061 | O19: 238661.2061 | P19: 238661.2061 | Q19: 238661.2061 | R19: 238661.2061 | S19: 238661.2061 | T19: 238661.2061 | U19: 238661.2061 | V19: 238661.2061 | W19: 238661.2061 | X19: 238661.2061 | Y19: 238661.2061 | Z19: 238661.2061 | AA19: 238661.2061 | AB19: 238661.2061 | AC19: 238661.2061 | AD19: 238661.2061 | AE19: 238661.2061 | AF19: 238661.2061 | AG19: 238661.2061 | AH19: 238661.2061 | AI19: 238661.2061 | AJ19: 238661.2061 | AK19: 238661.2061 | AL19: 238661.2061 | AM19: 238661.2061
A20: Engineering Other (Mgt Fee) | D20: Other | E20: 2882092.356 | F20: 2742733.364 | G20: 0 | H20: 0 | I20: 0
A21: TMA | D21: Other | G21: 0 | H21: 0 | I21: 923616.5188 | J21: 803965.5734 | K21: 806150.9145 | L21: 809112.8263 | M21: 930156.21 | N21: 811151.6566 | O21: 714730.5512 | P21: 657117.7618 | Q21: 645986.0585 | R21: 913336.8349 | S21: 748060.6479 | T21: 652647.3979 | U21: 660791.4847 | V21: 658568.8765 | W21: 660355.611 | X21: 658656.571 | Y21: 655436.027 | Z21: 651931.5232 | AA21: 652722.4059 | AB21: 655878.626 | AC21: 417259.2848 | AD21: 420396.0439 | AE21: 420155.9075 | AF21: 419361.3221 | AG21: 419148.1137 | AH21: 419694.7026 | AI21: 419482.9318 | AJ21: 422491.9335 | AK21: 422491.9335 | AL21: 422491.9335 | AM21: 422491.9335
A23: Capex - PNGL - GD17 East Down Submission - Sep £2014 | B23: ** EAST DOWN ONLY **
D24: Category
A25: Bulk transmission & IP/MP | B25: >7 & 7 bar mains | D25: Mains
A26: Bulk transmission & IP/MP | B26: 4 bar mains | D26: Mains
A27: Bulk transmission & IP/MP | B27: presure reduction | D27: Mains
A28: LP | B28: feeder mains | D28: Mains
A29: LP | B29: infill mains | D29: Mains | I29: 1830743.563 | J29: 3866053.537 | K29: 3866053.537 | L29: 2408724.215 | M29: 2408724.215 | N29: 2408724.215 | O29: 2408724.215 | P29: 37373.95524 | Q29: 37373.95524 | R29: 37373.95524 | S29: 37373.95524 | T29: 37373.95524 | U29: 37373.95524 | V29: 37373.95524 | W29: 37373.95524 | X29: 37373.95524 | Y29: 37373.95524 | Z29: 37373.95524 | AA29: 37373.95524 | AB29: 37373.95524 | AC29: 37373.95524 | AD29: 37373.95524 | AE29: 37373.95524 | AF29: 37373.95524 | AG29: 37373.95524 | AH29: 37373.95524 | AI29: 37373.95524 | AJ29: 37373.95524 | AK29: 37373.95524 | AL29: 37373.95524 | AM29: 37373.95524
A30: domestic | B30: services | D30: Services | I30: 0 | J30: 206597.7303 | K30: 258604.0977 | L30: 295778.57 | M30: 508087.0299 | N30: 518220.7315 | O30: 526892.7404 | P30: 454561.5841 | Q30: 287891.0257 | R30: 355029.1885 | S30: 315018.7401 | T30: 315018.7401 | U30: 315018.7401 | V30: 315018.7401 | W30: 315018.7401 | X30: 315018.7401 | Y30: 315018.7401 | Z30: 315018.7401 | AA30: 315018.7401 | AB30: 315018.7401 | AC30: 315018.7401 | AD30: 271232.3604 | AE30: 271232.3604 | AF30: 271232.3604 | AG30: 271232.3604 | AH30: 271232.3604 | AI30: 271232.3604 | AJ30: 271232.3604 | AK30: 271232.3604 | AL30: 271232.3604 | AM30: 271232.3604
A31: domestic | B31: meters | D31: Meters | I31: 0 | J31: 82461.74957 | K31: 98973.28632 | L31: 112291.1877 | M31: 184329.6738 | N31: 184598.3706 | O31: 189933.0086 | P31: 165080.2333 | Q31: 106734.1237 | R31: 128842.6756 | S31: 116826.5518 | T31: 116826.5518 | U31: 116826.5518 | V31: 116826.5518 | W31: 116826.5518 | X31: 116826.5518 | Y31: 116826.5518 | Z31: 116826.5518 | AA31: 116826.5518 | AB31: 116826.5518 | AC31: 116826.5518 | AD31: 98586.66201 | AE31: 181048.4116 | AF31: 197559.9483 | AG31: 210877.8497 | AH31: 282916.3358 | AI31: 283185.0327 | AJ31: 288519.6706 | AK31: 263666.8953 | AL31: 205320.7857 | AM31: 227429.3376
A32: Industrial/ commercial | B32: services | D32: Services
A33: Industrial/ commercial | B33: meters | D33: Meters
A34: Other capex | D34: Other
A35: Engineering Other (Mgt Fee) | D35: Other
A36: TMA | D36: Other
A38: Capex - PNGL - GD17 OVERALL - Sep £2014 | B38: ** OVERALL TOTAL SUB INCL EAST DOWN **
D39: Category
A40: Bulk transmission & IP/MP | B40: >7 & 7 bar mains | D40: Mains | E40: =SUM(E10,E25) -> 15249.66778 | F40: =SUM(F10,F25) -> 5882.014714 | G40: =SUM(G10,G25) -> 0 | H40: =SUM(H10,H25) -> 0 | I40: =SUM(I10,I25) -> 0 | J40: =SUM(J10,J25) -> 0 | K40: 0 | L40: 0 | M40: 1411722.316 | N40: 0 | O40: 0 | P40: 0 | Q40: 0 | R40: 3054407.335 | S40: 1213897.996 | T40: 0 | U40: 0 | V40: 0 | W40: 0 | X40: 0 | Y40: 0 | Z40: 0 | AA40: 0 | AB40: 0 | AC40: 0 | AD40: 0 | AE40: 0 | AF40: 0 | AG40: 0 | AH40: 0 | AI40: 0 | AJ40: 0 | AK40: 0 | AL40: 0 | AM40: 0
A41: Bulk transmission & IP/MP | B41: 4 bar mains | D41: Mains | E41: =SUM(E11,E26) -> 324926.8498 | F41: 392759.8654 | G41: 0 | H41: 0 | I41: =SUM(I11,I26) -> 0 | J41: =SUM(J11,J26) -> 0 | K41: 0 | L41: 0 | M41: 0 | N41: 0 | O41: 0 | P41: 0 | Q41: 0 | R41: 0 | S41: 0 | T41: 0 | U41: 0 | V41: 0 | W41: 0 | X41: 0 | Y41: 0 | Z41: 0 | AA41: 0 | AB41: 0 | AC41: 0 | AD41: 0 | AE41: 0 | AF41: 0 | AG41: 0 | AH41: 0 | AI41: 0 | AJ41: 0 | AK41: 0 | AL41: 0 | AM41: 0
A42: Bulk transmission & IP/MP | B42: presure reduction | D42: Mains | E42: 0 | F42: 0 | G42: 156833.6104 | H42: 155223.3998 | I42: 0 | J42: =SUM(J12,J27) -> 0 | K42: 101342.6699 | L42: 223928.6782 | M42: 114898.0516 | N42: 95734.5289 | O42: 195715.9543 | P42: 0 | Q42: 0 | R42: 0 | S42: 0 | T42: 0 | U42: 0 | V42: 0 | W42: 0 | X42: 0 | Y42: 0 | Z42: 0 | AA42: 0 | AB42: 0 | AC42: 0 | AD42: 0 | AE42: 0 | AF42: 0 | AG42: 0 | AH42: 0 | AI42: 0 | AJ42: 0 | AK42: 0 | AL42: 0 | AM42: 0
A43: LP | B43: feeder mains | D43: Mains | E43: 86593.4742 | F43: 77946.75347 | G43: 0 | H43: 0 | I43: 0 | J43: =SUM(J13,J28) -> 0 | K43: 0 | L43: 0 | M43: 0 | N43: 0 | O43: 0 | P43: 0 | Q43: 0 | R43: 0 | S43: 0 | T43: 0 | U43: 0 | V43: 0 | W43: 0 | X43: 0 | Y43: 0 | Z43: 0 | AA43: 0 | AB43: 0 | AC43: 0 | AD43: 0 | AE43: 0 | AF43: 0 | AG43: 0 | AH43: 0 | AI43: 0 | AJ43: 0 | AK43: 0 | AL43: 0 | AM43: 0
A44: LP | B44: infill mains | D44: Mains | E44: 1594618.896 | F44: 1790746.436 | G44: 2677085.587 | H44: 2686660.117 | I44: 4223087.919 | J44: =SUM(J14,J29) -> 6730192.638 | K44: 6750449.159 | L44: 5253751.903 | M44: 5058108.356 | N44: 5278454.517 | O44: 4555967.102 | P44: 2194763.94 | Q44: 2183072.456 | R44: 1801613.66 | S44: 1949609.567 | T44: 2180157.193 | U44: 2178045.207 | V44: 2176000.476 | W44: 2174020.159 | X44: 2175735.29 | Y44: 2173789.635 | Z44: 2171907.401 | AA44: 2170086.099 | AB44: 2168324.818 | AC44: 2082901.168 | AD44: 2081674.748 | AE44: 2080514.712 | AF44: 2079453.002 | AG44: 2078431.428 | AH44: 2081031.491 | AI44: 2080003.974 | AJ44: 2079019.327 | AK44: 2079019.327 | AL44: 2079019.327 | AM44: 2079019.327
A45: domestic | B45: services | D45: Services | E45: 5214018.097 | F45: 5927058.985 | G45: 6861021.573 | H45: 5975399.572 | I45: 5426732.185 | J45: =SUM(J15,J30) -> 4975834.718 | K45: 5029327.825 | L45: 5138215.693 | M45: 5345328.887 | N45: 5356701.678 | O45: 5142262.369 | P45: 4695604.602 | Q45: 4427806.314 | R45: 4495484.639 | S45: 4493631.744 | T45: 4521674.573 | U45: 4601858.128 | V45: 4582496.693 | W45: 4601547.757 | X45: 4583602.434 | Y45: 4554569.341 | Z45: 4522750.352 | AA45: 4532092.299 | AB45: 4564074.983 | AC45: 2250359.399 | AD45: 2236240.48 | AE45: 2235122.315 | AF45: 2228869.8 | AG45: 2227870.51 | AH45: 2230489.192 | AI45: 2229508.302 | AJ45: 2257794.174 | AK45: 2257794.174 | AL45: 2257794.174 | AM45: 2257794.174
A46: domestic | B46: meters | D46: Meters | E46: 2137406.991 | F46: 2345905.626 | G46: 2392522.926 | H46: 2158166.897 | I46: 2022785.969 | J46: =SUM(J16,J31) -> 3606055.671 | K46: 3595422.106 | L46: 3624725.215 | M46: 3705056.636 | N46: 3705844.965 | O46: 5845879.133 | P46: 5664646.453 | Q46: 5273107.034 | R46: 5267459.604 | S46: 4570405.421 | T46: 4729069.276 | U46: 3990576.592 | V46: 4072553.94 | W46: 4058033.117 | X46: 4519829.98 | Y46: 4731445.596 | Z46: 5128613.396 | AA46: 4885516.721 | AB46: 4643478.247 | AC46: 3781822.006 | AD46: 3384205.978 | AE46: 3465374.394 | AF46: 3533938.682 | AG46: 3546505.581 | AH46: 3623736.317 | AI46: 3622986.836 | AJ46: 3424512.786 | AK46: 3399660.01 | AL46: 3341313.901 | AM46: 3363422.453
A47: Industrial/ commercial | B47: services | D47: Services | E47: 416258.1818 | F47: 341696.8384 | G47: 279987.3574 | H47: 285854.7535 | I47: 283853.7702 | J47: =SUM(J17,J32) -> 406279.6454 | K47: 406389.7959 | L47: 403663.4516 | M47: 403213.7869 | N47: 403305.3174 | O47: 384692.9966 | P47: 172744.6155 | Q47: 174246.7964 | R47: 174265.859 | S47: 175859.8665 | T47: 177034.9081 | U47: 180404.2065 | V47: 179584.2909 | W47: 180380.8893 | X47: 179620.6804 | Y47: 178393.9893 | Z47: 177050.1738 | AA47: 177438.3562 | AB47: 178779.1535 | AC47: 191724.9758 | AD47: 194651.5255 | AE47: 194528.3637 | AF47: 193896.7337 | AG47: 193785.5142 | AH47: 194032.658 | AI47: 193923.3585 | AJ47: 196712.1503 | AK47: 196712.1503 | AL47: 196712.1503 | AM47: 196712.1503
A48: Industrial/ commercial | B48: meters | D48: Meters | E48: 221313.4218 | F48: 104958.5883 | G48: 267127.3629 | H48: 269564.6687 | I48: 267677.716 | J48: =SUM(J18,J33) -> 1662527.446 | K48: 1662978.191 | L48: 1651821.781 | M48: 1649981.719 | N48: 1650356.268 | O48: 2407794.526 | P48: 1511061.635 | Q48: 1243046.325 | R48: 1223852.769 | S48: 1441337.923 | T48: 903422.1886 | U48: 755150.3411 | V48: 834699.8248 | W48: 631322.0929 | X48: 374324.3269 | Y48: 435133.1547 | Z48: 362314.0727 | AA48: 470262.2115 | AB48: 338835.997 | AC48: 363371.9146 | AD48: 421527.5958 | AE48: 421260.8828 | AF48: 419893.0565 | AG48: 419652.2052 | AH48: 420187.4073 | AI48: 419950.7137 | AJ48: 343214.6816 | AK48: 343214.6816 | AL48: 343214.6816 | AM48: 343214.6816
A49: Other capex | D49: Other | E49: 201032.4324 | F49: 28287.93648 | G49: 100704.7338 | H49: 100100.5054 | I49: 1930143.365 | J49: =SUM(J19,J34) -> 818661.2061 | K49: 818661.2061 | L49: 828661.2061 | M49: 238661.2061 | N49: 238661.2061 | O49: 238661.2061 | P49: 238661.2061 | Q49: 238661.2061 | R49: 238661.2061 | S49: 238661.2061 | T49: 238661.2061 | U49: 238661.2061 | V49: 238661.2061 | W49: 238661.2061 | X49: 238661.2061 | Y49: 238661.2061 | Z49: 238661.2061 | AA49: 238661.2061 | AB49: 238661.2061 | AC49: 238661.2061 | AD49: 238661.2061 | AE49: 238661.2061 | AF49: 238661.2061 | AG49: 238661.2061 | AH49: 238661.2061 | AI49: 238661.2061 | AJ49: 238661.2061 | AK49: 238661.2061 | AL49: 238661.2061 | AM49: 238661.2061
A50: Engineering Other (Mgt Fee) | D50: Other | E50: 2882092.356 | F50: 2742733.364 | G50: 0 | H50: 0 | I50: 0 | J50: =SUM(J20,J35) -> 0 | K50: 0 | L50: 0 | M50: 0 | N50: 0 | O50: 0 | P50: 0 | Q50: 0 | R50: 0 | S50: 0 | T50: 0 | U50: 0 | V50: 0 | W50: 0 | X50: 0 | Y50: 0 | Z50: 0 | AA50: 0 | AB50: 0 | AC50: 0 | AD50: 0 | AE50: 0 | AF50: 0 | AG50: 0 | AH50: 0 | AI50: 0 | AJ50: 0 | AK50: 0 | AL50: 0 | AM50: 0
A51: TMA | D51: Other | E51: 0 | F51: 0 | G51: 0 | H51: 0 | I51: 923616.5188 | J51: =SUM(J21,J36) -> 803965.5734 | K51: 806150.9145 | L51: 809112.8263 | M51: 930156.21 | N51: 811151.6566 | O51: 714730.5512 | P51: 657117.7618 | Q51: 645986.0585 | R51: 913336.8349 | S51: 748060.6479 | T51: 652647.3979 | U51: 660791.4847 | V51: 658568.8765 | W51: 660355.611 | X51: 658656.571 | Y51: 655436.027 | Z51: 651931.5232 | AA51: 652722.4059 | AB51: 655878.626 | AC51: 417259.2848 | AD51: 420396.0439 | AE51: 420155.9075 | AF51: 419361.3221 | AG51: 419148.1137 | AH51: 419694.7026 | AI51: 419482.9318 | AJ51: 422491.9335 | AK51: 422491.9335 | AL51: 422491.9335 | AM51: 422491.9335
A53: Capex - UR Draft Det - Sep £2014
D54: Category | E54: Equates to Actuals Above | G54: Equates to Actual/Forecast Above | J54: Linked to Capex Spreadsheet Capex DD 04.00 Final Issued to AC Post RPE 04-03-16 - Con to Sep £2014 | P54: Linked to Capex Spreadsheet Capex DD 04.00 Final Issued to AC Post RPE 04-03-16 - Con to Sep £2014
A55: Bulk transmission & IP/MP | B55: >7 & 7 bar mains | D55: Mains | E55: =E10 -> 15249.66778 | F55: =F10 -> 5882.014714 | G55: =G10 -> 0 | H55: =H10 -> 0 | I55: =I10 -> 0 | J55: 0 | K55: 0 | L55: 0 | M55: 1083701.103 | N55: 0 | O55: 0 | P55: 0 | Q55: 0 | R55: 2344699.493 | S55: 931842.3197 | T55: 0 | U55: 0 | V55: 0 | W55: 0 | X55: 0 | Y55: 0 | Z55: 0 | AA55: 0 | AB55: 0 | AC55: 0 | AD55: 0 | AE55: 0 | AF55: 0 | AG55: 0 | AH55: 0 | AI55: 0 | AJ55: 0 | AK55: 0 | AL55: 0 | AM55: =AL55 -> 0 | AN55: NOTE: 2046 = 2045 totals
A56: Bulk transmission & IP/MP | B56: 4 bar mains | D56: Mains | E56: =E11 -> 324926.8498 | F56: 392759.8654 | G56: 0 | H56: 0 | I56: 0
A57: Bulk transmission & IP/MP | B57: presure reduction | D57: Mains | E57: 0 | F57: 0 | G57: 156833.6104 | H57: 155223.3998 | I57: 0 | J57: 0 | K57: 98947.74342 | L57: 216882.4973 | M57: 110610.7147 | N57: 91605.78164 | O57: 60996.54158 | P57: 108220.7797 | Q57: 108220.7797 | R57: 108220.7797 | S57: 108220.7797 | T57: 108220.7797 | U57: 108220.7797 | V57: 108220.7797 | W57: 108220.7797 | X57: 108220.7797 | Y57: 108220.7797 | Z57: 108220.7797 | AA57: 108220.7797 | AB57: 108220.7797 | AC57: 108220.7797 | AD57: 108220.7797 | AE57: 101382.0263 | AF57: 224015.6408 | AG57: 114942.6722 | AH57: 95771.70736 | AI57: 195791.9605 | AJ57: 108220.7797 | AK57: 108220.7797 | AL57: 108220.7797 | AM57: =AL57 -> 108220.7797
A58: LP | B58: feeder mains | D58: Mains | E58: 86593.4742 | F58: 77946.75347 | G58: 0 | H58: 0 | I58: 0
A59: LP | B59: infill mains - EAST DOWN INFILL INCLUDED 2017 ONWARD | D59: Mains | E59: 1594618.896 | F59: 1790746.436 | G59: 2677085.587 | H59: 2686660.117 | I59: 4238399.428 | J59: 4768549.951 | K59: 4713181.958 | L59: 3255429.907 | M59: 3228023.203 | N59: 3208532.136 | O59: 3189158.758 | P59: 957594.395 | Q59: 957594.395 | R59: 957594.395 | S59: 957594.395 | T59: 957594.395 | U59: 957594.395 | V59: 957594.395 | W59: 957594.395 | X59: 957594.395 | Y59: 957594.395 | Z59: 957594.395 | AA59: 957594.395 | AB59: 957594.395 | AC59: 957594.395 | AD59: 957594.395 | AE59: 957594.395 | AF59: 957594.395 | AG59: 957594.395 | AH59: 957594.395 | AI59: 957594.395 | AJ59: 957594.395 | AK59: 957594.395 | AL59: 957594.395 | AM59: 957594.395
A60: domestic | B60: services - EAST DOWN DOM SERVICES INCLUDED 2017 ONWARD | D60: Services | E60: 5214018.097 | F60: 5927058.985 | G60: 6861021.573 | H60: 5975399.572 | I60: 5426732.185 | J60: 5649567.978 | K60: 5541292.804 | L60: 5348476.45 | M60: 5256631.507 | N60: 5150198.34 | O60: 4906180.012 | P60: 3924276.613 | Q60: 3574345.027 | R60: 3462366.919 | S60: 3278929.098 | T60: 3138956.464 | U60: 3006350.81 | V60: 2785341.387 | W60: 2564331.964 | X60: 2343322.541 | Y60: 2122313.119 | Z60: 1901303.696 | AA60: 1680294.273 | AB60: 1643459.369 | AC60: 1606624.465 | AD60: 1569789.561 | AE60: 1532954.658 | AF60: 1496119.754 | AG60: 1459284.85 | AH60: 1422449.946 | AI60: 1385615.042 | AJ60: 1348780.139 | AK60: 1311945.235 | AL60: 1275110.331 | AM60: 1275110.331
A61: domestic | B61: meters - EAST DOWN DOM METERS INCLUDED 2017 ONWARD | D61: Meters | E61: 2137406.991 | F61: 2345905.626 | G61: 2392522.926 | H61: 2158166.897 | I61: 2022785.969 | J61: 2391879.521 | K61: 2773482.227 | L61: 2937508.783 | M61: 3443628.817 | N61: 3650418.976 | O61: 4277219 | P61: 3984483.978 | Q61: 3465302.359 | R61: 3519195.981 | S61: 2903796.602 | T61: 3092204.486 | U61: 2423103.277 | V61: 2416774.133 | W61: 2352523.729 | X61: 2614511.942 | Y61: 2722490.978 | Z61: 2962039.497 | AA61: 2539329.38 | AB61: 2577687.83 | AC61: 2606456.667 | AD61: 3112042.303 | AE61: 3670867.357 | AF61: 3935563.263 | AG61: 4668662.758 | AH61: 4987170.654 | AI61: 5338441.347 | AJ61: 4557942.803 | AK61: 4029171.572 | AL61: 4073475.582 | AM61: 4073475.582
A62: Industrial/ commercial | B62: services - EAST DOWN IC SERVICES INCLUDED 2017 ONWARD | D62: Services | E62: 416258.1818 | F62: 341696.8384 | G62: 279987.3574 | H62: 285854.7535 | I62: 283853.7702 | J62: 593629.135 | K62: 581713.7291 | L62: 600496.4308 | M62: 657368.4806 | N62: 599379.6043 | O62: 640875.6882 | P62: 375390.5559 | Q62: 276514.0296 | R62: 284084.6221 | S62: 307025.8115 | T62: 307025.8115 | U62: 307025.8115 | V62: 307025.8115 | W62: 307025.8115 | X62: 307025.8115 | Y62: 307025.8115 | Z62: 307025.8115 | AA62: 307025.8115 | AB62: 307025.8115 | AC62: 307025.8115 | AD62: 213425.7587 | AE62: 213425.7587 | AF62: 213425.7587 | AG62: 213425.7587 | AH62: 213425.7587 | AI62: 213425.7587 | AJ62: 213425.7587 | AK62: 213425.7587 | AL62: 213425.7587 | AM62: 213425.7587
A63: Industrial/ commercial | B63: meters - EAST DOWN IC METERS INCLUDED 2017 ONWARD | D63: Meters | E63: 221313.4218 | F63: 104958.5883 | G63: 267127.3629 | H63: 269564.6687 | I63: 267677.716 | J63: 772318.6189 | K63: 783804.6047 | L63: 792998.5181 | M63: 833699.4394 | N63: 823904.612 | O63: 833352.7972 | P63: 1514787.425 | Q63: 1183859.657 | R63: 1043618.931 | S63: 838496.4236 | T63: 242481.1731 | U63: 668957.2632 | V63: 666292.839 | W63: 547473.4315 | X63: 559286.0461 | Y63: 510017.9173 | Z63: 467988.3079 | AA63: 1620037.031 | AB63: 1800856.45 | AC63: 1440274.005 | AD63: 302106.503 | AE63: 332492.9755 | AF63: 350233.0793 | AG63: 405095.2466 | AH63: 410537.9003 | AI63: 421369.4398 | AJ63: 1661375.091 | AK63: 1330447.324 | AL63: 1190206.597 | AM63: 1190206.597
A64: Other capex | B64: New 5 Yr Category | D64: Other | E64: 201032.4324 | F64: 28287.93648 | G64: 100704.7338 | H64: 100100.5054 | I64: 1930143.365 | J64: 235466.188 | K64: 233021.1728 | L64: 231151.4488 | M64: 229755.7376 | N64: 228368.4537 | O64: 226989.5464 | P64: 238753.6839 | Q64: 238753.6839 | R64: 238753.6839 | S64: 238753.6839 | T64: 238753.6839 | U64: 238753.6839 | V64: 238753.6839 | W64: 238753.6839 | X64: 238753.6839 | Y64: 238753.6839 | Z64: 238753.6839 | AA64: 238753.6839 | AB64: 238753.6839 | AC64: 238753.6839 | AD64: 238753.6839 | AE64: 238753.6839 | AF64: 238753.6839 | AG64: 238753.6839 | AH64: 238753.6839 | AI64: 238753.6839 | AJ64: 238753.6839 | AK64: 238753.6839 | AL64: 238753.6839 | AM64: 238753.6839
A65: Engineering Other (Mgt Fee) | D65: Other | E65: 2882092.356 | F65: 2742733.364 | G65: 0 | H65: 0 | I65: 0
A66: TMA | B66: TMA - EAST DOWN TMA INCLUDED 2017 ONWARD | D66: Other | E66: 0 | F66: 0 | G66: 0 | H66: 0 | I66: 1108222.026 | J66: 1101174.706 | K66: 1083618.849 | L66: 920440.2788 | M66: 1022572.429 | N66: 895811.0081 | O66: 873621.4459 | P66: 525726.1564 | Q66: 480845.3451 | R66: 704874.543 | S66: 547539.1624 | T66: 440357.667 | U66: 427097.1016 | V66: 404996.1594 | W66: 382895.2171 | X66: 360794.2748 | Y66: 338693.3325 | Z66: 316592.3902 | AA66: 294491.4479 | AB66: 290807.9576 | AC66: 287124.4672 | AD66: 274080.9715 | AE66: 270397.4811 | AF66: 266713.9908 | AG66: 263030.5004 | AH66: 259347.01 | AI66: 255663.5196 | AJ66: 251980.0292 | AK66: 248296.5389 | AL66: 244613.0485 | AM66: 244613.0485
A67: PDP REMOVAL OVER BULK MAINS | B67: INFILL REMOVED AS PART OF PDP | D67: Mains | I67: =-'PDP Workings - DD UPDATED'!B33 -> -1749175.824 | J67: =-'PDP Workings - DD UPDATED'!C33 -> -3701513.824 | K67: =-'PDP Workings - DD UPDATED'!D33 -> -1986047.024
A69: Capex - UR Final Det - Sep £2014
D70: Category | E70: Equates to Actuals Above | G70: Equates to Actual/Forecast Above
A71: Bulk transmission & IP/MP | B71: >7 & 7 bar mains | D71: Mains | E71: =E10 -> 15249.66778 | F71: 5882.014714 | G71: 0 | H71: 0 | I71: 0
A72: Bulk transmission & IP/MP | B72: 4 bar mains | D72: Mains | E72: 324926.8498 | F72: 392759.8654 | G72: 0 | H72: 0 | I72: 0
A73: Bulk transmission & IP/MP | B73: presure reduction | D73: Mains | E73: 0 | F73: 0 | G73: 156833.6104 | H73: 155223.3998 | I73: 0
A74: LP | B74: feeder mains | D74: Mains | E74: 86593.4742 | F74: 77946.75347 | G74: 0 | H74: 0 | I74: 0
A75: LP | B75: infill mains | D75: Mains | E75: 1594618.896 | F75: 1790746.436 | G75: 2677085.587 | H75: 2686660.117 | I75: 2392344.355
A76: domestic | B76: services | D76: Services | E76: 5214018.097 | F76: 5927058.985 | G76: 6861021.573 | H76: 5975399.572 | I76: 5426732.185
A77: domestic | B77: meters | D77: Meters | E77: 2137406.991 | F77: 2345905.626 | G77: 2392522.926 | H77: 2158166.897 | I77: 2022785.969
A78: Industrial/ commercial | B78: services | D78: Services | E78: 416258.1818 | F78: 341696.8384 | G78: 279987.3574 | H78: 285854.7535 | I78: 283853.7702
A79: Industrial/ commercial | B79: meters | D79: Meters | E79: 221313.4218 | F79: 104958.5883 | G79: 267127.3629 | H79: 269564.6687 | I79: 267677.716
A80: Other capex | D80: Other | E80: 201032.4324 | F80: 28287.93648 | G80: 100704.7338 | H80: 100100.5054 | I80: 1930143.365
A81: Engineering Other (Mgt Fee) | D81: Other | E81: 2882092.356 | F81: 2742733.364 | G81: 0 | H81: 0 | I81: 0
A82: TMA | D82: Other | E82: 0 | F82: 0 | G82: 0 | H82: 0 | I82: 923616.5188
A83: PDP REMOVAL OVER BULK MAINS | B83: INFILL REMOVED AS PART OF PDP | D83: Mains
A85: Capex
A86: Total Capex - GD17 Submission - Sep £2014 | E86: =SUM(E40:E51) -> 13093510.37 | F86: =SUM(F40:F51) -> 13757976.41 | G86: 12735283.15 | H86: 11630969.91 | I86: 15077897.44 | J86: =SUM(J40:J51) -> 19003516.9 | K86: 19170721.87 | L86: 17933880.75 | M86: 18857127.17 | N86: 17540210.14 | O86: 19485703.84 | P86: 15134600.21 | Q86: 14185926.19 | R86: 17169081.91 | S86: 14831464.37 | T86: 13402666.74 | U86: 12605487.17 | V86: 12742565.31 | W86: 12544320.83 | X86: 12730430.49 | Y86: 12967428.95 | Z86: 13253228.12 | AA86: 13126779.3 | AB86: 12788033.03 | AC86: 9326099.956 | AD86: 8977357.578 | AE86: 9055617.781 | AF86: 9114073.803 | AG86: 9124054.559 | AH86: 9207832.974 | AI86: 9204517.322 | AJ86: 8962406.258 | AK86: 8937553.483 | AL86: 8879207.373 | AM86: =SUM(AM40:AM51) -> 8901315.925
A87: Total Capex - UR Draft Det - Sep £2014 | E87: =SUM(E55:E67) -> 13093510.37 | F87: =SUM(F55:F67) -> 13757976.41 | G87: 12735283.15 | H87: 11630969.91 | I87: =SUM(I55:I67) -> 13528638.64 | J87: =SUM(J55:J67) -> 11811072.28 | K87: 13823016.06 | L87: 14303384.31 | M87: 15865991.43 | N87: 14648218.91 | O87: 15008393.79 | P87: 11629233.59 | Q87: 10285435.28 | R87: 12663409.35 | S87: 10112198.28 | T87: 8525594.459 | U87: 8137103.122 | V87: 7884999.188 | W87: 7458819.012 | X87: 7489509.474 | Y87: 7305110.016 | Z87: 7259518.561 | AA87: 7745746.801 | AB87: 7924406.276 | AC87: 7552074.275 | AD87: 6776013.956 | AE87: 7317868.335 | AF87: 7682419.565 | AG87: 8320789.865 | AH87: 8585051.056 | AI87: 9006655.147 | AJ87: 9338072.679 | AK87: 8437855.287 | AL87: 8301400.175 | AM87: =SUM(AM55:AM67) -> 8301400.175
A88: Total Capex - UR Final Det - Sep £2014 | E88: =SUM(E71:E83) -> 13093510.37 | F88: =SUM(F71:F83) -> 13757976.41 | G88: 12735283.15 | H88: 11630969.91 | I88: =SUM(I71:I83) -> 13247153.88 | J88: =SUM(J71:J83) -> 0 | K88: 0 | L88: 0 | M88: 0 | N88: 0 | O88: 0 | P88: 0 | Q88: 0 | R88: 0 | S88: 0 | T88: 0 | U88: 0 | V88: 0 | W88: 0 | X88: 0 | Y88: 0 | Z88: 0 | AA88: 0 | AB88: 0 | AC88: 0 | AD88: 0 | AE88: 0 | AF88: 0 | AG88: 0 | AH88: 0 | AI88: 0 | AJ88: 0 | AK88: 0 | AL88: 0 | AM88: =SUM(AM71:AM83) -> 0
A90: Opex
A91: Total Capex - GD17 Submission - Sep £2014 | E91: 18549942.27 | F91: 15795746.92 | G91: 14550551.97 | H91: 15898581.83 | I91: 16411036.01 | J91: 16990835.4 | K91: 17413237.14 | L91: 17646480.71 | M91: 17951186.68 | N91: 18316264.8 | O91: 18616976.21 | P91: 18725572.78 | Q91: 18790861.54 | R91: 18904547.07 | S91: 19191582.08 | T91: 19448589.56 | U91: 19419434.03 | V91: 19577567.21 | W91: 19854072.54 | X91: 20116509.11 | Y91: 20269386.74 | Z91: 20442165.07 | AA91: 20584895.84 | AB91: 20686741.21 | AC91: 19652844.32 | AD91: 19683299.88 | AE91: 19701926.59 | AF91: 19785333.59 | AG91: 19825956.47 | AH91: 20090874.94 | AI91: 20268233.17 | AJ91: 20182925.66 | AK91: 20196336.1 | AL91: 20209746.55 | AM91: 20223156.99
A92: Total Capex - UR Draft Det - Sep £2014 | E92: =E91 -> 18549942.27 | F92: =F91 -> 15795746.92 | G92: =G91 -> 14550551.97 | H92: =H91 -> 15898581.83 | I92: =I91 -> 16411036.01 | J92: 13894889.72 | K92: 13786172.83 | L92: 13665909.76 | M92: 13587442.77 | N92: 13515050.36 | O92: 13551326.5 | P92: 13552403.37 | Q92: 13665026.78 | R92: 13775015.2 | S92: 13879281.26 | T92: 13975024.81 | U92: 14065603.09 | V92: 14111244.02 | W92: 14147883.37 | X92: 14175595.99 | Y92: 14194548.44 | Z92: 14204903.14 | AA92: 14211930.15 | AB92: 14290690.46 | AC92: 14368401.08 | AD92: 14444861.37 | AE92: 14520186.79 | AF92: 14594269.28 | AG92: 14667224.04 | AH92: 14738943.23 | AI92: 14809338.97 | AJ92: 14878415.28 | AK92: 14946378.58 | AL92: 15014561.88 | AM92: 15098622.31
A93: Total Capex - UR Final Det - Sep £2014 | E93: =E91 -> 18549942.27 | F93: =F91 -> 15795746.92 | G93: =G91 -> 14550551.97 | H93: =H91 -> 15898581.83 | I93: =I91 -> 16411036.01
A95: Volumes (Therms)
A96: Submission
A97: Domestic | B97: P1 | G97: TO RELINK TO AMcE FILE ONCE REC'd | I97: TO RELINK TO AMcE FILE ONCE REC'd | J97: 80824772.19 | K97: 84247122.93 | L97: 87728447.74 | M97: 91397376.95 | N97: 95063665.47 | O97: 98701544.79 | P97: 102208342.3 | Q97: 105284437.7 | R97: 107824786.6 | S97: 110600663.8 | T97: 113633095.8 | U97: 116657060.1 | V97: 119681024.5 | W97: 122704988.8 | X97: 125728953.1 | Y97: 128752917.5 | Z97: 131776881.8 | AA97: 134800846.1 | AB97: 137824810.5 | AC97: 140450559.3 | AD97: 142241423.2 | AE97: 143634071.6 | AF97: 145026720.1 | AG97: 146419368.5 | AH97: 147812016.9 | AI97: 149204665.3 | AJ97: 150597313.7 | AK97: 152669020.3 | AL97: 154061668.7 | AM97: 155454317.1
A98: Tariff | B98: P2 | J98: 21656580.38 | K98: 21925479.48 | L98: 22202898.7 | M98: 22502431.99 | N98: 22782099.29 | O98: 23078458.71 | P98: 23303938.43 | Q98: 23411909.24 | R98: 23522436.89 | S98: 23652599.82 | T98: 23769255.42 | U98: 23885911.02 | V98: 24002566.62 | W98: 24119222.22 | X98: 24235877.82 | Y98: 24352533.42 | Z98: 24469189.03 | AA98: 24585844.63 | AB98: 24702500.23 | AC98: 24819155.83 | AD98: 24908923.67 | AE98: 24998691.52 | AF98: 25088459.36 | AG98: 25178227.21 | AH98: 25267995.05 | AI98: 25357762.89 | AJ98: 25447530.74 | AK98: 25537298.58 | AL98: 25627066.43 | AM98: 25716834.27
A99: Contract | B99: P3 + P4 | J99: 48365392.28 | K99: 48490392.28 | L99: 48615392.28 | M99: 48740392.28 | N99: 48865392.28 | O99: 48990392.28 | P99: 49115392.28 | Q99: 49240392.28 | R99: 49365392.28 | S99: 49365392.28 | T99: 49365392.28 | U99: 49365392.28 | V99: 49365392.28 | W99: 49365392.28 | X99: 49365392.28 | Y99: 49365392.28 | Z99: 49365392.28 | AA99: 49365392.28 | AB99: 49365392.28 | AC99: 49365392.28 | AD99: 49365392.28 | AE99: 49365392.28 | AF99: 49365392.28 | AG99: 49365392.28 | AH99: 49365392.28 | AI99: 49365392.28 | AJ99: 49365392.28 | AK99: 49365392.28 | AL99: 49365392.28 | AM99: 49365392.28
A100: Total Volume (Therms) - FE GD17 Submission | J100: =SUM(J97:J99) -> 150846744.8 | K100: =SUM(K97:K99) -> 154662994.7 | L100: =SUM(L97:L99) -> 158546738.7 | M100: 162640201.2 | N100: 166711157 | O100: 170770395.8 | P100: 174627673 | Q100: 177936739.2 | R100: 180712615.8 | S100: 183618655.9 | T100: 186767743.5 | U100: 189908363.4 | V100: 193048983.4 | W100: 196189603.3 | X100: 199330223.2 | Y100: 202470843.2 | Z100: 205611463.1 | AA100: 208752083 | AB100: 211892703 | AC100: 214635107.4 | AD100: 216515739.2 | AE100: 217998155.4 | AF100: 219480571.7 | AG100: 220962988 | AH100: 222445404.2 | AI100: 223927820.5 | AJ100: 225410236.8 | AK100: 227571711.1 | AL100: 229054127.4 | AM100: 230536543.7
A101: GD17 Draft Det
A102: Domestic | B102: P1 | J102: 72721410.84 | K102: 75996052.94 | L102: 79142388.54 | M102: 82215054.87 | N102: 85206819.76 | O102: 88071802.82 | P102: 90569587.85 | Q102: 92657102.14 | R102: 94644285.52 | S102: 96439021.65 | T102: 98272671.02 | U102: 100047420.4 | V102: 101740469.8 | W102: 103329019.1 | X102: 104813068.5 | Y102: 106190717.9 | Z102: 107461967.2 | AA102: 108626816.6 | AB102: 109732766 | AC102: 110827315.4 | AD102: 111910464.7 | AE102: 112980314.1 | AF102: 114036863.5 | AG102: 115080112.8 | AH102: 116110062.2 | AI102: 117126711.6 | AJ102: 118128161 | AK102: 119395252.9 | AL102: 120368202.2 | AM102: 121342457.8
A103: Tariff | B103: P2 | J103: 27987562.31 | K103: 28483416.2 | L103: 28999975.33 | M103: 29570275.07 | N103: 30092297.38 | O103: 30613830.98 | P103: 31082794.46 | Q103: 31278378.08 | R103: 30955526.27 | S103: 31703910.39 | T103: 31932664.31 | U103: 32149353.33 | V103: 32366042.35 | W103: 32582731.38 | X103: 32799420.4 | Y103: 33016109.42 | Z103: 33232798.44 | AA103: 33449487.46 | AB103: 33666176.49 | AC103: 33882865.51 | AD103: 34034213.08 | AE103: 34185560.64 | AF103: 34336908.21 | AG103: 34488255.78 | AH103: 34639603.35 | AI103: 34790950.92 | AJ103: 34942298.49 | AK103: 35093646.06 | AL103: 35244993.63 | AM103: 35396341.2
A104: Contract | B104: P3 + P4 | J104: 48365392.28 | K104: 48490392.28 | L104: 48615392.28 | M104: 48740392.28 | N104: 48865392.28 | O104: 48990392.28 | P104: 49115392.28 | Q104: 49240392.28 | R104: 49365392.28 | S104: 49365392.28 | T104: 49365392.28 | U104: 49365392.28 | V104: 49365392.28 | W104: 49365392.28 | X104: 49365392.28 | Y104: 49365392.28 | Z104: 49365392.28 | AA104: 49365392.28 | AB104: 49365392.28 | AC104: 49365392.28 | AD104: 49365392.28 | AE104: 49365392.28 | AF104: 49365392.28 | AG104: 49365392.28 | AH104: 49365392.28 | AI104: 49365392.28 | AJ104: 49365392.28 | AK104: 49365392.28 | AL104: 49365392.28 | AM104: 49365392.28
A105: Total Volume (Therms) - UR Draft Det | J105: =SUM(J102:J104) -> 149074365.4 | K105: 152969861.4 | L105: 156757756.1 | M105: 160525722.2 | N105: 164164509.4 | O105: 167676026.1 | P105: 170767774.6 | Q105: 173175872.5 | R105: 174965204.1 | S105: 177508324.3 | T105: 179570727.6 | U105: 181562166 | V105: 183471904.4 | W105: 185277142.8 | X105: 186977881.2 | Y105: 188572219.6 | Z105: 190060158 | AA105: 191441696.4 | AB105: 192764334.8 | AC105: 194075573.1 | AD105: 195310070.1 | AE105: 196531267 | AF105: 197739164 | AG105: 198933760.9 | AH105: 200115057.8 | AI105: 201283054.8 | AJ105: 202435851.7 | AK105: 203854291.2 | AL105: 204978588.1 | AM105: 206104191.3
A106: GD17 Final Det
A107: Domestic | B107: P1
A108: Tariff | B108: P2
A109: Contract | B109: P3 + P4
A110: Total Volume (Therms) - UR Final Det | J110: =SUM(J107:J109) -> 0 | K110: 0 | L110: 0 | M110: 0 | N110: 0 | O110: 0 | P110: 0 | Q110: 0 | R110: 0 | S110: 0 | T110: 0 | U110: 0 | V110: 0 | W110: 0 | X110: 0 | Y110: 0 | Z110: 0 | AA110: 0 | AB110: 0 | AC110: 0 | AD110: 0 | AE110: 0 | AF110: 0 | AG110: 0 | AH110: 0 | AI110: 0 | AJ110: 0 | AK110: 0 | AL110: 0 | AM110: 0
A112: Q & CC Calcs
E113: Opex | G113: =IF($B$128=$B$129,G91,IF($B$128=$B$130,G92,IF($B$128=$B$131,G93))) -> 14550551.97 | H113: =IF($B$128=$B$129,H91,IF($B$128=$B$130,H92,IF($B$128=$B$131,H93))) -> 15898581.83 | I113: 16411036.01 | J113: =IF($B$128=$B$129,J91,IF($B$128=$B$130,J92,IF($B$128=$B$131,J93))) -> 13894889.72 | K113: 13786172.83 | L113: 13665909.76 | M113: 13587442.77 | N113: 13515050.36 | O113: 13551326.5 | P113: 13552403.37 | Q113: 13665026.78 | R113: 13775015.2 | S113: 13879281.26 | T113: 13975024.81 | U113: 14065603.09 | V113: 14111244.02 | W113: 14147883.37 | X113: 14175595.99 | Y113: 14194548.44 | Z113: 14204903.14 | AA113: 14211930.15 | AB113: 14290690.46 | AC113: 14368401.08 | AD113: 14444861.37 | AE113: 14520186.79 | AF113: 14594269.28 | AG113: 14667224.04 | AH113: 14738943.23 | AI113: 14809338.97 | AJ113: 14878415.28 | AK113: 14946378.58 | AL113: 15014561.88 | AM113: 15098622.31
E114: Capex | G114: 12903134.24 | H114: 12598408.35 | I114: 13087626.1 | J114: =IF($B$128=$B$129,J86,IF($B$128=$B$130,J87,IF($B$128=$B$131,J88))) -> 11811072.28 | K114: =IF($B$128=$B$129,K86,IF($B$128=$B$130,K87,IF($B$128=$B$131,K88))) -> 13823016.06 | L114: 14303384.31 | M114: 15865991.43 | N114: 14648218.91 | O114: 15008393.79 | P114: 11629233.59 | Q114: 10285435.28 | R114: 12663409.35 | S114: 10112198.28 | T114: 8525594.459 | U114: 8137103.122 | V114: 7884999.188 | W114: 7458819.012 | X114: 7489509.474 | Y114: 7305110.016 | Z114: 7259518.561 | AA114: 7745746.801 | AB114: 7924406.276 | AC114: 7552074.275 | AD114: 6776013.956 | AE114: 7317868.335 | AF114: 7682419.565 | AG114: 8320789.865 | AH114: 8585051.056 | AI114: 9006655.147 | AJ114: 9338072.679 | AK114: 8437855.287 | AL114: 8301400.175 | AM114: 8301400.175
E115: GD14/GD17 Allowed Revenue | G115: 47057.76629 | H115: 48820.29821 | I115: 50636.49034 | J115: ='Pi''s Calc'!D26 -> 47930.43597 | K115: ='Pi''s Calc'!E26 -> 49321.74325 | L115: ='Pi''s Calc'!F26 -> 50672.96776 | M115: ='Pi''s Calc'!G26 -> 52014.94466 | N115: ='Pi''s Calc'!H26 -> 53311.47382 | O115: ='Pi''s Calc'!I26 -> 54561.50611 | P115: ='Pi''s Calc'!J26 -> 55660.04321 | Q115: ='Pi''s Calc'!K26 -> 56518.71174 | R115: ='Pi''s Calc'!L26 -> 57170.1818 | S115: ='Pi''s Calc'!M26 -> 58072.28736 | T115: ='Pi''s Calc'!N26 -> 58817.6923 | U115: ='Pi''s Calc'!O26 -> 59537.60199 | V115: ='Pi''s Calc'!P26 -> 60227.65203 | W115: ='Pi''s Calc'!Q26 -> 60879.5095 | X115: ='Pi''s Calc'!R26 -> 61493.1744 | Y115: ='Pi''s Calc'!S26 -> 62067.95232 | Z115: ='Pi''s Calc'!T26 -> 62603.84325 | AA115: ='Pi''s Calc'!U26 -> 63100.84721 | AB115: ='Pi''s Calc'!V26 -> 63576.32444 | AC115: ='Pi''s Calc'!W26 -> 64047.6352 | AD115: ='Pi''s Calc'!X26 -> 64493.28667 | AE115: ='Pi''s Calc'!Y26 -> 64934.07725 | AF115: ='Pi''s Calc'!Z26 -> 65370.00697 | AG115: ='Pi''s Calc'!AA26 -> 65801.07581 | AH115: ='Pi''s Calc'!AB26 -> 66227.28378 | AI115: ='Pi''s Calc'!AC26 -> 66648.63088 | AJ115: ='Pi''s Calc'!AD26 -> 67064.42269 | AK115: ='Pi''s Calc'!AE26 -> 67577.30132 | AL115: ='Pi''s Calc'!AF26 -> 67982.67698 | AM115: ='Pi''s Calc'!AG26 -> 68388.53004
A117: Working Capital (£2014) | G117: -3912000 | H117: =G117-(H113-G113)*12%+(H115-G115)*1000*15% -> -3809383.795 | I117: =H117-(I113-H113)*12%+(I115-H115)*1000*15% -> -3598449.477 | J117: =I117-(J113-I113)*12%+(J115-I115)*1000*15% -> -3702420.077 | K117: =J117-(K113-J113)*12%+(K115-J115)*1000*15% -> -3480677.96 | L117: =K117-(L113-K113)*12%+(L115-K115)*1000*15% -> -3263562.714 | M117: -3052850.14 | N117: -2849683.677 | O117: -2666531.971 | P117: -2501880.63 | Q117: -2386595.159 | R117: -2302073.261 | S117: -2179269.354 | T117: -2078947.839 | U117: -1981830.78 | V117: -1883800.185 | W117: -1790418.286 | X117: -1701694.066 | Y117: -1617751.672 | Z117: -1538610.595 | AA117: -1464903.244 | AB117: -1403032.897 | AC117: -1341661.556 | AD117: -1283989.072 | AE117: -1226909.533 | AF117: -1170409.975 | AG117: -1114504.22 | AH117: -1059179.327 | AI117: -1004424.751 | AJ117: -950345.1368 | AK117: -881568.9383 | AL117: -828944.5852 | AM117: -778153.8784
A119: Capital Creditors (£2014) | G119: -6395000 | H119: =G119-(H114-G114)*1/6 -> -6344212.352 | I119: =H119-(I114-H114)*1/6 -> -6425748.644 | J119: =I119-(J114-I114)*1/6 -> -6212989.673 | K119: =J119-(K114-J114)*1/6 -> -6548313.638 | L119: =K119-(L114-K114)*1/6 -> -6628375.013 | M119: -6888809.532 | N119: -6685847.446 | O119: -6745876.592 | P119: -6182683.225 | Q119: -5958716.84 | R119: -6355045.852 | S119: -5929844.006 | T119: -5665410.037 | U119: -5600661.481 | V119: -5558644.158 | W119: -5487614.129 | X119: -5492729.206 | Y119: -5461995.963 | Z119: -5454397.387 | AA119: -5535435.427 | AB119: -5565212.006 | AC119: -5503156.673 | AD119: -5373813.286 | AE119: -5464122.35 | AF119: -5524880.888 | AG119: -5631275.938 | AH119: -5675319.47 | AI119: -5745586.818 | AJ119: -5800823.074 | AK119: -5650786.841 | AL119: -5628044.323 | AM119: -5628044.323
A127: INPUTS BASIS
A128: SELECT BASIS OF MODELLING INPUTS | B128: UR Draft Det - Incl East Down
B129: PNGL GD17 Submission - Incl East Down
B130: UR Draft Det - Incl East Down
B131: UR Final Det - Incl East Down

Sheet DAV
A1: Condition 2.3.17 Calculation of DAV
C2: Sep £2014
C3: £'000
J5: IMPORTANT NOTE: Total Capex and Breakdown from 2017 Onwards are forecasts and will be determined as part of the Next Price Control.
D6: 2011 | E6: 2012 | F6: 2013 | G6: 2014 | H6: 2015 | I6: 2016 | J6: 2017 | K6: 2018 | L6: 2019 | M6: 2020 | N6: 2021 | O6: 2022 | P6: 2023 | Q6: 2024 | R6: 2025 | S6: 2026 | T6: 2027 | U6: 2028 | V6: 2029 | W6: 2030 | X6: 2031 | Y6: 2032 | Z6: 2033 | AA6: 2034 | AB6: 2035 | AC6: 2036 | AD6: 2037 | AE6: 2038 | AF6: 2039 | AG6: 2040 | AH6: 2041 | AI6: 2042 | AJ6: 2043 | AK6: 2044 | AL6: 2045 | AM6: 2046
A8: Opening DAV (Incl Rolling Capex Incentive) | E8: =D37+'Opening Values'!C25 -> 410309.1525 | F8: =E37+'Opening Values'!D25 -> 410909.1288 | G8: =F37+'Opening Values'!E25 -> 412113.1314 | H8: =G37+'Opening Values'!F25 -> 412082.5931 | I8: =H37+'Opening Values'!G25 -> 410260.1746 | J8: =I37+'Opening Values'!H25+'PDP Workings - DD UPDATED'!C12/1000+'PDP Workings - DD UPDATED'!C13/1000-IF(DAV!J6='PDP Workings - DD UPDATED'!$H$45,'PDP Workings - DD UPDATED'!C12/1000)+'PDP Workings - DD UPDATED'!C38/1000+'PDP Workings - DD UPDATED'!C39/1000-IF(DAV!J6='PDP Workings - DD UPDATED'!$H$45,'PDP Workings - DD UPDATED'!C38,0) -> 414944.7322 | K8: =J37+'Opening Values'!I25+'PDP Workings - DD UPDATED'!D13/1000-IF(DAV!K6='PDP Workings - DD UPDATED'!$H$45,'PDP Workings - DD UPDATED'!D12/1000)+'PDP Workings - DD UPDATED'!D39/1000-IF(DAV!K6='PDP Workings - DD UPDATED'!$H$45,'PDP Workings - DD UPDATED'!D38/1000) -> 413886.218 | L8: =K37+'Opening Values'!J25+'PDP Workings - DD UPDATED'!E13/1000-IF(DAV!L6='PDP Workings - DD UPDATED'!$H$45,'PDP Workings - DD UPDATED'!E12/1000)+'PDP Workings - DD UPDATED'!E39/1000-IF(DAV!L6='PDP Workings - DD UPDATED'!$H$45,'PDP Workings - DD UPDATED'!E38/1000) -> 412383.0557 | M8: =L37+'Opening Values'!K25+'PDP Workings - DD UPDATED'!F13/1000-IF(DAV!M6='PDP Workings - DD UPDATED'!$H$45,'PDP Workings - DD UPDATED'!F12/1000)+'PDP Workings - DD UPDATED'!F39/1000-IF(DAV!M6='PDP Workings - DD UPDATED'!$H$45,'PDP Workings - DD UPDATED'!F38/1000) -> 404564.8074 | N8: =M37+'Opening Values'!L25+'PDP Workings - DD UPDATED'!G13/1000-IF(DAV!N6='PDP Workings - DD UPDATED'!$H$45,'PDP Workings - DD UPDATED'!G12/1000)+'PDP Workings - DD UPDATED'!G39/1000-IF(DAV!N6='PDP Workings - DD UPDATED'!$H$45,'PDP Workings - DD UPDATED'!G38/1000) -> 405333.0249 | O8: =N37+'PDP Workings - DD UPDATED'!H13/1000-IF(DAV!O6='PDP Workings - DD UPDATED'!$H$45,'PDP Workings - DD UPDATED'!H12/1000)+'PDP Workings - DD UPDATED'!H39/1000-IF(DAV!O6='PDP Workings - DD UPDATED'!$H$45,'PDP Workings - DD UPDATED'!H38/1000) -> 402876.2068 | P8: =O37-IF(DAV!P6='PDP Workings - DD UPDATED'!$H$45,'PDP Workings - DD UPDATED'!I12/1000)-IF(DAV!P6='PDP Workings - DD UPDATED'!$H$45,'PDP Workings - DD UPDATED'!I38/1000) -> 400198.7832 | Q8: =P37 -> 393627.1547 | R8: 385265.3252 | S8: 378778.9366 | T8: 369336.4948 | U8: 358116.2282 | V8: 346344.5666 | W8: 334178.4938 | X8: 321446.7548 | Y8: 308584.8933 | Z8: 295438.2322 | AA8: 282164.6951 | AB8: 269272.6837 | AC8: 256469.9063 | AD8: 243241.6383 | AE8: 229272.3271 | AF8: 215899.5978 | AG8: 202836.6975 | AH8: 190327.6595 | AI8: 177898.8071 | AJ8: 165654.6814 | AK8: 153461.4894 | AL8: 140177.1638 | AM8: =AL37 -> 126528.8299
A10: Capex
A11: Mains | E11: =IF(Inputs!$B$128=Inputs!$B$129,SUM(Inputs!E40:E44)/1000,IF(Inputs!$B$128=Inputs!$B$130,SUM(Inputs!E55:E59,Inputs!E67)/1000,IF(Inputs!$B$128=Inputs!$B$131,SUM(Inputs!E71:E75,Inputs!E83)/1000,0))) -> 2021.388888 | F11: =IF(Inputs!$B$128=Inputs!$B$129,SUM(Inputs!F40:F44)/1000,IF(Inputs!$B$128=Inputs!$B$130,SUM(Inputs!F55:F59,Inputs!F67)/1000,IF(Inputs!$B$128=Inputs!$B$131,SUM(Inputs!F71:F75,Inputs!F83)/1000,0))) -> 2267.335069 | G11: =IF(Inputs!$B$128=Inputs!$B$129,SUM(Inputs!G40:G44)/1000,IF(Inputs!$B$128=Inputs!$B$130,SUM(Inputs!G55:G59,Inputs!G67)/1000,IF(Inputs!$B$128=Inputs!$B$131,SUM(Inputs!G71:G75,Inputs!G83)/1000,0))) -> 2833.919197 | H11: =IF(Inputs!$B$128=Inputs!$B$129,SUM(Inputs!H40:H44)/1000,IF(Inputs!$B$128=Inputs!$B$130,SUM(Inputs!H55:H59,Inputs!H67)/1000,IF(Inputs!$B$128=Inputs!$B$131,SUM(Inputs!H71:H75,Inputs!H83)/1000,0))) -> 2841.883517 | I11: =IF(Inputs!$B$128=Inputs!$B$129,SUM(Inputs!I40:I44)/1000,IF(Inputs!$B$128=Inputs!$B$130,SUM(Inputs!I55:I59,Inputs!I67)/1000,IF(Inputs!$B$128=Inputs!$B$131,SUM(Inputs!I71:I75,Inputs!I83)/1000,0))) -> 2489.223604 | J11: =IF(Inputs!$B$128=Inputs!$B$129,SUM(Inputs!J40:J44)/1000,IF(Inputs!$B$128=Inputs!$B$130,SUM(Inputs!J55:J59,Inputs!J67)/1000,IF(Inputs!$B$128=Inputs!$B$131,SUM(Inputs!J71:J75,Inputs!J83)/1000,0))) -> 1067.036128 | K11: =IF(Inputs!$B$128=Inputs!$B$129,SUM(Inputs!K40:K44)/1000,IF(Inputs!$B$128=Inputs!$B$130,SUM(Inputs!K55:K59,Inputs!K67)/1000,IF(Inputs!$B$128=Inputs!$B$131,SUM(Inputs!K71:K75,Inputs!K83)/1000,0))) -> 2826.082677 | L11: =IF(Inputs!$B$128=Inputs!$B$129,SUM(Inputs!L40:L44)/1000,IF(Inputs!$B$128=Inputs!$B$130,SUM(Inputs!L55:L59,Inputs!L67)/1000,IF(Inputs!$B$128=Inputs!$B$131,SUM(Inputs!L71:L75,Inputs!L83)/1000,0))) -> 3472.312404 | M11: =IF(Inputs!$B$128=Inputs!$B$129,SUM(Inputs!M40:M44)/1000,IF(Inputs!$B$128=Inputs!$B$130,SUM(Inputs!M55:M59,Inputs!M67)/1000,IF(Inputs!$B$128=Inputs!$B$131,SUM(Inputs!M71:M75,Inputs!M83)/1000,0))) -> 4422.335021 | N11: =IF(Inputs!$B$128=Inputs!$B$129,SUM(Inputs!N40:N44)/1000,IF(Inputs!$B$128=Inputs!$B$130,SUM(Inputs!N55:N59,Inputs!N67)/1000,IF(Inputs!$B$128=Inputs!$B$131,SUM(Inputs!N71:N75,Inputs!N83)/1000,0))) -> 3300.137918 | O11: =IF(Inputs!$B$128=Inputs!$B$129,SUM(Inputs!O40:O44)/1000,IF(Inputs!$B$128=Inputs!$B$130,SUM(Inputs!O55:O59,Inputs!O67)/1000,IF(Inputs!$B$128=Inputs!$B$131,SUM(Inputs!O71:O75,Inputs!O83)/1000,0))) -> 3250.1553 | P11: =IF(Inputs!$B$128=Inputs!$B$129,SUM(Inputs!P40:P44)/1000,IF(Inputs!$B$128=Inputs!$B$130,SUM(Inputs!P55:P59,Inputs!P67)/1000,IF(Inputs!$B$128=Inputs!$B$131,SUM(Inputs!P71:P75,Inputs!P83)/1000,0))) -> 1065.815175 | Q11: =IF(Inputs!$B$128=Inputs!$B$129,SUM(Inputs!Q40:Q44)/1000,IF(Inputs!$B$128=Inputs!$B$130,SUM(Inputs!Q55:Q59,Inputs!Q67)/1000,IF(Inputs!$B$128=Inputs!$B$131,SUM(Inputs!Q71:Q75,Inputs!Q83)/1000,0))) -> 1065.815175 | R11: =IF(Inputs!$B$128=Inputs!$B$129,SUM(Inputs!R40:R44)/1000,IF(Inputs!$B$128=Inputs!$B$130,SUM(Inputs!R55:R59,Inputs!R67)/1000,IF(Inputs!$B$128=Inputs!$B$131,SUM(Inputs!R71:R75,Inputs!R83)/1000,0))) -> 3410.514668 | S11: =IF(Inputs!$B$128=Inputs!$B$129,SUM(Inputs!S40:S44)/1000,IF(Inputs!$B$128=Inputs!$B$130,SUM(Inputs!S55:S59,Inputs!S67)/1000,IF(Inputs!$B$128=Inputs!$B$131,SUM(Inputs!S71:S75,Inputs!S83)/1000,0))) -> 1997.657494 | T11: =IF(Inputs!$B$128=Inputs!$B$129,SUM(Inputs!T40:T44)/1000,IF(Inputs!$B$128=Inputs!$B$130,SUM(Inputs!T55:T59,Inputs!T67)/1000,IF(Inputs!$B$128=Inputs!$B$131,SUM(Inputs!T71:T75,Inputs!T83)/1000,0))) -> 1065.815175 | U11: =IF(Inputs!$B$128=Inputs!$B$129,SUM(Inputs!U40:U44)/1000,IF(Inputs!$B$128=Inputs!$B$130,SUM(Inputs!U55:U59,Inputs!U67)/1000,IF(Inputs!$B$128=Inputs!$B$131,SUM(Inputs!U71:U75,Inputs!U83)/1000,0))) -> 1065.815175 | V11: =IF(Inputs!$B$128=Inputs!$B$129,SUM(Inputs!V40:V44)/1000,IF(Inputs!$B$128=Inputs!$B$130,SUM(Inputs!V55:V59,Inputs!V67)/1000,IF(Inputs!$B$128=Inputs!$B$131,SUM(Inputs!V71:V75,Inputs!V83)/1000,0))) -> 1065.815175 | W11: =IF(Inputs!$B$128=Inputs!$B$129,SUM(Inputs!W40:W44)/1000,IF(Inputs!$B$128=Inputs!$B$130,SUM(Inputs!W55:W59,Inputs!W67)/1000,IF(Inputs!$B$128=Inputs!$B$131,SUM(Inputs!W71:W75,Inputs!W83)/1000,0))) -> 1065.815175 | X11: =IF(Inputs!$B$128=Inputs!$B$129,SUM(Inputs!X40:X44)/1000,IF(Inputs!$B$128=Inputs!$B$130,SUM(Inputs!X55:X59,Inputs!X67)/1000,IF(Inputs!$B$128=Inputs!$B$131,SUM(Inputs!X71:X75,Inputs!X83)/1000,0))) -> 1065.815175 | Y11: =IF(Inputs!$B$128=Inputs!$B$129,SUM(Inputs!Y40:Y44)/1000,IF(Inputs!$B$128=Inputs!$B$130,SUM(Inputs!Y55:Y59,Inputs!Y67)/1000,IF(Inputs!$B$128=Inputs!$B$131,SUM(Inputs!Y71:Y75,Inputs!Y83)/1000,0))) -> 1065.815175 | Z11: =IF(Inputs!$B$128=Inputs!$B$129,SUM(Inputs!Z40:Z44)/1000,IF(Inputs!$B$128=Inputs!$B$130,SUM(Inputs!Z55:Z59,Inputs!Z67)/1000,IF(Inputs!$B$128=Inputs!$B$131,SUM(Inputs!Z71:Z75,Inputs!Z83)/1000,0))) -> 1065.815175 | AA11: =IF(Inputs!$B$128=Inputs!$B$129,SUM(Inputs!AA40:AA44)/1000,IF(Inputs!$B$128=Inputs!$B$130,SUM(Inputs!AA55:AA59,Inputs!AA67)/1000,IF(Inputs!$B$128=Inputs!$B$131,SUM(Inputs!AA71:AA75,Inputs!AA83)/1000,0))) -> 1065.815175 | AB11: =IF(Inputs!$B$128=Inputs!$B$129,SUM(Inputs!AB40:AB44)/1000,IF(Inputs!$B$128=Inputs!$B$130,SUM(Inputs!AB55:AB59,Inputs!AB67)/1000,IF(Inputs!$B$128=Inputs!$B$131,SUM(Inputs!AB71:AB75,Inputs!AB83)/1000,0))) -> 1065.815175 | AC11: =IF(Inputs!$B$128=Inputs!$B$129,SUM(Inputs!AC40:AC44)/1000,IF(Inputs!$B$128=Inputs!$B$130,SUM(Inputs!AC55:AC59,Inputs!AC67)/1000,IF(Inputs!$B$128=Inputs!$B$131,SUM(Inputs!AC71:AC75,Inputs!AC83)/1000,0))) -> 1065.815175 | AD11: =IF(Inputs!$B$128=Inputs!$B$129,SUM(Inputs!AD40:AD44)/1000,IF(Inputs!$B$128=Inputs!$B$130,SUM(Inputs!AD55:AD59,Inputs!AD67)/1000,IF(Inputs!$B$128=Inputs!$B$131,SUM(Inputs!AD71:AD75,Inputs!AD83)/1000,0))) -> 1065.815175 | AE11: =IF(Inputs!$B$128=Inputs!$B$129,SUM(Inputs!AE40:AE44)/1000,IF(Inputs!$B$128=Inputs!$B$130,SUM(Inputs!AE55:AE59,Inputs!AE67)/1000,IF(Inputs!$B$128=Inputs!$B$131,SUM(Inputs!AE71:AE75,Inputs!AE83)/1000,0))) -> 1058.976421 | AF11: =IF(Inputs!$B$128=Inputs!$B$129,SUM(Inputs!AF40:AF44)/1000,IF(Inputs!$B$128=Inputs!$B$130,SUM(Inputs!AF55:AF59,Inputs!AF67)/1000,IF(Inputs!$B$128=Inputs!$B$131,SUM(Inputs!AF71:AF75,Inputs!AF83)/1000,0))) -> 1181.610036 | AG11: =IF(Inputs!$B$128=Inputs!$B$129,SUM(Inputs!AG40:AG44)/1000,IF(Inputs!$B$128=Inputs!$B$130,SUM(Inputs!AG55:AG59,Inputs!AG67)/1000,IF(Inputs!$B$128=Inputs!$B$131,SUM(Inputs!AG71:AG75,Inputs!AG83)/1000,0))) -> 1072.537067 | AH11: =IF(Inputs!$B$128=Inputs!$B$129,SUM(Inputs!AH40:AH44)/1000,IF(Inputs!$B$128=Inputs!$B$130,SUM(Inputs!AH55:AH59,Inputs!AH67)/1000,IF(Inputs!$B$128=Inputs!$B$131,SUM(Inputs!AH71:AH75,Inputs!AH83)/1000,0))) -> 1053.366102 | AI11: =IF(Inputs!$B$128=Inputs!$B$129,SUM(Inputs!AI40:AI44)/1000,IF(Inputs!$B$128=Inputs!$B$130,SUM(Inputs!AI55:AI59,Inputs!AI67)/1000,IF(Inputs!$B$128=Inputs!$B$131,SUM(Inputs!AI71:AI75,Inputs!AI83)/1000,0))) -> 1153.386355 | AJ11: =IF(Inputs!$B$128=Inputs!$B$129,SUM(Inputs!AJ40:AJ44)/1000,IF(Inputs!$B$128=Inputs!$B$130,SUM(Inputs!AJ55:AJ59,Inputs!AJ67)/1000,IF(Inputs!$B$128=Inputs!$B$131,SUM(Inputs!AJ71:AJ75,Inputs!AJ83)/1000,0))) -> 1065.815175 | AK11: =IF(Inputs!$B$128=Inputs!$B$129,SUM(Inputs!AK40:AK44)/1000,IF(Inputs!$B$128=Inputs!$B$130,SUM(Inputs!AK55:AK59,Inputs!AK67)/1000,IF(Inputs!$B$128=Inputs!$B$131,SUM(Inputs!AK71:AK75,Inputs!AK83)/1000,0))) -> 1065.815175 | AL11: =IF(Inputs!$B$128=Inputs!$B$129,SUM(Inputs!AL40:AL44)/1000,IF(Inputs!$B$128=Inputs!$B$130,SUM(Inputs!AL55:AL59,Inputs!AL67)/1000,IF(Inputs!$B$128=Inputs!$B$131,SUM(Inputs!AL71:AL75,Inputs!AL83)/1000,0))) -> 1065.815175 | AM11: =IF(Inputs!$B$128=Inputs!$B$129,SUM(Inputs!AM40:AM44)/1000,IF(Inputs!$B$128=Inputs!$B$130,SUM(Inputs!AM55:AM59,Inputs!AM67)/1000,IF(Inputs!$B$128=Inputs!$B$131,SUM(Inputs!AM71:AM75,Inputs!AM83)/1000,0))) -> 1065.815175
A12: Services | E12: =IF(Inputs!$B$128=Inputs!$B$129,SUM(Inputs!E45,Inputs!E47)/1000,IF(Inputs!$B$128=Inputs!$B$130,SUM(Inputs!E60,Inputs!E62)/1000,IF(Inputs!$B$128=Inputs!$B$131,SUM(Inputs!E76,Inputs!E78)/1000,0))) -> 5630.276278 | F12: =IF(Inputs!$B$128=Inputs!$B$129,SUM(Inputs!F45,Inputs!F47)/1000,IF(Inputs!$B$128=Inputs!$B$130,SUM(Inputs!F60,Inputs!F62)/1000,IF(Inputs!$B$128=Inputs!$B$131,SUM(Inputs!F76,Inputs!F78)/1000,0))) -> 6268.755824 | G12: =IF(Inputs!$B$128=Inputs!$B$129,SUM(Inputs!G45,Inputs!G47)/1000,IF(Inputs!$B$128=Inputs!$B$130,SUM(Inputs!G60,Inputs!G62)/1000,IF(Inputs!$B$128=Inputs!$B$131,SUM(Inputs!G76,Inputs!G78)/1000,0))) -> 7141.008931 | H12: =IF(Inputs!$B$128=Inputs!$B$129,SUM(Inputs!H45,Inputs!H47)/1000,IF(Inputs!$B$128=Inputs!$B$130,SUM(Inputs!H60,Inputs!H62)/1000,IF(Inputs!$B$128=Inputs!$B$131,SUM(Inputs!H76,Inputs!H78)/1000,0))) -> 6261.254325 | I12: =IF(Inputs!$B$128=Inputs!$B$129,SUM(Inputs!I45,Inputs!I47)/1000,IF(Inputs!$B$128=Inputs!$B$130,SUM(Inputs!I60,Inputs!I62)/1000,IF(Inputs!$B$128=Inputs!$B$131,SUM(Inputs!I76,Inputs!I78)/1000,0))) -> 5710.585955 | J12: =IF(Inputs!$B$128=Inputs!$B$129,SUM(Inputs!J45,Inputs!J47)/1000,IF(Inputs!$B$128=Inputs!$B$130,SUM(Inputs!J60,Inputs!J62)/1000,IF(Inputs!$B$128=Inputs!$B$131,SUM(Inputs!J76,Inputs!J78)/1000,0))) -> 6243.197113 | K12: =IF(Inputs!$B$128=Inputs!$B$129,SUM(Inputs!K45,Inputs!K47)/1000,IF(Inputs!$B$128=Inputs!$B$130,SUM(Inputs!K60,Inputs!K62)/1000,IF(Inputs!$B$128=Inputs!$B$131,SUM(Inputs!K76,Inputs!K78)/1000,0))) -> 6123.006533 | L12: =IF(Inputs!$B$128=Inputs!$B$129,SUM(Inputs!L45,Inputs!L47)/1000,IF(Inputs!$B$128=Inputs!$B$130,SUM(Inputs!L60,Inputs!L62)/1000,IF(Inputs!$B$128=Inputs!$B$131,SUM(Inputs!L76,Inputs!L78)/1000,0))) -> 5948.972881 | M12: =IF(Inputs!$B$128=Inputs!$B$129,SUM(Inputs!M45,Inputs!M47)/1000,IF(Inputs!$B$128=Inputs!$B$130,SUM(Inputs!M60,Inputs!M62)/1000,IF(Inputs!$B$128=Inputs!$B$131,SUM(Inputs!M76,Inputs!M78)/1000,0))) -> 5913.999988 | N12: =IF(Inputs!$B$128=Inputs!$B$129,SUM(Inputs!N45,Inputs!N47)/1000,IF(Inputs!$B$128=Inputs!$B$130,SUM(Inputs!N60,Inputs!N62)/1000,IF(Inputs!$B$128=Inputs!$B$131,SUM(Inputs!N76,Inputs!N78)/1000,0))) -> 5749.577944 | O12: =IF(Inputs!$B$128=Inputs!$B$129,SUM(Inputs!O45,Inputs!O47)/1000,IF(Inputs!$B$128=Inputs!$B$130,SUM(Inputs!O60,Inputs!O62)/1000,IF(Inputs!$B$128=Inputs!$B$131,SUM(Inputs!O76,Inputs!O78)/1000,0))) -> 5547.0557 | P12: =IF(Inputs!$B$128=Inputs!$B$129,SUM(Inputs!P45,Inputs!P47)/1000,IF(Inputs!$B$128=Inputs!$B$130,SUM(Inputs!P60,Inputs!P62)/1000,IF(Inputs!$B$128=Inputs!$B$131,SUM(Inputs!P76,Inputs!P78)/1000,0))) -> 4299.667169 | Q12: =IF(Inputs!$B$128=Inputs!$B$129,SUM(Inputs!Q45,Inputs!Q47)/1000,IF(Inputs!$B$128=Inputs!$B$130,SUM(Inputs!Q60,Inputs!Q62)/1000,IF(Inputs!$B$128=Inputs!$B$131,SUM(Inputs!Q76,Inputs!Q78)/1000,0))) -> 3850.859056 | R12: =IF(Inputs!$B$128=Inputs!$B$129,SUM(Inputs!R45,Inputs!R47)/1000,IF(Inputs!$B$128=Inputs!$B$130,SUM(Inputs!R60,Inputs!R62)/1000,IF(Inputs!$B$128=Inputs!$B$131,SUM(Inputs!R76,Inputs!R78)/1000,0))) -> 3746.451541 | S12: =IF(Inputs!$B$128=Inputs!$B$129,SUM(Inputs!S45,Inputs!S47)/1000,IF(Inputs!$B$128=Inputs!$B$130,SUM(Inputs!S60,Inputs!S62)/1000,IF(Inputs!$B$128=Inputs!$B$131,SUM(Inputs!S76,Inputs!S78)/1000,0))) -> 3585.95491 | T12: =IF(Inputs!$B$128=Inputs!$B$129,SUM(Inputs!T45,Inputs!T47)/1000,IF(Inputs!$B$128=Inputs!$B$130,SUM(Inputs!T60,Inputs!T62)/1000,IF(Inputs!$B$128=Inputs!$B$131,SUM(Inputs!T76,Inputs!T78)/1000,0))) -> 3445.982275 | U12: =IF(Inputs!$B$128=Inputs!$B$129,SUM(Inputs!U45,Inputs!U47)/1000,IF(Inputs!$B$128=Inputs!$B$130,SUM(Inputs!U60,Inputs!U62)/1000,IF(Inputs!$B$128=Inputs!$B$131,SUM(Inputs!U76,Inputs!U78)/1000,0))) -> 3313.376621 | V12: =IF(Inputs!$B$128=Inputs!$B$129,SUM(Inputs!V45,Inputs!V47)/1000,IF(Inputs!$B$128=Inputs!$B$130,SUM(Inputs!V60,Inputs!V62)/1000,IF(Inputs!$B$128=Inputs!$B$131,SUM(Inputs!V76,Inputs!V78)/1000,0))) -> 3092.367199 | W12: =IF(Inputs!$B$128=Inputs!$B$129,SUM(Inputs!W45,Inputs!W47)/1000,IF(Inputs!$B$128=Inputs!$B$130,SUM(Inputs!W60,Inputs!W62)/1000,IF(Inputs!$B$128=Inputs!$B$131,SUM(Inputs!W76,Inputs!W78)/1000,0))) -> 2871.357776 | X12: =IF(Inputs!$B$128=Inputs!$B$129,SUM(Inputs!X45,Inputs!X47)/1000,IF(Inputs!$B$128=Inputs!$B$130,SUM(Inputs!X60,Inputs!X62)/1000,IF(Inputs!$B$128=Inputs!$B$131,SUM(Inputs!X76,Inputs!X78)/1000,0))) -> 2650.348353 | Y12: =IF(Inputs!$B$128=Inputs!$B$129,SUM(Inputs!Y45,Inputs!Y47)/1000,IF(Inputs!$B$128=Inputs!$B$130,SUM(Inputs!Y60,Inputs!Y62)/1000,IF(Inputs!$B$128=Inputs!$B$131,SUM(Inputs!Y76,Inputs!Y78)/1000,0))) -> 2429.33893 | Z12: =IF(Inputs!$B$128=Inputs!$B$129,SUM(Inputs!Z45,Inputs!Z47)/1000,IF(Inputs!$B$128=Inputs!$B$130,SUM(Inputs!Z60,Inputs!Z62)/1000,IF(Inputs!$B$128=Inputs!$B$131,SUM(Inputs!Z76,Inputs!Z78)/1000,0))) -> 2208.329507 | AA12: =IF(Inputs!$B$128=Inputs!$B$129,SUM(Inputs!AA45,Inputs!AA47)/1000,IF(Inputs!$B$128=Inputs!$B$130,SUM(Inputs!AA60,Inputs!AA62)/1000,IF(Inputs!$B$128=Inputs!$B$131,SUM(Inputs!AA76,Inputs!AA78)/1000,0))) -> 1987.320084 | AB12: =IF(Inputs!$B$128=Inputs!$B$129,SUM(Inputs!AB45,Inputs!AB47)/1000,IF(Inputs!$B$128=Inputs!$B$130,SUM(Inputs!AB60,Inputs!AB62)/1000,IF(Inputs!$B$128=Inputs!$B$131,SUM(Inputs!AB76,Inputs!AB78)/1000,0))) -> 1950.485181 | AC12: =IF(Inputs!$B$128=Inputs!$B$129,SUM(Inputs!AC45,Inputs!AC47)/1000,IF(Inputs!$B$128=Inputs!$B$130,SUM(Inputs!AC60,Inputs!AC62)/1000,IF(Inputs!$B$128=Inputs!$B$131,SUM(Inputs!AC76,Inputs!AC78)/1000,0))) -> 1913.650277 | AD12: =IF(Inputs!$B$128=Inputs!$B$129,SUM(Inputs!AD45,Inputs!AD47)/1000,IF(Inputs!$B$128=Inputs!$B$130,SUM(Inputs!AD60,Inputs!AD62)/1000,IF(Inputs!$B$128=Inputs!$B$131,SUM(Inputs!AD76,Inputs!AD78)/1000,0))) -> 1783.21532 | AE12: =IF(Inputs!$B$128=Inputs!$B$129,SUM(Inputs!AE45,Inputs!AE47)/1000,IF(Inputs!$B$128=Inputs!$B$130,SUM(Inputs!AE60,Inputs!AE62)/1000,IF(Inputs!$B$128=Inputs!$B$131,SUM(Inputs!AE76,Inputs!AE78)/1000,0))) -> 1746.380416 | AF12: =IF(Inputs!$B$128=Inputs!$B$129,SUM(Inputs!AF45,Inputs!AF47)/1000,IF(Inputs!$B$128=Inputs!$B$130,SUM(Inputs!AF60,Inputs!AF62)/1000,IF(Inputs!$B$128=Inputs!$B$131,SUM(Inputs!AF76,Inputs!AF78)/1000,0))) -> 1709.545513 | AG12: =IF(Inputs!$B$128=Inputs!$B$129,SUM(Inputs!AG45,Inputs!AG47)/1000,IF(Inputs!$B$128=Inputs!$B$130,SUM(Inputs!AG60,Inputs!AG62)/1000,IF(Inputs!$B$128=Inputs!$B$131,SUM(Inputs!AG76,Inputs!AG78)/1000,0))) -> 1672.710609 | AH12: =IF(Inputs!$B$128=Inputs!$B$129,SUM(Inputs!AH45,Inputs!AH47)/1000,IF(Inputs!$B$128=Inputs!$B$130,SUM(Inputs!AH60,Inputs!AH62)/1000,IF(Inputs!$B$128=Inputs!$B$131,SUM(Inputs!AH76,Inputs!AH78)/1000,0))) -> 1635.875705 | AI12: =IF(Inputs!$B$128=Inputs!$B$129,SUM(Inputs!AI45,Inputs!AI47)/1000,IF(Inputs!$B$128=Inputs!$B$130,SUM(Inputs!AI60,Inputs!AI62)/1000,IF(Inputs!$B$128=Inputs!$B$131,SUM(Inputs!AI76,Inputs!AI78)/1000,0))) -> 1599.040801 | AJ12: =IF(Inputs!$B$128=Inputs!$B$129,SUM(Inputs!AJ45,Inputs!AJ47)/1000,IF(Inputs!$B$128=Inputs!$B$130,SUM(Inputs!AJ60,Inputs!AJ62)/1000,IF(Inputs!$B$128=Inputs!$B$131,SUM(Inputs!AJ76,Inputs!AJ78)/1000,0))) -> 1562.205897 | AK12: =IF(Inputs!$B$128=Inputs!$B$129,SUM(Inputs!AK45,Inputs!AK47)/1000,IF(Inputs!$B$128=Inputs!$B$130,SUM(Inputs!AK60,Inputs!AK62)/1000,IF(Inputs!$B$128=Inputs!$B$131,SUM(Inputs!AK76,Inputs!AK78)/1000,0))) -> 1525.370994 | AL12: =IF(Inputs!$B$128=Inputs!$B$129,SUM(Inputs!AL45,Inputs!AL47)/1000,IF(Inputs!$B$128=Inputs!$B$130,SUM(Inputs!AL60,Inputs!AL62)/1000,IF(Inputs!$B$128=Inputs!$B$131,SUM(Inputs!AL76,Inputs!AL78)/1000,0))) -> 1488.53609 | AM12: =IF(Inputs!$B$128=Inputs!$B$129,SUM(Inputs!AM45,Inputs!AM47)/1000,IF(Inputs!$B$128=Inputs!$B$130,SUM(Inputs!AM60,Inputs!AM62)/1000,IF(Inputs!$B$128=Inputs!$B$131,SUM(Inputs!AM76,Inputs!AM78)/1000,0))) -> 1488.53609
A13: Meters | E13: =IF(Inputs!$B$128=Inputs!$B$129,SUM(Inputs!E46,Inputs!E48)/1000,IF(Inputs!$B$128=Inputs!$B$130,SUM(Inputs!E61,Inputs!E63)/1000,IF(Inputs!$B$128=Inputs!$B$131,SUM(Inputs!E77,Inputs!E79)/1000,0))) -> 2358.720413 | F13: =IF(Inputs!$B$128=Inputs!$B$129,SUM(Inputs!F46,Inputs!F48)/1000,IF(Inputs!$B$128=Inputs!$B$130,SUM(Inputs!F61,Inputs!F63)/1000,IF(Inputs!$B$128=Inputs!$B$131,SUM(Inputs!F77,Inputs!F79)/1000,0))) -> 2450.864214 | G13: =IF(Inputs!$B$128=Inputs!$B$129,SUM(Inputs!G46,Inputs!G48)/1000,IF(Inputs!$B$128=Inputs!$B$130,SUM(Inputs!G61,Inputs!G63)/1000,IF(Inputs!$B$128=Inputs!$B$131,SUM(Inputs!G77,Inputs!G79)/1000,0))) -> 2659.650289 | H13: =IF(Inputs!$B$128=Inputs!$B$129,SUM(Inputs!H46,Inputs!H48)/1000,IF(Inputs!$B$128=Inputs!$B$130,SUM(Inputs!H61,Inputs!H63)/1000,IF(Inputs!$B$128=Inputs!$B$131,SUM(Inputs!H77,Inputs!H79)/1000,0))) -> 2427.731566 | I13: =IF(Inputs!$B$128=Inputs!$B$129,SUM(Inputs!I46,Inputs!I48)/1000,IF(Inputs!$B$128=Inputs!$B$130,SUM(Inputs!I61,Inputs!I63)/1000,IF(Inputs!$B$128=Inputs!$B$131,SUM(Inputs!I77,Inputs!I79)/1000,0))) -> 2290.463685 | J13: =IF(Inputs!$B$128=Inputs!$B$129,SUM(Inputs!J46,Inputs!J48)/1000,IF(Inputs!$B$128=Inputs!$B$130,SUM(Inputs!J61,Inputs!J63)/1000,IF(Inputs!$B$128=Inputs!$B$131,SUM(Inputs!J77,Inputs!J79)/1000,0))) -> 3164.19814 | K13: =IF(Inputs!$B$128=Inputs!$B$129,SUM(Inputs!K46,Inputs!K48)/1000,IF(Inputs!$B$128=Inputs!$B$130,SUM(Inputs!K61,Inputs!K63)/1000,IF(Inputs!$B$128=Inputs!$B$131,SUM(Inputs!K77,Inputs!K79)/1000,0))) -> 3557.286832 | L13: =IF(Inputs!$B$128=Inputs!$B$129,SUM(Inputs!L46,Inputs!L48)/1000,IF(Inputs!$B$128=Inputs!$B$130,SUM(Inputs!L61,Inputs!L63)/1000,IF(Inputs!$B$128=Inputs!$B$131,SUM(Inputs!L77,Inputs!L79)/1000,0))) -> 3730.507301 | M13: =IF(Inputs!$B$128=Inputs!$B$129,SUM(Inputs!M46,Inputs!M48)/1000,IF(Inputs!$B$128=Inputs!$B$130,SUM(Inputs!M61,Inputs!M63)/1000,IF(Inputs!$B$128=Inputs!$B$131,SUM(Inputs!M77,Inputs!M79)/1000,0))) -> 4277.328256 | N13: =IF(Inputs!$B$128=Inputs!$B$129,SUM(Inputs!N46,Inputs!N48)/1000,IF(Inputs!$B$128=Inputs!$B$130,SUM(Inputs!N61,Inputs!N63)/1000,IF(Inputs!$B$128=Inputs!$B$131,SUM(Inputs!N77,Inputs!N79)/1000,0))) -> 4474.323588 | O13: =IF(Inputs!$B$128=Inputs!$B$129,SUM(Inputs!O46,Inputs!O48)/1000,IF(Inputs!$B$128=Inputs!$B$130,SUM(Inputs!O61,Inputs!O63)/1000,IF(Inputs!$B$128=Inputs!$B$131,SUM(Inputs!O77,Inputs!O79)/1000,0))) -> 5110.571797 | P13: =IF(Inputs!$B$128=Inputs!$B$129,SUM(Inputs!P46,Inputs!P48)/1000,IF(Inputs!$B$128=Inputs!$B$130,SUM(Inputs!P61,Inputs!P63)/1000,IF(Inputs!$B$128=Inputs!$B$131,SUM(Inputs!P77,Inputs!P79)/1000,0))) -> 5499.271403 | Q13: =IF(Inputs!$B$128=Inputs!$B$129,SUM(Inputs!Q46,Inputs!Q48)/1000,IF(Inputs!$B$128=Inputs!$B$130,SUM(Inputs!Q61,Inputs!Q63)/1000,IF(Inputs!$B$128=Inputs!$B$131,SUM(Inputs!Q77,Inputs!Q79)/1000,0))) -> 4649.162017 | R13: =IF(Inputs!$B$128=Inputs!$B$129,SUM(Inputs!R46,Inputs!R48)/1000,IF(Inputs!$B$128=Inputs!$B$130,SUM(Inputs!R61,Inputs!R63)/1000,IF(Inputs!$B$128=Inputs!$B$131,SUM(Inputs!R77,Inputs!R79)/1000,0))) -> 4562.814912 | S13: =IF(Inputs!$B$128=Inputs!$B$129,SUM(Inputs!S46,Inputs!S48)/1000,IF(Inputs!$B$128=Inputs!$B$130,SUM(Inputs!S61,Inputs!S63)/1000,IF(Inputs!$B$128=Inputs!$B$131,SUM(Inputs!S77,Inputs!S79)/1000,0))) -> 3742.293026 | T13: =IF(Inputs!$B$128=Inputs!$B$129,SUM(Inputs!T46,Inputs!T48)/1000,IF(Inputs!$B$128=Inputs!$B$130,SUM(Inputs!T61,Inputs!T63)/1000,IF(Inputs!$B$128=Inputs!$B$131,SUM(Inputs!T77,Inputs!T79)/1000,0))) -> 3334.685659 | U13: =IF(Inputs!$B$128=Inputs!$B$129,SUM(Inputs!U46,Inputs!U48)/1000,IF(Inputs!$B$128=Inputs!$B$130,SUM(Inputs!U61,Inputs!U63)/1000,IF(Inputs!$B$128=Inputs!$B$131,SUM(Inputs!U77,Inputs!U79)/1000,0))) -> 3092.06054 | V13: =IF(Inputs!$B$128=Inputs!$B$129,SUM(Inputs!V46,Inputs!V48)/1000,IF(Inputs!$B$128=Inputs!$B$130,SUM(Inputs!V61,Inputs!V63)/1000,IF(Inputs!$B$128=Inputs!$B$131,SUM(Inputs!V77,Inputs!V79)/1000,0))) -> 3083.066972 | W13: =IF(Inputs!$B$128=Inputs!$B$129,SUM(Inputs!W46,Inputs!W48)/1000,IF(Inputs!$B$128=Inputs!$B$130,SUM(Inputs!W61,Inputs!W63)/1000,IF(Inputs!$B$128=Inputs!$B$131,SUM(Inputs!W77,Inputs!W79)/1000,0))) -> 2899.997161 | X13: =IF(Inputs!$B$128=Inputs!$B$129,SUM(Inputs!X46,Inputs!X48)/1000,IF(Inputs!$B$128=Inputs!$B$130,SUM(Inputs!X61,Inputs!X63)/1000,IF(Inputs!$B$128=Inputs!$B$131,SUM(Inputs!X77,Inputs!X79)/1000,0))) -> 3173.797988 | Y13: =IF(Inputs!$B$128=Inputs!$B$129,SUM(Inputs!Y46,Inputs!Y48)/1000,IF(Inputs!$B$128=Inputs!$B$130,SUM(Inputs!Y61,Inputs!Y63)/1000,IF(Inputs!$B$128=Inputs!$B$131,SUM(Inputs!Y77,Inputs!Y79)/1000,0))) -> 3232.508895 | Z13: =IF(Inputs!$B$128=Inputs!$B$129,SUM(Inputs!Z46,Inputs!Z48)/1000,IF(Inputs!$B$128=Inputs!$B$130,SUM(Inputs!Z61,Inputs!Z63)/1000,IF(Inputs!$B$128=Inputs!$B$131,SUM(Inputs!Z77,Inputs!Z79)/1000,0))) -> 3430.027805 | AA13: =IF(Inputs!$B$128=Inputs!$B$129,SUM(Inputs!AA46,Inputs!AA48)/1000,IF(Inputs!$B$128=Inputs!$B$130,SUM(Inputs!AA61,Inputs!AA63)/1000,IF(Inputs!$B$128=Inputs!$B$131,SUM(Inputs!AA77,Inputs!AA79)/1000,0))) -> 4159.36641 | AB13: =IF(Inputs!$B$128=Inputs!$B$129,SUM(Inputs!AB46,Inputs!AB48)/1000,IF(Inputs!$B$128=Inputs!$B$130,SUM(Inputs!AB61,Inputs!AB63)/1000,IF(Inputs!$B$128=Inputs!$B$131,SUM(Inputs!AB77,Inputs!AB79)/1000,0))) -> 4378.54428 | AC13: =IF(Inputs!$B$128=Inputs!$B$129,SUM(Inputs!AC46,Inputs!AC48)/1000,IF(Inputs!$B$128=Inputs!$B$130,SUM(Inputs!AC61,Inputs!AC63)/1000,IF(Inputs!$B$128=Inputs!$B$131,SUM(Inputs!AC77,Inputs!AC79)/1000,0))) -> 4046.730672 | AD13: =IF(Inputs!$B$128=Inputs!$B$129,SUM(Inputs!AD46,Inputs!AD48)/1000,IF(Inputs!$B$128=Inputs!$B$130,SUM(Inputs!AD61,Inputs!AD63)/1000,IF(Inputs!$B$128=Inputs!$B$131,SUM(Inputs!AD77,Inputs!AD79)/1000,0))) -> 3414.148806 | AE13: =IF(Inputs!$B$128=Inputs!$B$129,SUM(Inputs!AE46,Inputs!AE48)/1000,IF(Inputs!$B$128=Inputs!$B$130,SUM(Inputs!AE61,Inputs!AE63)/1000,IF(Inputs!$B$128=Inputs!$B$131,SUM(Inputs!AE77,Inputs!AE79)/1000,0))) -> 4003.360333 | AF13: =IF(Inputs!$B$128=Inputs!$B$129,SUM(Inputs!AF46,Inputs!AF48)/1000,IF(Inputs!$B$128=Inputs!$B$130,SUM(Inputs!AF61,Inputs!AF63)/1000,IF(Inputs!$B$128=Inputs!$B$131,SUM(Inputs!AF77,Inputs!AF79)/1000,0))) -> 4285.796342 | AG13: =IF(Inputs!$B$128=Inputs!$B$129,SUM(Inputs!AG46,Inputs!AG48)/1000,IF(Inputs!$B$128=Inputs!$B$130,SUM(Inputs!AG61,Inputs!AG63)/1000,IF(Inputs!$B$128=Inputs!$B$131,SUM(Inputs!AG77,Inputs!AG79)/1000,0))) -> 5073.758004 | AH13: =IF(Inputs!$B$128=Inputs!$B$129,SUM(Inputs!AH46,Inputs!AH48)/1000,IF(Inputs!$B$128=Inputs!$B$130,SUM(Inputs!AH61,Inputs!AH63)/1000,IF(Inputs!$B$128=Inputs!$B$131,SUM(Inputs!AH77,Inputs!AH79)/1000,0))) -> 5397.708555 | AI13: =IF(Inputs!$B$128=Inputs!$B$129,SUM(Inputs!AI46,Inputs!AI48)/1000,IF(Inputs!$B$128=Inputs!$B$130,SUM(Inputs!AI61,Inputs!AI63)/1000,IF(Inputs!$B$128=Inputs!$B$131,SUM(Inputs!AI77,Inputs!AI79)/1000,0))) -> 5759.810787 | AJ13: =IF(Inputs!$B$128=Inputs!$B$129,SUM(Inputs!AJ46,Inputs!AJ48)/1000,IF(Inputs!$B$128=Inputs!$B$130,SUM(Inputs!AJ61,Inputs!AJ63)/1000,IF(Inputs!$B$128=Inputs!$B$131,SUM(Inputs!AJ77,Inputs!AJ79)/1000,0))) -> 6219.317894 | AK13: =IF(Inputs!$B$128=Inputs!$B$129,SUM(Inputs!AK46,Inputs!AK48)/1000,IF(Inputs!$B$128=Inputs!$B$130,SUM(Inputs!AK61,Inputs!AK63)/1000,IF(Inputs!$B$128=Inputs!$B$131,SUM(Inputs!AK77,Inputs!AK79)/1000,0))) -> 5359.618896 | AL13: =IF(Inputs!$B$128=Inputs!$B$129,SUM(Inputs!AL46,Inputs!AL48)/1000,IF(Inputs!$B$128=Inputs!$B$130,SUM(Inputs!AL61,Inputs!AL63)/1000,IF(Inputs!$B$128=Inputs!$B$131,SUM(Inputs!AL77,Inputs!AL79)/1000,0))) -> 5263.682179 | AM13: =IF(Inputs!$B$128=Inputs!$B$129,SUM(Inputs!AM46,Inputs!AM48)/1000,IF(Inputs!$B$128=Inputs!$B$130,SUM(Inputs!AM61,Inputs!AM63)/1000,IF(Inputs!$B$128=Inputs!$B$131,SUM(Inputs!AM77,Inputs!AM79)/1000,0))) -> 5263.682179
A14: Other 40 yrs - TMA | E14: =IF(Inputs!$B$128=Inputs!$B$129,SUM(Inputs!E49:E51)/1000,IF(Inputs!$B$128=Inputs!$B$130,SUM(Inputs!E64:E66)/1000,IF(Inputs!$B$128=Inputs!$B$131,SUM(Inputs!E80:E82)/1000,0))) -> 3083.124789 | F14: =IF(Inputs!$B$128=Inputs!$B$129,SUM(Inputs!F49:F51)/1000,IF(Inputs!$B$128=Inputs!$B$130,SUM(Inputs!F64:F66)/1000,IF(Inputs!$B$128=Inputs!$B$131,SUM(Inputs!F80:F82)/1000,0))) -> 2771.021301 | G14: =IF(Inputs!$B$128=Inputs!$B$129,SUM(Inputs!G49:G51)/1000,IF(Inputs!$B$128=Inputs!$B$130,SUM(Inputs!G64:G66)/1000,IF(Inputs!$B$128=Inputs!$B$131,SUM(Inputs!G80:G82)/1000,0))) -> 100.7047338 | H14: =IF(Inputs!$B$128=Inputs!$B$129,SUM(Inputs!H49:H51)/1000,IF(Inputs!$B$128=Inputs!$B$130,SUM(Inputs!H64:H66)/1000,IF(Inputs!$B$128=Inputs!$B$131,SUM(Inputs!H80:H82)/1000,0))) -> 100.1005054 | I14: =IF(Inputs!$B$128=Inputs!$B$129,SUM(Inputs!I49:I51)/1000,IF(Inputs!$B$128=Inputs!$B$130,SUM(Inputs!I64:I66)/1000,IF(Inputs!$B$128=Inputs!$B$131,SUM(Inputs!I80:I82)/1000,0))) -> 3038.365391 | J14: =IF(Inputs!$B$128=Inputs!$B$129,SUM(Inputs!J51)/1000,IF(Inputs!$B$128=Inputs!$B$130,SUM(Inputs!J66)/1000,IF(Inputs!$B$128=Inputs!$B$131,SUM(Inputs!J82)/1000,0))) -> 1101.174706 | K14: =IF(Inputs!$B$128=Inputs!$B$129,SUM(Inputs!K51)/1000,IF(Inputs!$B$128=Inputs!$B$130,SUM(Inputs!K66)/1000,IF(Inputs!$B$128=Inputs!$B$131,SUM(Inputs!K82)/1000,0))) -> 1083.618849 | L14: =IF(Inputs!$B$128=Inputs!$B$129,SUM(Inputs!L51)/1000,IF(Inputs!$B$128=Inputs!$B$130,SUM(Inputs!L66)/1000,IF(Inputs!$B$128=Inputs!$B$131,SUM(Inputs!L82)/1000,0))) -> 920.4402788 | M14: =IF(Inputs!$B$128=Inputs!$B$129,SUM(Inputs!M51)/1000,IF(Inputs!$B$128=Inputs!$B$130,SUM(Inputs!M66)/1000,IF(Inputs!$B$128=Inputs!$B$131,SUM(Inputs!M82)/1000,0))) -> 1022.572429 | N14: =IF(Inputs!$B$128=Inputs!$B$129,SUM(Inputs!N51)/1000,IF(Inputs!$B$128=Inputs!$B$130,SUM(Inputs!N66)/1000,IF(Inputs!$B$128=Inputs!$B$131,SUM(Inputs!N82)/1000,0))) -> 895.8110081 | O14: =IF(Inputs!$B$128=Inputs!$B$129,SUM(Inputs!O51)/1000,IF(Inputs!$B$128=Inputs!$B$130,SUM(Inputs!O66)/1000,IF(Inputs!$B$128=Inputs!$B$131,SUM(Inputs!O82)/1000,0))) -> 873.6214459 | P14: =IF(Inputs!$B$128=Inputs!$B$129,SUM(Inputs!P51)/1000,IF(Inputs!$B$128=Inputs!$B$130,SUM(Inputs!P66)/1000,IF(Inputs!$B$128=Inputs!$B$131,SUM(Inputs!P82)/1000,0))) -> 525.7261564 | Q14: =IF(Inputs!$B$128=Inputs!$B$129,SUM(Inputs!Q51)/1000,IF(Inputs!$B$128=Inputs!$B$130,SUM(Inputs!Q66)/1000,IF(Inputs!$B$128=Inputs!$B$131,SUM(Inputs!Q82)/1000,0))) -> 480.8453451 | R14: =IF(Inputs!$B$128=Inputs!$B$129,SUM(Inputs!R51)/1000,IF(Inputs!$B$128=Inputs!$B$130,SUM(Inputs!R66)/1000,IF(Inputs!$B$128=Inputs!$B$131,SUM(Inputs!R82)/1000,0))) -> 704.874543 | S14: =IF(Inputs!$B$128=Inputs!$B$129,SUM(Inputs!S51)/1000,IF(Inputs!$B$128=Inputs!$B$130,SUM(Inputs!S66)/1000,IF(Inputs!$B$128=Inputs!$B$131,SUM(Inputs!S82)/1000,0))) -> 547.5391624 | T14: =IF(Inputs!$B$128=Inputs!$B$129,SUM(Inputs!T51)/1000,IF(Inputs!$B$128=Inputs!$B$130,SUM(Inputs!T66)/1000,IF(Inputs!$B$128=Inputs!$B$131,SUM(Inputs!T82)/1000,0))) -> 440.357667 | U14: =IF(Inputs!$B$128=Inputs!$B$129,SUM(Inputs!U51)/1000,IF(Inputs!$B$128=Inputs!$B$130,SUM(Inputs!U66)/1000,IF(Inputs!$B$128=Inputs!$B$131,SUM(Inputs!U82)/1000,0))) -> 427.0971016 | V14: =IF(Inputs!$B$128=Inputs!$B$129,SUM(Inputs!V51)/1000,IF(Inputs!$B$128=Inputs!$B$130,SUM(Inputs!V66)/1000,IF(Inputs!$B$128=Inputs!$B$131,SUM(Inputs!V82)/1000,0))) -> 404.9961594 | W14: =IF(Inputs!$B$128=Inputs!$B$129,SUM(Inputs!W51)/1000,IF(Inputs!$B$128=Inputs!$B$130,SUM(Inputs!W66)/1000,IF(Inputs!$B$128=Inputs!$B$131,SUM(Inputs!W82)/1000,0))) -> 382.8952171 | X14: =IF(Inputs!$B$128=Inputs!$B$129,SUM(Inputs!X51)/1000,IF(Inputs!$B$128=Inputs!$B$130,SUM(Inputs!X66)/1000,IF(Inputs!$B$128=Inputs!$B$131,SUM(Inputs!X82)/1000,0))) -> 360.7942748 | Y14: =IF(Inputs!$B$128=Inputs!$B$129,SUM(Inputs!Y51)/1000,IF(Inputs!$B$128=Inputs!$B$130,SUM(Inputs!Y66)/1000,IF(Inputs!$B$128=Inputs!$B$131,SUM(Inputs!Y82)/1000,0))) -> 338.6933325 | Z14: =IF(Inputs!$B$128=Inputs!$B$129,SUM(Inputs!Z51)/1000,IF(Inputs!$B$128=Inputs!$B$130,SUM(Inputs!Z66)/1000,IF(Inputs!$B$128=Inputs!$B$131,SUM(Inputs!Z82)/1000,0))) -> 316.5923902 | AA14: =IF(Inputs!$B$128=Inputs!$B$129,SUM(Inputs!AA51)/1000,IF(Inputs!$B$128=Inputs!$B$130,SUM(Inputs!AA66)/1000,IF(Inputs!$B$128=Inputs!$B$131,SUM(Inputs!AA82)/1000,0))) -> 294.4914479 | AB14: =IF(Inputs!$B$128=Inputs!$B$129,SUM(Inputs!AB51)/1000,IF(Inputs!$B$128=Inputs!$B$130,SUM(Inputs!AB66)/1000,IF(Inputs!$B$128=Inputs!$B$131,SUM(Inputs!AB82)/1000,0))) -> 290.8079576 | AC14: =IF(Inputs!$B$128=Inputs!$B$129,SUM(Inputs!AC51)/1000,IF(Inputs!$B$128=Inputs!$B$130,SUM(Inputs!AC66)/1000,IF(Inputs!$B$128=Inputs!$B$131,SUM(Inputs!AC82)/1000,0))) -> 287.1244672 | AD14: =IF(Inputs!$B$128=Inputs!$B$129,SUM(Inputs!AD51)/1000,IF(Inputs!$B$128=Inputs!$B$130,SUM(Inputs!AD66)/1000,IF(Inputs!$B$128=Inputs!$B$131,SUM(Inputs!AD82)/1000,0))) -> 274.0809715 | AE14: =IF(Inputs!$B$128=Inputs!$B$129,SUM(Inputs!AE51)/1000,IF(Inputs!$B$128=Inputs!$B$130,SUM(Inputs!AE66)/1000,IF(Inputs!$B$128=Inputs!$B$131,SUM(Inputs!AE82)/1000,0))) -> 270.3974811 | AF14: =IF(Inputs!$B$128=Inputs!$B$129,SUM(Inputs!AF51)/1000,IF(Inputs!$B$128=Inputs!$B$130,SUM(Inputs!AF66)/1000,IF(Inputs!$B$128=Inputs!$B$131,SUM(Inputs!AF82)/1000,0))) -> 266.7139908 | AG14: =IF(Inputs!$B$128=Inputs!$B$129,SUM(Inputs!AG51)/1000,IF(Inputs!$B$128=Inputs!$B$130,SUM(Inputs!AG66)/1000,IF(Inputs!$B$128=Inputs!$B$131,SUM(Inputs!AG82)/1000,0))) -> 263.0305004 | AH14: =IF(Inputs!$B$128=Inputs!$B$129,SUM(Inputs!AH51)/1000,IF(Inputs!$B$128=Inputs!$B$130,SUM(Inputs!AH66)/1000,IF(Inputs!$B$128=Inputs!$B$131,SUM(Inputs!AH82)/1000,0))) -> 259.34701 | AI14: =IF(Inputs!$B$128=Inputs!$B$129,SUM(Inputs!AI51)/1000,IF(Inputs!$B$128=Inputs!$B$130,SUM(Inputs!AI66)/1000,IF(Inputs!$B$128=Inputs!$B$131,SUM(Inputs!AI82)/1000,0))) -> 255.6635196 | AJ14: =IF(Inputs!$B$128=Inputs!$B$129,SUM(Inputs!AJ51)/1000,IF(Inputs!$B$128=Inputs!$B$130,SUM(Inputs!AJ66)/1000,IF(Inputs!$B$128=Inputs!$B$131,SUM(Inputs!AJ82)/1000,0))) -> 251.9800292 | AK14: =IF(Inputs!$B$128=Inputs!$B$129,SUM(Inputs!AK51)/1000,IF(Inputs!$B$128=Inputs!$B$130,SUM(Inputs!AK66)/1000,IF(Inputs!$B$128=Inputs!$B$131,SUM(Inputs!AK82)/1000,0))) -> 248.2965389 | AL14: =IF(Inputs!$B$128=Inputs!$B$129,SUM(Inputs!AL51)/1000,IF(Inputs!$B$128=Inputs!$B$130,SUM(Inputs!AL66)/1000,IF(Inputs!$B$128=Inputs!$B$131,SUM(Inputs!AL82)/1000,0))) -> 244.6130485 | AM14: =IF(Inputs!$B$128=Inputs!$B$129,SUM(Inputs!AM51)/1000,IF(Inputs!$B$128=Inputs!$B$130,SUM(Inputs!AM66)/1000,IF(Inputs!$B$128=Inputs!$B$131,SUM(Inputs!AM82)/1000,0))) -> 244.6130485
A15: Other 5 yrs | J15: =IF(Inputs!$B$128=Inputs!$B$129,SUM(Inputs!J49)/1000,IF(Inputs!$B$128=Inputs!$B$130,SUM(Inputs!J64)/1000,IF(Inputs!$B$128=Inputs!$B$131,SUM(Inputs!J80)/1000,0))) -> 235.466188 | K15: =IF(Inputs!$B$128=Inputs!$B$129,SUM(Inputs!K49)/1000,IF(Inputs!$B$128=Inputs!$B$130,SUM(Inputs!K64)/1000,IF(Inputs!$B$128=Inputs!$B$131,SUM(Inputs!K80)/1000,0))) -> 233.0211728 | L15: =IF(Inputs!$B$128=Inputs!$B$129,SUM(Inputs!L49)/1000,IF(Inputs!$B$128=Inputs!$B$130,SUM(Inputs!L64)/1000,IF(Inputs!$B$128=Inputs!$B$131,SUM(Inputs!L80)/1000,0))) -> 231.1514488 | M15: =IF(Inputs!$B$128=Inputs!$B$129,SUM(Inputs!M49)/1000,IF(Inputs!$B$128=Inputs!$B$130,SUM(Inputs!M64)/1000,IF(Inputs!$B$128=Inputs!$B$131,SUM(Inputs!M80)/1000,0))) -> 229.7557376 | N15: =IF(Inputs!$B$128=Inputs!$B$129,SUM(Inputs!N49)/1000,IF(Inputs!$B$128=Inputs!$B$130,SUM(Inputs!N64)/1000,IF(Inputs!$B$128=Inputs!$B$131,SUM(Inputs!N80)/1000,0))) -> 228.3684537 | O15: =IF(Inputs!$B$128=Inputs!$B$129,SUM(Inputs!O49)/1000,IF(Inputs!$B$128=Inputs!$B$130,SUM(Inputs!O64)/1000,IF(Inputs!$B$128=Inputs!$B$131,SUM(Inputs!O80)/1000,0))) -> 226.9895464 | P15: =IF(Inputs!$B$128=Inputs!$B$129,SUM(Inputs!P49)/1000,IF(Inputs!$B$128=Inputs!$B$130,SUM(Inputs!P64)/1000,IF(Inputs!$B$128=Inputs!$B$131,SUM(Inputs!P80)/1000,0))) -> 238.7536839 | Q15: =IF(Inputs!$B$128=Inputs!$B$129,SUM(Inputs!Q49)/1000,IF(Inputs!$B$128=Inputs!$B$130,SUM(Inputs!Q64)/1000,IF(Inputs!$B$128=Inputs!$B$131,SUM(Inputs!Q80)/1000,0))) -> 238.7536839 | R15: =IF(Inputs!$B$128=Inputs!$B$129,SUM(Inputs!R49)/1000,IF(Inputs!$B$128=Inputs!$B$130,SUM(Inputs!R64)/1000,IF(Inputs!$B$128=Inputs!$B$131,SUM(Inputs!R80)/1000,0))) -> 238.7536839 | S15: =IF(Inputs!$B$128=Inputs!$B$129,SUM(Inputs!S49)/1000,IF(Inputs!$B$128=Inputs!$B$130,SUM(Inputs!S64)/1000,IF(Inputs!$B$128=Inputs!$B$131,SUM(Inputs!S80)/1000,0))) -> 238.7536839 | T15: =IF(Inputs!$B$128=Inputs!$B$129,SUM(Inputs!T49)/1000,IF(Inputs!$B$128=Inputs!$B$130,SUM(Inputs!T64)/1000,IF(Inputs!$B$128=Inputs!$B$131,SUM(Inputs!T80)/1000,0))) -> 238.7536839 | U15: =IF(Inputs!$B$128=Inputs!$B$129,SUM(Inputs!U49)/1000,IF(Inputs!$B$128=Inputs!$B$130,SUM(Inputs!U64)/1000,IF(Inputs!$B$128=Inputs!$B$131,SUM(Inputs!U80)/1000,0))) -> 238.7536839 | V15: =IF(Inputs!$B$128=Inputs!$B$129,SUM(Inputs!V49)/1000,IF(Inputs!$B$128=Inputs!$B$130,SUM(Inputs!V64)/1000,IF(Inputs!$B$128=Inputs!$B$131,SUM(Inputs!V80)/1000,0))) -> 238.7536839 | W15: =IF(Inputs!$B$128=Inputs!$B$129,SUM(Inputs!W49)/1000,IF(Inputs!$B$128=Inputs!$B$130,SUM(Inputs!W64)/1000,IF(Inputs!$B$128=Inputs!$B$131,SUM(Inputs!W80)/1000,0))) -> 238.7536839 | X15: =IF(Inputs!$B$128=Inputs!$B$129,SUM(Inputs!X49)/1000,IF(Inputs!$B$128=Inputs!$B$130,SUM(Inputs!X64)/1000,IF(Inputs!$B$128=Inputs!$B$131,SUM(Inputs!X80)/1000,0))) -> 238.7536839 | Y15: =IF(Inputs!$B$128=Inputs!$B$129,SUM(Inputs!Y49)/1000,IF(Inputs!$B$128=Inputs!$B$130,SUM(Inputs!Y64)/1000,IF(Inputs!$B$128=Inputs!$B$131,SUM(Inputs!Y80)/1000,0))) -> 238.7536839 | Z15: =IF(Inputs!$B$128=Inputs!$B$129,SUM(Inputs!Z49)/1000,IF(Inputs!$B$128=Inputs!$B$130,SUM(Inputs!Z64)/1000,IF(Inputs!$B$128=Inputs!$B$131,SUM(Inputs!Z80)/1000,0))) -> 238.7536839 | AA15: =IF(Inputs!$B$128=Inputs!$B$129,SUM(Inputs!AA49)/1000,IF(Inputs!$B$128=Inputs!$B$130,SUM(Inputs!AA64)/1000,IF(Inputs!$B$128=Inputs!$B$131,SUM(Inputs!AA80)/1000,0))) -> 238.7536839 | AB15: =IF(Inputs!$B$128=Inputs!$B$129,SUM(Inputs!AB49)/1000,IF(Inputs!$B$128=Inputs!$B$130,SUM(Inputs!AB64)/1000,IF(Inputs!$B$128=Inputs!$B$131,SUM(Inputs!AB80)/1000,0))) -> 238.7536839 | AC15: =IF(Inputs!$B$128=Inputs!$B$129,SUM(Inputs!AC49)/1000,IF(Inputs!$B$128=Inputs!$B$130,SUM(Inputs!AC64)/1000,IF(Inputs!$B$128=Inputs!$B$131,SUM(Inputs!AC80)/1000,0))) -> 238.7536839 | AD15: =IF(Inputs!$B$128=Inputs!$B$129,SUM(Inputs!AD49)/1000,IF(Inputs!$B$128=Inputs!$B$130,SUM(Inputs!AD64)/1000,IF(Inputs!$B$128=Inputs!$B$131,SUM(Inputs!AD80)/1000,0))) -> 238.7536839 | AE15: =IF(Inputs!$B$128=Inputs!$B$129,SUM(Inputs!AE49)/1000,IF(Inputs!$B$128=Inputs!$B$130,SUM(Inputs!AE64)/1000,IF(Inputs!$B$128=Inputs!$B$131,SUM(Inputs!AE80)/1000,0))) -> 238.7536839 | AF15: =IF(Inputs!$B$128=Inputs!$B$129,SUM(Inputs!AF49)/1000,IF(Inputs!$B$128=Inputs!$B$130,SUM(Inputs!AF64)/1000,IF(Inputs!$B$128=Inputs!$B$131,SUM(Inputs!AF80)/1000,0))) -> 238.7536839 | AG15: =IF(Inputs!$B$128=Inputs!$B$129,SUM(Inputs!AG49)/1000,IF(Inputs!$B$128=Inputs!$B$130,SUM(Inputs!AG64)/1000,IF(Inputs!$B$128=Inputs!$B$131,SUM(Inputs!AG80)/1000,0))) -> 238.7536839 | AH15: =IF(Inputs!$B$128=Inputs!$B$129,SUM(Inputs!AH49)/1000,IF(Inputs!$B$128=Inputs!$B$130,SUM(Inputs!AH64)/1000,IF(Inputs!$B$128=Inputs!$B$131,SUM(Inputs!AH80)/1000,0))) -> 238.7536839 | AI15: =IF(Inputs!$B$128=Inputs!$B$129,SUM(Inputs!AI49)/1000,IF(Inputs!$B$128=Inputs!$B$130,SUM(Inputs!AI64)/1000,IF(Inputs!$B$128=Inputs!$B$131,SUM(Inputs!AI80)/1000,0))) -> 238.7536839 | AJ15: =IF(Inputs!$B$128=Inputs!$B$129,SUM(Inputs!AJ49)/1000,IF(Inputs!$B$128=Inputs!$B$130,SUM(Inputs!AJ64)/1000,IF(Inputs!$B$128=Inputs!$B$131,SUM(Inputs!AJ80)/1000,0))) -> 238.7536839 | AK15: =IF(Inputs!$B$128=Inputs!$B$129,SUM(Inputs!AK49)/1000,IF(Inputs!$B$128=Inputs!$B$130,SUM(Inputs!AK64)/1000,IF(Inputs!$B$128=Inputs!$B$131,SUM(Inputs!AK80)/1000,0))) -> 238.7536839 | AL15: =IF(Inputs!$B$128=Inputs!$B$129,SUM(Inputs!AL49)/1000,IF(Inputs!$B$128=Inputs!$B$130,SUM(Inputs!AL64)/1000,IF(Inputs!$B$128=Inputs!$B$131,SUM(Inputs!AL80)/1000,0))) -> 238.7536839 | AM15: =IF(Inputs!$B$128=Inputs!$B$129,SUM(Inputs!AM49)/1000,IF(Inputs!$B$128=Inputs!$B$130,SUM(Inputs!AM64)/1000,IF(Inputs!$B$128=Inputs!$B$131,SUM(Inputs!AM80)/1000,0))) -> 238.7536839
A16: Total Capex | E16: =SUM(E11:E14) -> 13093.51037 | F16: =SUM(F11:F14) -> 13757.97641 | G16: =SUM(G11:G14) -> 12735.28315 | H16: 11630.96991 | I16: 13528.63864 | J16: =SUM(J11:J15) -> 11811.07228 | K16: =SUM(K11:K15) -> 13823.01606 | L16: 14303.38431 | M16: 15865.99143 | N16: 14648.21891 | O16: 15008.39379 | P16: 11629.23359 | Q16: 10285.43528 | R16: 12663.40935 | S16: 10112.19828 | T16: 8525.594459 | U16: 8137.103122 | V16: 7884.999188 | W16: 7458.819012 | X16: 7489.509474 | Y16: 7305.110016 | Z16: 7259.518561 | AA16: 7745.746801 | AB16: 7924.406276 | AC16: 7552.074275 | AD16: 6776.013956 | AE16: 7317.868335 | AF16: 7682.419565 | AG16: 8320.789865 | AH16: 8585.051056 | AI16: 9006.655147 | AJ16: 9338.072679 | AK16: 8437.855287 | AL16: 8301.400175 | AM16: 8301.400175
A18: Basis of depreciation | B18: FE | C18: PNGL
C19: FE
A20: Annual depreciation of additional capex
A21: Mains (40 years straight line) | B21: =IF(B18=C18,40,40) -> 40 | E21: =E11/$B$21 -> 50.53472219 | F21: =F11/$B$21 -> 56.68337674 | G21: =G11/$B$21 -> 70.84797992 | H21: 71.04708792 | I21: =I11/$B$21 -> 62.2305901 | J21: =J11/$B$21-SUM('PDP Workings - DD UPDATED'!$B$14:C14)/1000+IF(DAV!J6='PDP Workings - DD UPDATED'!$H$45,SUM('PDP Workings - DD UPDATED'!B14:C14)/1000,0)-SUM('PDP Workings - DD UPDATED'!B40:C40)/1000+IF(J6='PDP Workings - DD UPDATED'!$H$45,'PDP Workings - DD UPDATED'!C49/1000,0) -> 162.9431444 | K21: =K11/$B$21-'PDP Workings - DD UPDATED'!D14/1000+IF(DAV!K6='PDP Workings - DD UPDATED'!$H$45,SUM('PDP Workings - DD UPDATED'!B14:D14)/1000,0)+IF(K6='PDP Workings - DD UPDATED'!$H$45,'PDP Workings - DD UPDATED'!C49/1000,0)-'PDP Workings - DD UPDATED'!D40/1000+IF(K6='PDP Workings - DD UPDATED'!$H$45,'PDP Workings - DD UPDATED'!D49/1000,0) -> 120.3032425 | L21: =L11/$B$21-'PDP Workings - DD UPDATED'!E14/1000+IF(DAV!L6='PDP Workings - DD UPDATED'!$H$45,SUM('PDP Workings - DD UPDATED'!B14:E14)/1000,0)-'PDP Workings - DD UPDATED'!E40/1000+IF(L6='PDP Workings - DD UPDATED'!$H$45,'PDP Workings - DD UPDATED'!E49/1000,0) -> 86.8078101 | M21: =M11/$B$21-'PDP Workings - DD UPDATED'!F14/1000+IF(DAV!M6='PDP Workings - DD UPDATED'!$H$45,SUM('PDP Workings - DD UPDATED'!B14:F14)/1000,0)-'PDP Workings - DD UPDATED'!F40/1000+IF(M6='PDP Workings - DD UPDATED'!$H$45,'PDP Workings - DD UPDATED'!F49/1000,0) -> -75.36004126 | N21: =N11/$B$21-'PDP Workings - DD UPDATED'!G14/1000+IF(DAV!N6='PDP Workings - DD UPDATED'!$H$45,SUM('PDP Workings - DD UPDATED'!B14:G14)/1000,0)-'PDP Workings - DD UPDATED'!G40/1000+IF(N6='PDP Workings - DD UPDATED'!$H$45,'PDP Workings - DD UPDATED'!G49/1000,0) -> 82.50344795 | O21: =O11/$B$21-'PDP Workings - DD UPDATED'!H14/1000+IF(DAV!O6='PDP Workings - DD UPDATED'!$H$45,SUM('PDP Workings - DD UPDATED'!B14:H14)/1000,0)-'PDP Workings - DD UPDATED'!H40/1000+IF(O6='PDP Workings - DD UPDATED'!$H$45,'PDP Workings - DD UPDATED'!H49/1000,0) -> 81.2538825 | P21: =P11/$B$21-'PDP Workings - DD UPDATED'!I14/1000+IF(DAV!P6='PDP Workings - DD UPDATED'!$H$45,SUM('PDP Workings - DD UPDATED'!B14:I14)/1000,0)-'PDP Workings - DD UPDATED'!I40/1000+IF(P6='PDP Workings - DD UPDATED'!$H$45,'PDP Workings - DD UPDATED'!I49/1000,0) -> 26.64537937 | Q21: =Q11/$B$21 -> 26.64537937 | R21: 85.2628667 | S21: 49.94143736 | T21: 26.64537937 | U21: 26.64537937 | V21: 26.64537937 | W21: 26.64537937 | X21: 26.64537937 | Y21: 26.64537937 | Z21: 26.64537937 | AA21: 26.64537937 | AB21: 26.64537937 | AC21: 26.64537937 | AD21: 26.64537937 | AE21: 26.47441053 | AF21: 29.54025089 | AG21: 26.81342668 | AH21: 26.33415256 | AI21: 28.83465889 | AJ21: 26.64537937 | AK21: 26.64537937 | AL21: 26.64537937 | AM21: 26.64537937
A22: Services (35 or 40 years straight line) | B22: =IF(B18=C18,35,40) -> 40 | E22: =E12/$B$22 -> 140.756907 | F22: =F12/$B$22 -> 156.7188956 | G22: 178.5252233 | H22: 156.5313581 | I22: 142.7646489 | J22: 156.0799278 | K22: 153.0751633 | L22: 148.724322 | M22: 147.8499997 | N22: 143.7394486 | O22: 138.6763925 | P22: 107.4916792 | Q22: 96.27147641 | R22: 93.66128853 | S22: 89.64887274 | T22: 86.14955688 | U22: 82.83441554 | V22: 77.30917997 | W22: 71.78394439 | X22: 66.25870882 | Y22: 60.73347325 | Z22: 55.20823768 | AA22: 49.68300211 | AB22: 48.76212951 | AC22: 47.84125692 | AD22: 44.58038301 | AE22: 43.65951041 | AF22: 42.73863781 | AG22: 41.81776522 | AH22: 40.89689262 | AI22: 39.97602003 | AJ22: 39.05514743 | AK22: 38.13427484 | AL22: 37.21340224 | AM22: 37.21340224
A23: Meters (15 years straight line) | B23: =IF(B18=C18,15,15) -> 15 | E23: =E13/$B$23 -> 157.2480275 | F23: =F13/$B$23 -> 163.3909476 | G23: 177.3100192 | H23: 161.8487711 | I23: 152.697579 | J23: 210.9465426 | K23: 237.1524554 | L23: 248.7004867 | M23: 285.1552171 | N23: 298.2882392 | O23: 340.7047865 | P23: 366.6180935 | Q23: 309.9441344 | R23: 304.1876608 | S23: 249.4862017 | T23: 222.3123772 | U23: 206.1373693 | V23: 205.5377981 | W23: 193.333144 | X23: 211.5865325 | Y23: 215.500593 | Z23: 228.6685203 | AA23: 277.291094 | AB23: 291.902952 | AC23: 269.7820448 | AD23: 227.6099204 | AE23: 266.8906889 | AF23: 285.7197562 | AG23: 338.2505336 | AH23: 359.847237 | AI23: 383.9873858 | AJ23: 414.621193 | AK23: 357.3079264 | AL23: 350.9121452 | AM23: 350.9121452
A24: Other (40 years straight line) | B24: =IF(B18=C18,40,40) -> 40 | E24: =E14/$B$24 -> 77.07811971 | F24: =F14/$B$24 -> 69.27553251 | G24: 2.517618346 | H24: 2.502512636 | I24: 75.95913479 | J24: 27.52936766 | K24: 27.09047123 | L24: 23.01100697 | M24: 25.56431074 | N24: 22.3952752 | O24: 21.84053615 | P24: 13.14315391 | Q24: 12.02113363 | R24: 17.62186357 | S24: 13.68847906 | T24: 11.00894168 | U24: 10.67742754 | V24: 10.12490398 | W24: 9.572380427 | X24: 9.01985687 | Y24: 8.467333313 | Z24: 7.914809756 | AA24: 7.362286198 | AB24: 7.270198939 | AC24: 7.178111679 | AD24: 6.852024288 | AE24: 6.759937028 | AF24: 6.667849769 | AG24: 6.575762509 | AH24: 6.48367525 | AI24: 6.39158799 | AJ24: 6.299500731 | AK24: 6.207413471 | AL24: 6.115326212 | AM24: 6.115326212
A25: Other (5 years straight line) | B25: =IF(B18=C18,40,5) -> 5 | E25: =E15/$B$25 -> 0 | F25: =F15/$B$25 -> 0 | G25: 0 | H25: 0 | I25: 0 | J25: =J15/$B$25 -> 47.09323759 | K25: 46.60423456 | L25: 46.23028977 | M25: 45.95114751 | N25: 45.67369074 | O25: 45.39790928 | P25: 47.75073678 | Q25: 47.75073678 | R25: 47.75073678 | S25: 47.75073678 | T25: 47.75073678 | U25: 47.75073678 | V25: 47.75073678 | W25: 47.75073678 | X25: 47.75073678 | Y25: 47.75073678 | Z25: 47.75073678 | AA25: 47.75073678 | AB25: 47.75073678 | AC25: 47.75073678 | AD25: 47.75073678 | AE25: 47.75073678 | AF25: 47.75073678 | AG25: 47.75073678 | AH25: =AH15/$B$25 -> 47.75073678 | AI25: 47.75073678 | AJ25: 47.75073678 | AK25: 47.75073678 | AL25: 47.75073678 | AM25: 47.75073678
A27: Depreciation | E27: =B28 -> 34 | F27: =E27-1 -> 33 | G27: =F27-1 -> 32 | H27: 31 | I27: 30 | J27: 29 | K27: 28 | L27: 27 | M27: 26 | N27: 25 | O27: 24 | P27: 23 | Q27: 22 | R27: 21 | S27: 20 | T27: 19 | U27: 18 | V27: 17 | W27: 16 | X27: 15 | Y27: 14 | Z27: 13 | AA27: 12 | AB27: 11 | AC27: 10 | AD27: 9 | AE27: 8 | AF27: 7 | AG27: 6 | AH27: 5 | AI27: 4 | AJ27: 3 | AK27: 2 | AL27: 1 | AM27: 0
A28: Distribution asset (average life remaining) | B28: 34 | E28: =IF(E27>0,$D$37/$E$27,0) -> 12067.91625 | F28: =IF(F27>0,$D$37/$E$27,0) -> 12067.91625 | G28: =IF(G27>0,$D$37/$E$27,0) -> 12067.91625 | H28: 12067.91625 | I28: 12067.91625 | J28: =IF(J27>0,$D$37/$E$27,0) -> 12067.91625 | K28: 12067.91625 | L28: 12067.91625 | M28: =IF(M27>0,$D$37/$E$27,0) -> 12067.91625 | N28: 12067.91625 | O28: 12067.91625 | P28: 12067.91625 | Q28: 12067.91625 | R28: 12067.91625 | S28: 12067.91625 | T28: 12067.91625 | U28: 12067.91625 | V28: 12067.91625 | W28: 12067.91625 | X28: 12067.91625 | Y28: 12067.91625 | Z28: 12067.91625 | AA28: 12067.91625 | AB28: 12067.91625 | AC28: 12067.91625 | AD28: 12067.91625 | AE28: 12067.91625 | AF28: 12067.91625 | AG28: 12067.91625 | AH28: 12067.91625 | AI28: 12067.91625 | AJ28: 12067.91625 | AK28: 12067.91625 | AL28: 12067.91625 | AM28: =IF(AM27>0,($D$37-$E$28-$F$28)/$G$27,0) -> 0
A29: Total Allowed Capex Overspend (average life remaining) | G29: ='Opening Values'!$E$25/'Opening Values'!$E$26 -> 16.06787176 | H29: ='Opening Values'!$E$25/'Opening Values'!$E$26+'Opening Values'!$F$25/'Opening Values'!$F$26 -> 40.82987442 | I29: ='Opening Values'!$E$25/'Opening Values'!$E$26+'Opening Values'!$F$25/'Opening Values'!$F$26+'Opening Values'!$G$25/'Opening Values'!$G$26 -> 56.65600488 | J29: ='Opening Values'!$E$25/'Opening Values'!$E$26+'Opening Values'!$F$25/'Opening Values'!$F$26+'Opening Values'!$G$25/'Opening Values'!$G$26 -> 56.65600488 | K29: ='Opening Values'!$E$25/'Opening Values'!$E$26+'Opening Values'!$F$25/'Opening Values'!$F$26+'Opening Values'!$G$25/'Opening Values'!$G$26 -> 56.65600488 | L29: ='Opening Values'!$E$25/'Opening Values'!$E$26+'Opening Values'!$F$25/'Opening Values'!$F$26+'Opening Values'!$G$25/'Opening Values'!$G$26+'Opening Values'!$J$25/'Opening Values'!$J$26 -> 64.23471946 | M29: ='Opening Values'!$E$25/'Opening Values'!$E$26+'Opening Values'!$F$25/'Opening Values'!$F$26+'Opening Values'!$G$25/'Opening Values'!$G$26+'Opening Values'!$J$25/'Opening Values'!$J$26+'Opening Values'!$K$25/'Opening Values'!$K$26 -> 96.07564828 | N29: ='Opening Values'!$E$25/'Opening Values'!$E$26+'Opening Values'!$F$25/'Opening Values'!$F$26+'Opening Values'!$G$25/'Opening Values'!$G$26+'Opening Values'!$J$25/'Opening Values'!$J$26+'Opening Values'!$K$25/'Opening Values'!$K$26+'Opening Values'!$L$25/'Opening Values'!$L$26 -> 146.5993311 | O29: ='Opening Values'!$E$25/'Opening Values'!$E$26+'Opening Values'!$F$25/'Opening Values'!$F$26+'Opening Values'!$G$25/'Opening Values'!$G$26+'Opening Values'!$J$25/'Opening Values'!$J$26+'Opening Values'!$K$25/'Opening Values'!$K$26+'Opening Values'!$L$25/'Opening Values'!$L$26 -> 146.5993311 | P29: ='Opening Values'!$E$25/'Opening Values'!$E$26+'Opening Values'!$F$25/'Opening Values'!$F$26+'Opening Values'!$G$25/'Opening Values'!$G$26+'Opening Values'!$J$25/'Opening Values'!$J$26+'Opening Values'!$K$25/'Opening Values'!$K$26+'Opening Values'!$L$25/'Opening Values'!$L$26 -> 146.5993311 | Q29: ='Opening Values'!$E$25/'Opening Values'!$E$26+'Opening Values'!$F$25/'Opening Values'!$F$26+'Opening Values'!$G$25/'Opening Values'!$G$26+'Opening Values'!$J$25/'Opening Values'!$J$26+'Opening Values'!$K$25/'Opening Values'!$K$26+'Opening Values'!$L$25/'Opening Values'!$L$26 -> 146.5993311 | R29: ='Opening Values'!$E$25/'Opening Values'!$E$26+'Opening Values'!$F$25/'Opening Values'!$F$26+'Opening Values'!$G$25/'Opening Values'!$G$26+'Opening Values'!$J$25/'Opening Values'!$J$26+'Opening Values'!$K$25/'Opening Values'!$K$26+'Opening Values'!$L$25/'Opening Values'!$L$26 -> 146.5993311 | S29: ='Opening Values'!$E$25/'Opening Values'!$E$26+'Opening Values'!$F$25/'Opening Values'!$F$26+'Opening Values'!$G$25/'Opening Values'!$G$26+'Opening Values'!$J$25/'Opening Values'!$J$26+'Opening Values'!$K$25/'Opening Values'!$K$26+'Opening Values'!$L$25/'Opening Values'!$L$26 -> 146.5993311 | T29: ='Opening Values'!$E$25/'Opening Values'!$E$26+'Opening Values'!$F$25/'Opening Values'!$F$26+'Opening Values'!$G$25/'Opening Values'!$G$26+'Opening Values'!$J$25/'Opening Values'!$J$26+'Opening Values'!$K$25/'Opening Values'!$K$26+'Opening Values'!$L$25/'Opening Values'!$L$26 -> 146.5993311 | U29: ='Opening Values'!$E$25/'Opening Values'!$E$26+'Opening Values'!$F$25/'Opening Values'!$F$26+'Opening Values'!$G$25/'Opening Values'!$G$26+'Opening Values'!$J$25/'Opening Values'!$J$26+'Opening Values'!$K$25/'Opening Values'!$K$26+'Opening Values'!$L$25/'Opening Values'!$L$26 -> 146.5993311 | V29: ='Opening Values'!$E$25/'Opening Values'!$E$26+'Opening Values'!$F$25/'Opening Values'!$F$26+'Opening Values'!$G$25/'Opening Values'!$G$26+'Opening Values'!$J$25/'Opening Values'!$J$26+'Opening Values'!$K$25/'Opening Values'!$K$26+'Opening Values'!$L$25/'Opening Values'!$L$26 -> 146.5993311 | W29: ='Opening Values'!$E$25/'Opening Values'!$E$26+'Opening Values'!$F$25/'Opening Values'!$F$26+'Opening Values'!$G$25/'Opening Values'!$G$26+'Opening Values'!$J$25/'Opening Values'!$J$26+'Opening Values'!$K$25/'Opening Values'!$K$26+'Opening Values'!$L$25/'Opening Values'!$L$26 -> 146.5993311 | X29: ='Opening Values'!$E$25/'Opening Values'!$E$26+'Opening Values'!$F$25/'Opening Values'!$F$26+'Opening Values'!$G$25/'Opening Values'!$G$26+'Opening Values'!$J$25/'Opening Values'!$J$26+'Opening Values'!$K$25/'Opening Values'!$K$26+'Opening Values'!$L$25/'Opening Values'!$L$26 -> 146.5993311 | Y29: ='Opening Values'!$E$25/'Opening Values'!$E$26+'Opening Values'!$F$25/'Opening Values'!$F$26+'Opening Values'!$G$25/'Opening Values'!$G$26+'Opening Values'!$J$25/'Opening Values'!$J$26+'Opening Values'!$K$25/'Opening Values'!$K$26+'Opening Values'!$L$25/'Opening Values'!$L$26 -> 146.5993311 | Z29: ='Opening Values'!$E$25/'Opening Values'!$E$26+'Opening Values'!$F$25/'Opening Values'!$F$26+'Opening Values'!$G$25/'Opening Values'!$G$26+'Opening Values'!$J$25/'Opening Values'!$J$26+'Opening Values'!$K$25/'Opening Values'!$K$26+'Opening Values'!$L$25/'Opening Values'!$L$26 -> 146.5993311 | AA29: ='Opening Values'!$E$25/'Opening Values'!$E$26+'Opening Values'!$F$25/'Opening Values'!$F$26+'Opening Values'!$G$25/'Opening Values'!$G$26+'Opening Values'!$K$25/'Opening Values'!$K$26+'Opening Values'!$L$25/'Opening Values'!$L$26 -> 139.0206165 | AB29: ='Opening Values'!$E$25/'Opening Values'!$E$26+'Opening Values'!$F$25/'Opening Values'!$F$26+'Opening Values'!$G$25/'Opening Values'!$G$26+'Opening Values'!$K$25/'Opening Values'!$K$26+'Opening Values'!$L$25/'Opening Values'!$L$26 -> 139.0206165 | AC29: ='Opening Values'!$E$25/'Opening Values'!$E$26+'Opening Values'!$F$25/'Opening Values'!$F$26+'Opening Values'!$G$25/'Opening Values'!$G$26+'Opening Values'!$K$25/'Opening Values'!$K$26+'Opening Values'!$L$25/'Opening Values'!$L$26 -> 139.0206165 | AD29: ='Opening Values'!$E$25/'Opening Values'!$E$26+'Opening Values'!$F$25/'Opening Values'!$F$26+'Opening Values'!$G$25/'Opening Values'!$G$26+'Opening Values'!$K$25/'Opening Values'!$K$26+'Opening Values'!$L$25/'Opening Values'!$L$26 -> 139.0206165 | AE29: ='Opening Values'!$F$25/'Opening Values'!$F$26+'Opening Values'!$K$25/'Opening Values'!$K$26+'Opening Values'!$L$25/'Opening Values'!$L$26 -> 107.1266143 | AF29: ='Opening Values'!$F$25/'Opening Values'!$F$26+'Opening Values'!$K$25/'Opening Values'!$K$26+'Opening Values'!$L$25/'Opening Values'!$L$26 -> 107.1266143 | AG29: ='Opening Values'!$K$25/'Opening Values'!$K$26+'Opening Values'!$L$25/'Opening Values'!$L$26 -> 82.3646116 | AH29: ='Opening Values'!$K$25/'Opening Values'!$K$26+'Opening Values'!$L$25/'Opening Values'!$L$26 -> 82.3646116 | AI29: ='Opening Values'!$K$25/'Opening Values'!$K$26+'Opening Values'!$L$25/'Opening Values'!$L$26 -> 82.3646116 | AJ29: ='Opening Values'!$K$25/'Opening Values'!$K$26+'Opening Values'!$L$25/'Opening Values'!$L$26 -> 82.3646116 | AK29: ='Opening Values'!$L$25/'Opening Values'!$L$26 -> 50.52368278 | AL29: ='Opening Values'!$L$25/'Opening Values'!$L$26 -> 50.52368278 | AM29: ='Opening Values'!$L$25/'Opening Values'!$L$26 -> 50.52368278
A30: Mains (40 years straight line) | E30: =IF($B$18=$C$18,SUM($E$21:E$21),SUM($E$21:E$21)) -> 50.53472219 | F30: =IF($B$18=$C$18,SUM($E$21:F$21),SUM($E$21:F$21)) -> 107.2180989 | G30: =IF($B$18=$C$18,SUM($E$21:G$21),SUM($E$21:G$21)) -> 178.0660789 | H30: =IF($B$18=$C$18,SUM($E$21:H$21),SUM($E$21:H$21)) -> 249.1131668 | I30: =IF($B$18=$C$18,SUM($E$21:I$21),SUM($E$21:I$21)) -> 311.3437569 | J30: =IF($B$18=$C$18,SUM($E$21:J$21),SUM($E$21:J$21)) -> 474.2869013 | K30: =IF($B$18=$C$18,SUM($E$21:K$21),SUM($E$21:K$21)) -> 594.5901438 | L30: =IF($B$18=$C$18,SUM($E$21:L$21),SUM($E$21:L$21)) -> 681.3979539 | M30: =IF($B$18=$C$18,SUM($E$21:M$21),SUM($E$21:M$21)) -> 606.0379126 | N30: =IF($B$18=$C$18,SUM($E$21:N$21),SUM($E$21:N$21)) -> 688.5413606 | O30: =IF($B$18=$C$18,SUM($E$21:O$21),SUM($E$21:O$21)) -> 769.7952431 | P30: =IF($B$18=$C$18,SUM($E$21:P$21),SUM($E$21:P$21)) -> 796.4406224 | Q30: =IF($B$18=$C$18,SUM($E$21:Q$21),SUM($E$21:Q$21)) -> 823.0860018 | R30: =IF($B$18=$C$18,SUM($E$21:R$21),SUM($E$21:R$21)) -> 908.3488685 | S30: =IF($B$18=$C$18,SUM($E$21:S$21),SUM($E$21:S$21)) -> 958.2903059 | T30: =IF($B$18=$C$18,SUM($E$21:T$21),SUM($E$21:T$21)) -> 984.9356852 | U30: =IF($B$18=$C$18,SUM($E$21:U$21),SUM($E$21:U$21)) -> 1011.581065 | V30: =IF($B$18=$C$18,SUM($E$21:V$21),SUM($E$21:V$21)) -> 1038.226444 | W30: =IF($B$18=$C$18,SUM($E$21:W$21),SUM($E$21:W$21)) -> 1064.871823 | X30: =IF($B$18=$C$18,SUM($E$21:X$21),SUM($E$21:X$21)) -> 1091.517203 | Y30: =IF($B$18=$C$18,SUM($E$21:Y$21),SUM($E$21:Y$21)) -> 1118.162582 | Z30: =IF($B$18=$C$18,SUM($E$21:Z$21),SUM($E$21:Z$21)) -> 1144.807961 | AA30: =IF($B$18=$C$18,SUM($E$21:AA$21),SUM($E$21:AA$21)) -> 1171.453341 | AB30: =IF($B$18=$C$18,SUM($E$21:AB$21),SUM($E$21:AB$21)) -> 1198.09872 | AC30: =IF($B$18=$C$18,SUM($E$21:AC$21),SUM($E$21:AC$21)) -> 1224.7441 | AD30: =IF($B$18=$C$18,SUM($E$21:AD$21),SUM($E$21:AD$21)) -> 1251.389479 | AE30: =IF($B$18=$C$18,SUM($E$21:AE$21),SUM($E$21:AE$21)) -> 1277.863889 | AF30: =IF($B$18=$C$18,SUM($E$21:AF$21),SUM($E$21:AF$21)) -> 1307.40414 | AG30: =IF($B$18=$C$18,SUM($E$21:AG$21),SUM($E$21:AG$21)) -> 1334.217567 | AH30: =IF($B$18=$C$18,SUM($E$21:AH$21),SUM($E$21:AH$21)) -> 1360.55172 | AI30: =IF($B$18=$C$18,SUM($E$21:AI$21),SUM($E$21:AI$21)) -> 1389.386378 | AJ30: =IF($B$18=$C$18,SUM($E$21:AJ$21),SUM($E$21:AJ$21)) -> 1416.031758 | AK30: =IF($B$18=$C$18,SUM($E$21:AK$21),SUM($E$21:AK$21)) -> 1442.677137 | AL30: =IF($B$18=$C$18,SUM($E$21:AL$21),SUM($E$21:AL$21)) -> 1469.322517 | AM30: =IF($B$18=$C$18,SUM($E$21:AM$21),SUM($E$21:AM$21)) -> 1495.967896
A31: Services (35 or 40 years straight line) | E31: =IF($B$18=$C$18,SUM($E$22:E22),SUM($E$22:E22)) -> 140.756907 | F31: =IF($B$18=$C$18,SUM($E$22:F22),SUM($E$22:F22)) -> 297.4758026 | G31: =IF($B$18=$C$18,SUM($E$22:G22),SUM($E$22:G22)) -> 476.0010258 | H31: =IF($B$18=$C$18,SUM($E$22:H22),SUM($E$22:H22)) -> 632.532384 | I31: =IF($B$18=$C$18,SUM($E$22:I22),SUM($E$22:I22)) -> 775.2970328 | J31: =IF($B$18=$C$18,SUM($E$22:J22),SUM($E$22:J22)) -> 931.3769607 | K31: =IF($B$18=$C$18,SUM($E$22:K22),SUM($E$22:K22)) -> 1084.452124 | L31: =IF($B$18=$C$18,SUM($E$22:L22),SUM($E$22:L22)) -> 1233.176446 | M31: =IF($B$18=$C$18,SUM($E$22:M22),SUM($E$22:M22)) -> 1381.026446 | N31: =IF($B$18=$C$18,SUM($E$22:N22),SUM($E$22:N22)) -> 1524.765894 | O31: =IF($B$18=$C$18,SUM($E$22:O22),SUM($E$22:O22)) -> 1663.442287 | P31: =IF($B$18=$C$18,SUM($E$22:P22),SUM($E$22:P22)) -> 1770.933966 | Q31: =IF($B$18=$C$18,SUM($E$22:Q22),SUM($E$22:Q22)) -> 1867.205442 | R31: =IF($B$18=$C$18,SUM($E$22:R22),SUM($E$22:R22)) -> 1960.866731 | S31: =IF($B$18=$C$18,SUM($E$22:S22),SUM($E$22:S22)) -> 2050.515604 | T31: =IF($B$18=$C$18,SUM($E$22:T22),SUM($E$22:T22)) -> 2136.665161 | U31: =IF($B$18=$C$18,SUM($E$22:U22),SUM($E$22:U22)) -> 2219.499576 | V31: =IF($B$18=$C$18,SUM($E$22:V22),SUM($E$22:V22)) -> 2296.808756 | W31: =IF($B$18=$C$18,SUM($E$22:W22),SUM($E$22:W22)) -> 2368.592701 | X31: =IF($B$18=$C$18,SUM($E$22:X22),SUM($E$22:X22)) -> 2434.851409 | Y31: =IF($B$18=$C$18,SUM($E$22:Y22),SUM($E$22:Y22)) -> 2495.584883 | Z31: =IF($B$18=$C$18,SUM($E$22:Z22),SUM($E$22:Z22)) -> 2550.79312 | AA31: =IF($B$18=$C$18,SUM($E$22:AA22),SUM($E$22:AA22)) -> 2600.476122 | AB31: =IF($B$18=$C$18,SUM($E$22:AB22),SUM($E$22:AB22)) -> 2649.238252 | AC31: =IF($B$18=$C$18,SUM($E$22:AC22),SUM($E$22:AC22)) -> 2697.079509 | AD31: =IF($B$18=$C$18,SUM($E$22:AD22),SUM($E$22:AD22)) -> 2741.659892 | AE31: =IF($B$18=$C$18,SUM($E$22:AE22),SUM($E$22:AE22)) -> 2785.319402 | AF31: =IF($B$18=$C$18,SUM($E$22:AF22),SUM($E$22:AF22)) -> 2828.05804 | AG31: =IF($B$18=$C$18,SUM($E$22:AG22),SUM($E$22:AG22)) -> 2869.875805 | AH31: =IF($B$18=$C$18,SUM($E$22:AH22),SUM($E$22:AH22)) -> 2910.772698 | AI31: =IF($B$18=$C$18,SUM($E$22:AI22),SUM($E$22:AI22)) -> 2950.748718 | AJ31: =IF($B$18=$C$18,SUM($E$22:AJ22),SUM($E$22:AJ22)) -> 2989.803865 | AK31: =IF($B$18=$C$18,SUM($E$22:AK22),SUM($E$22:AK22)) -> 3027.93814 | AL31: =IF($B$18=$C$18,SUM($E$22:AL22),SUM($E$22:AL22)) -> 3065.151542 | AM31: =IF($B$18=$C$18,SUM($E$22:AM22),SUM($E$22:AM22)) -> 3102.364945
A32: Meters (15 years straight line) | E32: =IF($B$18=$C$18,SUM($E$23:E23),SUM($E$23:E23)) -> 157.2480275 | F32: =IF($B$18=$C$18,SUM($E$23:F23),SUM($E$23:F23)) -> 320.6389751 | G32: =IF($B$18=$C$18,SUM($E$23:G23),SUM($E$23:G23)) -> 497.9489944 | H32: =IF($B$18=$C$18,SUM($E$23:H23),SUM($E$23:H23)) -> 659.7977655 | I32: =IF($B$18=$C$18,SUM($E$23:I23),SUM($E$23:I23)) -> 812.4953444 | J32: =IF($B$18=$C$18,SUM($E$23:J23),SUM($E$23:J23)) -> 1023.441887 | K32: =IF($B$18=$C$18,SUM($E$23:K23),SUM($E$23:K23)) -> 1260.594343 | L32: =IF($B$18=$C$18,SUM($E$23:L23),SUM($E$23:L23)) -> 1509.294829 | M32: =IF($B$18=$C$18,SUM($E$23:M23),SUM($E$23:M23)) -> 1794.450046 | N32: =IF($B$18=$C$18,SUM($E$23:N23),SUM($E$23:N23)) -> 2092.738286 | O32: =IF($B$18=$C$18,SUM($E$23:O23),SUM($E$23:O23)) -> 2433.443072 | P32: =IF($B$18=$C$18,SUM($E$23:P23),SUM($E$23:P23)) -> 2800.061166 | Q32: =IF($B$18=$C$18,SUM($E$23:Q23),SUM($E$23:Q23)) -> 3110.0053 | R32: =IF($B$18=$C$18,SUM($E$23:R23),SUM($E$23:R23)) -> 3414.192961 | S32: =IF($B$18=$C$18,SUM(E23:S23),SUM(E23:S23)) -> 3663.679163 | T32: =IF($B$18=$C$18,SUM(F23:T23),SUM(F23:T23)) -> 3728.743512 | U32: =IF($B$18=$C$18,SUM(G23:U23),SUM(G23:U23)) -> 3771.489934 | V32: =IF($B$18=$C$18,SUM(H23:V23),SUM(H23:V23)) -> 3799.717713 | W32: 3831.202086 | X32: 3890.091039 | Y32: 3894.64509 | Z32: 3886.161155 | AA32: 3914.751762 | AB32: 3921.499497 | AC32: 3892.993302 | AD32: 3779.898436 | AE32: 3680.171032 | AF32: 3655.946653 | AG32: 3690.009526 | AH32: 3800.370561 | AI32: 3962.04557 | AJ32: 4170.529394 | AK32: 4322.299522 | AL32: 4479.878523 | AM32: =IF($B$18=$C$18,SUM(Y23:AM23),SUM(Y23:AM23)) -> 4619.204136
A33: Other (40 years straight line) | E33: =IF($B$18=$C$18,SUM($E$24:E24),SUM($E$24:E24)) -> 77.07811971 | F33: =IF($B$18=$C$18,SUM($E$24:F24),SUM($E$24:F24)) -> 146.3536522 | G33: =IF($B$18=$C$18,SUM($E$24:G24),SUM($E$24:G24)) -> 148.8712706 | H33: =IF($B$18=$C$18,SUM($E$24:H24),SUM($E$24:H24)) -> 151.3737832 | I33: =IF($B$18=$C$18,SUM($E$24:I24),SUM($E$24:I24)) -> 227.332918 | J33: =IF($B$18=$C$18,SUM($E$24:J24),SUM($E$24:J24)) -> 254.8622857 | K33: =IF($B$18=$C$18,SUM($E$24:K24),SUM($E$24:K24)) -> 281.9527569 | L33: =IF($B$18=$C$18,SUM($E$24:L24),SUM($E$24:L24)) -> 304.9637639 | M33: =IF($B$18=$C$18,SUM($E$24:M24),SUM($E$24:M24)) -> 330.5280746 | N33: =IF($B$18=$C$18,SUM($E$24:N24),SUM($E$24:N24)) -> 352.9233498 | O33: =IF($B$18=$C$18,SUM($E$24:O24),SUM($E$24:O24)) -> 374.7638859 | P33: =IF($B$18=$C$18,SUM($E$24:P24),SUM($E$24:P24)) -> 387.9070398 | Q33: =IF($B$18=$C$18,SUM($E$24:Q24),SUM($E$24:Q24)) -> 399.9281735 | R33: =IF($B$18=$C$18,SUM($E$24:R24),SUM($E$24:R24)) -> 417.550037 | S33: =IF($B$18=$C$18,SUM($E$24:S24),SUM($E$24:S24)) -> 431.2385161 | T33: =IF($B$18=$C$18,SUM($E$24:T24),SUM($E$24:T24)) -> 442.2474578 | U33: =IF($B$18=$C$18,SUM($E$24:U24),SUM($E$24:U24)) -> 452.9248853 | V33: =IF($B$18=$C$18,SUM($E$24:V24),SUM($E$24:V24)) -> 463.0497893 | W33: =IF($B$18=$C$18,SUM($E$24:W24),SUM($E$24:W24)) -> 472.6221697 | X33: =IF($B$18=$C$18,SUM($E$24:X24),SUM($E$24:X24)) -> 481.6420266 | Y33: =IF($B$18=$C$18,SUM($E$24:Y24),SUM($E$24:Y24)) -> 490.1093599 | Z33: =IF($B$18=$C$18,SUM($E$24:Z24),SUM($E$24:Z24)) -> 498.0241697 | AA33: =IF($B$18=$C$18,SUM($E$24:AA24),SUM($E$24:AA24)) -> 505.3864559 | AB33: =IF($B$18=$C$18,SUM($E$24:AB24),SUM($E$24:AB24)) -> 512.6566548 | AC33: =IF($B$18=$C$18,SUM($E$24:AC24),SUM($E$24:AC24)) -> 519.8347665 | AD33: =IF($B$18=$C$18,SUM($E$24:AD24),SUM($E$24:AD24)) -> 526.6867908 | AE33: =IF($B$18=$C$18,SUM($E$24:AE24),SUM($E$24:AE24)) -> 533.4467278 | AF33: =IF($B$18=$C$18,SUM($E$24:AF24),SUM($E$24:AF24)) -> 540.1145776 | AG33: =IF($B$18=$C$18,SUM($E$24:AG24),SUM($E$24:AG24)) -> 546.6903401 | AH33: =IF($B$18=$C$18,SUM($E$24:AH24),SUM($E$24:AH24)) -> 553.1740153 | AI33: =IF($B$18=$C$18,SUM($E$24:AI24),SUM($E$24:AI24)) -> 559.5656033 | AJ33: =IF($B$18=$C$18,SUM($E$24:AJ24),SUM($E$24:AJ24)) -> 565.8651041 | AK33: =IF($B$18=$C$18,SUM($E$24:AK24),SUM($E$24:AK24)) -> 572.0725175 | AL33: =IF($B$18=$C$18,SUM($E$24:AL24),SUM($E$24:AL24)) -> 578.1878437 | AM33: =IF($B$18=$C$18,SUM($E$24:AM24),SUM($E$24:AM24)) -> 584.30317
A34: Other (5 years straight line) | E34: =IF($B$18=$C$18,SUM($E$25:E25),SUM($E$25:E25)) -> 0 | F34: =IF($B$18=$C$18,SUM($E$25:F25),SUM($E$25:F25)) -> 0 | G34: =IF($B$18=$C$18,SUM($E$25:G25),SUM($E$25:G25)) -> 0 | H34: =IF($B$18=$C$18,SUM($E$25:H25),SUM($E$25:H25)) -> 0 | I34: =IF($B$18=$C$18,SUM($E$25:I25),SUM(E25:I25)) -> 0 | J34: =IF($B$18=$C$18,SUM($E$25:J25),SUM(F25:J25)) -> 47.09323759 | K34: =IF($B$18=$C$18,SUM($E$25:K25),SUM(G25:K25)) -> 93.69747215 | L34: =IF($B$18=$C$18,SUM($E$25:L25),SUM(H25:L25)) -> 139.9277619 | M34: =IF($B$18=$C$18,SUM($E$25:M25),SUM(I25:M25)) -> 185.8789094 | N34: =IF($B$18=$C$18,SUM($E$25:N25),SUM(J25:N25)) -> 231.5526002 | O34: =IF($B$18=$C$18,SUM($E$25:O25),SUM(K25:O25)) -> 229.8572719 | P34: =IF($B$18=$C$18,SUM($E$25:P25),SUM(L25:P25)) -> 231.0037741 | Q34: =IF($B$18=$C$18,SUM($E$25:Q25),SUM(M25:Q25)) -> 232.5242211 | R34: =IF($B$18=$C$18,SUM($E$25:R25),SUM(N25:R25)) -> 234.3238104 | S34: =IF($B$18=$C$18,SUM($E$25:S25),SUM(O25:S25)) -> 236.4008564 | T34: =IF($B$18=$C$18,SUM($E$25:T25),SUM(P25:T25)) -> 238.7536839 | U34: =IF($B$18=$C$18,SUM($E$25:U25),SUM(Q25:U25)) -> 238.7536839 | V34: =IF($B$18=$C$18,SUM($E$25:V25),SUM(R25:V25)) -> 238.7536839 | W34: =IF($B$18=$C$18,SUM($E$25:W25),SUM(S25:W25)) -> 238.7536839 | X34: =IF($B$18=$C$18,SUM($E$25:X25),SUM(T25:X25)) -> 238.7536839 | Y34: =IF($B$18=$C$18,SUM($E$25:Y25),SUM(U25:Y25)) -> 238.7536839 | Z34: =IF($B$18=$C$18,SUM($E$25:Z25),SUM(V25:Z25)) -> 238.7536839 | AA34: =IF($B$18=$C$18,SUM($E$25:AA25),SUM(W25:AA25)) -> 238.7536839 | AB34: =IF($B$18=$C$18,SUM($E$25:AB25),SUM(X25:AB25)) -> 238.7536839 | AC34: =IF($B$18=$C$18,SUM($E$25:AC25),SUM(Y25:AC25)) -> 238.7536839 | AD34: =IF($B$18=$C$18,SUM($E$25:AD25),SUM(Z25:AD25)) -> 238.7536839 | AE34: =IF($B$18=$C$18,SUM($E$25:AE25),SUM(AA25:AE25)) -> 238.7536839 | AF34: =IF($B$18=$C$18,SUM($E$25:AF25),SUM(AB25:AF25)) -> 238.7536839 | AG34: =IF($B$18=$C$18,SUM($E$25:AG25),SUM(AC25:AG25)) -> 238.7536839 | AH34: =IF($B$18=$C$18,SUM($E$25:AH25),SUM(AD25:AH25)) -> 238.7536839 | AI34: =IF($B$18=$C$18,SUM($E$25:AI25),SUM(AE25:AI25)) -> 238.7536839 | AJ34: =IF($B$18=$C$18,SUM($E$25:AJ25),SUM(AF25:AJ25)) -> 238.7536839 | AK34: =IF($B$18=$C$18,SUM($E$25:AK25),SUM(AG25:AK25)) -> 238.7536839 | AL34: =IF($B$18=$C$18,SUM($E$25:AL25),SUM(AH25:AL25)) -> 238.7536839 | AM34: =IF($B$18=$C$18,SUM($E$25:AM25),SUM(AI25:AM25)) -> 238.7536839
A35: Total Depreciation | E35: =SUM(E28:E34) -> 12493.53403 | F35: =SUM(F28:F34) -> 12939.60278 | G35: 13384.87149 | H35: 13801.56322 | I35: 14251.04131 | J35: 14855.63353 | K35: 15439.85909 | L35: 16000.91172 | M35: 16461.91329 | N35: 17105.03707 | O35: 17685.81734 | P35: 18200.86215 | Q35: 18647.26472 | R35: 19149.79799 | S35: 19554.64002 | T35: 19745.86108 | U35: 19908.76472 | V35: 20051.07197 | W35: 20190.55804 | X35: 20351.37094 | Y35: 20451.77118 | Z35: 20533.05567 | AA35: 20637.75823 | AB35: 20727.18367 | AC35: 20780.34223 | AD35: 20745.32515 | AE35: 20690.5976 | AF35: 20745.31996 | AG35: 20829.82778 | AH35: 21013.90354 | AI35: 21250.78081 | AJ35: 21531.26467 | AK35: 21722.18093 | AL35: 21949.73404 | AM35: =SUM(AM28:AM34) -> 10091.11751
A37: Closing DAV | D37: =388965.431017349/rpi*rpi_14 -> 410309.1525 | E37: =E$8+E$16-E$35 -> 410909.1288 | F37: =F$8+F$16-F$35 -> 411727.5024 | G37: 411463.543 | H37: 409911.9998 | I37: 409537.772 | J37: 411900.171 | K37: =K$8+K$16-K$35 -> 412269.375 | L37: 410685.5283 | M37: 403968.8855 | N37: 402876.2068 | O37: 400198.7832 | P37: 393627.1547 | Q37: 385265.3252 | R37: 378778.9366 | S37: 369336.4948 | T37: 358116.2282 | U37: 346344.5666 | V37: 334178.4938 | W37: 321446.7548 | X37: 308584.8933 | Y37: 295438.2322 | Z37: 282164.6951 | AA37: 269272.6837 | AB37: 256469.9063 | AC37: 243241.6383 | AD37: 229272.3271 | AE37: 215899.5978 | AF37: 202836.6975 | AG37: 190327.6595 | AH37: 177898.8071 | AI37: 165654.6814 | AJ37: 153461.4894 | AK37: 140177.1638 | AL37: 126528.8299 | AM37: =AM$8+AM$16-AM$35 -> 124739.1126

Sheet Pi's Calc
A1: PNGL 'P' Tariff Model - Calculation of Pi tariffs, Allowed Revenues, PA and TRV
D2: Return
D3: GD17 | E3: =IF(Inputs!B128=Inputs!B129,5.2%,IF(Inputs!B128=Inputs!B130,4.3%,IF(Inputs!B128=Inputs!B131,4.3%,0))) -> 0.043
A4: p | B4: Sep £2014 | D4: Post GD17 | E4: =E3 -> 0.043
B5: £'000
A6: Real Return pa | D6: =E3 -> 0.043 | E6: =D6 -> 0.043 | F6: =E6 -> 0.043 | G6: =E4 -> 0.043 | H6: =G6 -> 0.043 | I6: =H6 -> 0.043 | J6: 0.043 | K6: 0.043 | L6: 0.043 | M6: 0.043 | N6: 0.043 | O6: 0.043 | P6: 0.043 | Q6: 0.043 | R6: 0.043 | S6: 0.043 | T6: 0.043 | U6: 0.043 | V6: 0.043 | W6: 0.043 | X6: 0.043 | Y6: 0.043 | Z6: =Y6 -> 0.043 | AA6: 0.043 | AB6: 0.043 | AC6: 0.043 | AD6: 0.043 | AE6: 0.043 | AF6: 0.043 | AG6: 0.043
A7: Discount Factor (Yr End) | C7: 1 | D7: =C7/(1+D6) -> 0.9587727709 | E7: 0.9192452261 | F7: 0.8813472926 | G7: 0.8450117858 | H7: 0.8101742912 | I7: 0.7767730501 | J7: 0.7447488496 | K7: 0.7140449181 | L7: 0.6846068246 | M7: 0.6563823822 | N7: 0.6293215553 | O7: 0.6033763713 | P7: 0.5785008354 | Q7: 0.5546508489 | R7: 0.5317841313 | S7: 0.509860145 | T7: 0.488840024 | U7: 0.4686865043 | V7: 0.4493638584 | W7: 0.4308378316 | X7: 0.4130755816 | Y7: 0.39604562 | Z7: 0.3797177564 | AA7: 0.3640630455 | AB7: 0.3490537349 | AC7: 0.3346632166 | AD7: 0.3208659795 | AE7: 0.3076375642 | AF7: 0.2949545198 | AG7: 0.2827943623
G10: IMPORTANT NOTE: Values from 2017 Onwards are forecasts and will be determined as part of the Next Price Control. This Model is re-run at each Price Control Period, to calculate allowed Revenues.
C11: 2016 | D11: 2017 | E11: =D11+1 -> 2018 | F11: 2019 | G11: 2020 | H11: 2021 | I11: 2022 | J11: 2023 | K11: 2024 | L11: 2025 | M11: 2026 | N11: 2027 | O11: 2028 | P11: 2029 | Q11: 2030 | R11: 2031 | S11: 2032 | T11: 2033 | U11: 2034 | V11: 2035 | W11: 2036 | X11: 2037 | Y11: =X11+1 -> 2038 | Z11: =Y11+1 -> 2039 | AA11: 2040 | AB11: 2041 | AC11: 2042 | AD11: 2043 | AE11: 2044 | AF11: 2045 | AG11: 2046
A13: Capex | D13: =IF(Inputs!$B$128=Inputs!$B$129,Inputs!J86/1000,IF(Inputs!$B$128=Inputs!$B$130,Inputs!J87/1000,IF(Inputs!$B$128=Inputs!$B$131,Inputs!J88/1000))) -> 11811.07228 | E13: =IF(Inputs!$B$128=Inputs!$B$129,Inputs!K86/1000,IF(Inputs!$B$128=Inputs!$B$130,Inputs!K87/1000,IF(Inputs!$B$128=Inputs!$B$131,Inputs!K88/1000))) -> 13823.01606 | F13: =IF(Inputs!$B$128=Inputs!$B$129,Inputs!L86/1000,IF(Inputs!$B$128=Inputs!$B$130,Inputs!L87/1000,IF(Inputs!$B$128=Inputs!$B$131,Inputs!L88/1000))) -> 14303.38431 | G13: =IF(Inputs!$B$128=Inputs!$B$129,Inputs!M86/1000,IF(Inputs!$B$128=Inputs!$B$130,Inputs!M87/1000,IF(Inputs!$B$128=Inputs!$B$131,Inputs!M88/1000))) -> 15865.99143 | H13: =IF(Inputs!$B$128=Inputs!$B$129,Inputs!N86/1000,IF(Inputs!$B$128=Inputs!$B$130,Inputs!N87/1000,IF(Inputs!$B$128=Inputs!$B$131,Inputs!N88/1000))) -> 14648.21891 | I13: =IF(Inputs!$B$128=Inputs!$B$129,Inputs!O86/1000,IF(Inputs!$B$128=Inputs!$B$130,Inputs!O87/1000,IF(Inputs!$B$128=Inputs!$B$131,Inputs!O88/1000))) -> 15008.39379 | J13: =IF(Inputs!$B$128=Inputs!$B$129,Inputs!P86/1000,IF(Inputs!$B$128=Inputs!$B$130,Inputs!P87/1000,IF(Inputs!$B$128=Inputs!$B$131,Inputs!P88/1000))) -> 11629.23359 | K13: =IF(Inputs!$B$128=Inputs!$B$129,Inputs!Q86/1000,IF(Inputs!$B$128=Inputs!$B$130,Inputs!Q87/1000,IF(Inputs!$B$128=Inputs!$B$131,Inputs!Q88/1000))) -> 10285.43528 | L13: =IF(Inputs!$B$128=Inputs!$B$129,Inputs!R86/1000,IF(Inputs!$B$128=Inputs!$B$130,Inputs!R87/1000,IF(Inputs!$B$128=Inputs!$B$131,Inputs!R88/1000))) -> 12663.40935 | M13: =IF(Inputs!$B$128=Inputs!$B$129,Inputs!S86/1000,IF(Inputs!$B$128=Inputs!$B$130,Inputs!S87/1000,IF(Inputs!$B$128=Inputs!$B$131,Inputs!S88/1000))) -> 10112.19828 | N13: =IF(Inputs!$B$128=Inputs!$B$129,Inputs!T86/1000,IF(Inputs!$B$128=Inputs!$B$130,Inputs!T87/1000,IF(Inputs!$B$128=Inputs!$B$131,Inputs!T88/1000))) -> 8525.594459 | O13: =IF(Inputs!$B$128=Inputs!$B$129,Inputs!U86/1000,IF(Inputs!$B$128=Inputs!$B$130,Inputs!U87/1000,IF(Inputs!$B$128=Inputs!$B$131,Inputs!U88/1000))) -> 8137.103122 | P13: =IF(Inputs!$B$128=Inputs!$B$129,Inputs!V86/1000,IF(Inputs!$B$128=Inputs!$B$130,Inputs!V87/1000,IF(Inputs!$B$128=Inputs!$B$131,Inputs!V88/1000))) -> 7884.999188 | Q13: =IF(Inputs!$B$128=Inputs!$B$129,Inputs!W86/1000,IF(Inputs!$B$128=Inputs!$B$130,Inputs!W87/1000,IF(Inputs!$B$128=Inputs!$B$131,Inputs!W88/1000))) -> 7458.819012 | R13: =IF(Inputs!$B$128=Inputs!$B$129,Inputs!X86/1000,IF(Inputs!$B$128=Inputs!$B$130,Inputs!X87/1000,IF(Inputs!$B$128=Inputs!$B$131,Inputs!X88/1000))) -> 7489.509474 | S13: =IF(Inputs!$B$128=Inputs!$B$129,Inputs!Y86/1000,IF(Inputs!$B$128=Inputs!$B$130,Inputs!Y87/1000,IF(Inputs!$B$128=Inputs!$B$131,Inputs!Y88/1000))) -> 7305.110016 | T13: =IF(Inputs!$B$128=Inputs!$B$129,Inputs!Z86/1000,IF(Inputs!$B$128=Inputs!$B$130,Inputs!Z87/1000,IF(Inputs!$B$128=Inputs!$B$131,Inputs!Z88/1000))) -> 7259.518561 | U13: =IF(Inputs!$B$128=Inputs!$B$129,Inputs!AA86/1000,IF(Inputs!$B$128=Inputs!$B$130,Inputs!AA87/1000,IF(Inputs!$B$128=Inputs!$B$131,Inputs!AA88/1000))) -> 7745.746801 | V13: =IF(Inputs!$B$128=Inputs!$B$129,Inputs!AB86/1000,IF(Inputs!$B$128=Inputs!$B$130,Inputs!AB87/1000,IF(Inputs!$B$128=Inputs!$B$131,Inputs!AB88/1000))) -> 7924.406276 | W13: =IF(Inputs!$B$128=Inputs!$B$129,Inputs!AC86/1000,IF(Inputs!$B$128=Inputs!$B$130,Inputs!AC87/1000,IF(Inputs!$B$128=Inputs!$B$131,Inputs!AC88/1000))) -> 7552.074275 | X13: =IF(Inputs!$B$128=Inputs!$B$129,Inputs!AD86/1000,IF(Inputs!$B$128=Inputs!$B$130,Inputs!AD87/1000,IF(Inputs!$B$128=Inputs!$B$131,Inputs!AD88/1000))) -> 6776.013956 | Y13: =IF(Inputs!$B$128=Inputs!$B$129,Inputs!AE86/1000,IF(Inputs!$B$128=Inputs!$B$130,Inputs!AE87/1000,IF(Inputs!$B$128=Inputs!$B$131,Inputs!AE88/1000))) -> 7317.868335 | Z13: =IF(Inputs!$B$128=Inputs!$B$129,Inputs!AF86/1000,IF(Inputs!$B$128=Inputs!$B$130,Inputs!AF87/1000,IF(Inputs!$B$128=Inputs!$B$131,Inputs!AF88/1000))) -> 7682.419565 | AA13: =IF(Inputs!$B$128=Inputs!$B$129,Inputs!AG86/1000,IF(Inputs!$B$128=Inputs!$B$130,Inputs!AG87/1000,IF(Inputs!$B$128=Inputs!$B$131,Inputs!AG88/1000))) -> 8320.789865 | AB13: =IF(Inputs!$B$128=Inputs!$B$129,Inputs!AH86/1000,IF(Inputs!$B$128=Inputs!$B$130,Inputs!AH87/1000,IF(Inputs!$B$128=Inputs!$B$131,Inputs!AH88/1000))) -> 8585.051056 | AC13: =IF(Inputs!$B$128=Inputs!$B$129,Inputs!AI86/1000,IF(Inputs!$B$128=Inputs!$B$130,Inputs!AI87/1000,IF(Inputs!$B$128=Inputs!$B$131,Inputs!AI88/1000))) -> 9006.655147 | AD13: =IF(Inputs!$B$128=Inputs!$B$129,Inputs!AJ86/1000,IF(Inputs!$B$128=Inputs!$B$130,Inputs!AJ87/1000,IF(Inputs!$B$128=Inputs!$B$131,Inputs!AJ88/1000))) -> 9338.072679 | AE13: =IF(Inputs!$B$128=Inputs!$B$129,Inputs!AK86/1000,IF(Inputs!$B$128=Inputs!$B$130,Inputs!AK87/1000,IF(Inputs!$B$128=Inputs!$B$131,Inputs!AK88/1000))) -> 8437.855287 | AF13: =IF(Inputs!$B$128=Inputs!$B$129,Inputs!AL86/1000,IF(Inputs!$B$128=Inputs!$B$130,Inputs!AL87/1000,IF(Inputs!$B$128=Inputs!$B$131,Inputs!AL88/1000))) -> 8301.400175 | AG13: =IF(Inputs!$B$128=Inputs!$B$129,Inputs!AM86/1000,IF(Inputs!$B$128=Inputs!$B$130,Inputs!AM87/1000,IF(Inputs!$B$128=Inputs!$B$131,Inputs!AM88/1000))) -> 8301.400175
A14: Opex | D14: =IF(Inputs!$B$128=Inputs!$B$129,Inputs!J91/1000,IF(Inputs!$B$128=Inputs!$B$130,Inputs!J92/1000,IF(Inputs!$B$128=Inputs!$B$131,Inputs!J93/1000))) -> 13894.88972 | E14: =IF(Inputs!$B$128=Inputs!$B$129,Inputs!K91/1000,IF(Inputs!$B$128=Inputs!$B$130,Inputs!K92/1000,IF(Inputs!$B$128=Inputs!$B$131,Inputs!K93/1000))) -> 13786.17283 | F14: =IF(Inputs!$B$128=Inputs!$B$129,Inputs!L91/1000,IF(Inputs!$B$128=Inputs!$B$130,Inputs!L92/1000,IF(Inputs!$B$128=Inputs!$B$131,Inputs!L93/1000))) -> 13665.90976 | G14: =IF(Inputs!$B$128=Inputs!$B$129,Inputs!M91/1000,IF(Inputs!$B$128=Inputs!$B$130,Inputs!M92/1000,IF(Inputs!$B$128=Inputs!$B$131,Inputs!M93/1000))) -> 13587.44277 | H14: =IF(Inputs!$B$128=Inputs!$B$129,Inputs!N91/1000,IF(Inputs!$B$128=Inputs!$B$130,Inputs!N92/1000,IF(Inputs!$B$128=Inputs!$B$131,Inputs!N93/1000))) -> 13515.05036 | I14: =IF(Inputs!$B$128=Inputs!$B$129,Inputs!O91/1000,IF(Inputs!$B$128=Inputs!$B$130,Inputs!O92/1000,IF(Inputs!$B$128=Inputs!$B$131,Inputs!O93/1000))) -> 13551.3265 | J14: =IF(Inputs!$B$128=Inputs!$B$129,Inputs!P91/1000,IF(Inputs!$B$128=Inputs!$B$130,Inputs!P92/1000,IF(Inputs!$B$128=Inputs!$B$131,Inputs!P93/1000))) -> 13552.40337 | K14: =IF(Inputs!$B$128=Inputs!$B$129,Inputs!Q91/1000,IF(Inputs!$B$128=Inputs!$B$130,Inputs!Q92/1000,IF(Inputs!$B$128=Inputs!$B$131,Inputs!Q93/1000))) -> 13665.02678 | L14: =IF(Inputs!$B$128=Inputs!$B$129,Inputs!R91/1000,IF(Inputs!$B$128=Inputs!$B$130,Inputs!R92/1000,IF(Inputs!$B$128=Inputs!$B$131,Inputs!R93/1000))) -> 13775.0152 | M14: =IF(Inputs!$B$128=Inputs!$B$129,Inputs!S91/1000,IF(Inputs!$B$128=Inputs!$B$130,Inputs!S92/1000,IF(Inputs!$B$128=Inputs!$B$131,Inputs!S93/1000))) -> 13879.28126 | N14: =IF(Inputs!$B$128=Inputs!$B$129,Inputs!T91/1000,IF(Inputs!$B$128=Inputs!$B$130,Inputs!T92/1000,IF(Inputs!$B$128=Inputs!$B$131,Inputs!T93/1000))) -> 13975.02481 | O14: =IF(Inputs!$B$128=Inputs!$B$129,Inputs!U91/1000,IF(Inputs!$B$128=Inputs!$B$130,Inputs!U92/1000,IF(Inputs!$B$128=Inputs!$B$131,Inputs!U93/1000))) -> 14065.60309 | P14: =IF(Inputs!$B$128=Inputs!$B$129,Inputs!V91/1000,IF(Inputs!$B$128=Inputs!$B$130,Inputs!V92/1000,IF(Inputs!$B$128=Inputs!$B$131,Inputs!V93/1000))) -> 14111.24402 | Q14: =IF(Inputs!$B$128=Inputs!$B$129,Inputs!W91/1000,IF(Inputs!$B$128=Inputs!$B$130,Inputs!W92/1000,IF(Inputs!$B$128=Inputs!$B$131,Inputs!W93/1000))) -> 14147.88337 | R14: =IF(Inputs!$B$128=Inputs!$B$129,Inputs!X91/1000,IF(Inputs!$B$128=Inputs!$B$130,Inputs!X92/1000,IF(Inputs!$B$128=Inputs!$B$131,Inputs!X93/1000))) -> 14175.59599 | S14: =IF(Inputs!$B$128=Inputs!$B$129,Inputs!Y91/1000,IF(Inputs!$B$128=Inputs!$B$130,Inputs!Y92/1000,IF(Inputs!$B$128=Inputs!$B$131,Inputs!Y93/1000))) -> 14194.54844 | T14: =IF(Inputs!$B$128=Inputs!$B$129,Inputs!Z91/1000,IF(Inputs!$B$128=Inputs!$B$130,Inputs!Z92/1000,IF(Inputs!$B$128=Inputs!$B$131,Inputs!Z93/1000))) -> 14204.90314 | U14: =IF(Inputs!$B$128=Inputs!$B$129,Inputs!AA91/1000,IF(Inputs!$B$128=Inputs!$B$130,Inputs!AA92/1000,IF(Inputs!$B$128=Inputs!$B$131,Inputs!AA93/1000))) -> 14211.93015 | V14: =IF(Inputs!$B$128=Inputs!$B$129,Inputs!AB91/1000,IF(Inputs!$B$128=Inputs!$B$130,Inputs!AB92/1000,IF(Inputs!$B$128=Inputs!$B$131,Inputs!AB93/1000))) -> 14290.69046 | W14: =IF(Inputs!$B$128=Inputs!$B$129,Inputs!AC91/1000,IF(Inputs!$B$128=Inputs!$B$130,Inputs!AC92/1000,IF(Inputs!$B$128=Inputs!$B$131,Inputs!AC93/1000))) -> 14368.40108 | X14: =IF(Inputs!$B$128=Inputs!$B$129,Inputs!AD91/1000,IF(Inputs!$B$128=Inputs!$B$130,Inputs!AD92/1000,IF(Inputs!$B$128=Inputs!$B$131,Inputs!AD93/1000))) -> 14444.86137 | Y14: =IF(Inputs!$B$128=Inputs!$B$129,Inputs!AE91/1000,IF(Inputs!$B$128=Inputs!$B$130,Inputs!AE92/1000,IF(Inputs!$B$128=Inputs!$B$131,Inputs!AE93/1000))) -> 14520.18679 | Z14: =IF(Inputs!$B$128=Inputs!$B$129,Inputs!AF91/1000,IF(Inputs!$B$128=Inputs!$B$130,Inputs!AF92/1000,IF(Inputs!$B$128=Inputs!$B$131,Inputs!AF93/1000))) -> 14594.26928 | AA14: =IF(Inputs!$B$128=Inputs!$B$129,Inputs!AG91/1000,IF(Inputs!$B$128=Inputs!$B$130,Inputs!AG92/1000,IF(Inputs!$B$128=Inputs!$B$131,Inputs!AG93/1000))) -> 14667.22404 | AB14: =IF(Inputs!$B$128=Inputs!$B$129,Inputs!AH91/1000,IF(Inputs!$B$128=Inputs!$B$130,Inputs!AH92/1000,IF(Inputs!$B$128=Inputs!$B$131,Inputs!AH93/1000))) -> 14738.94323 | AC14: =IF(Inputs!$B$128=Inputs!$B$129,Inputs!AI91/1000,IF(Inputs!$B$128=Inputs!$B$130,Inputs!AI92/1000,IF(Inputs!$B$128=Inputs!$B$131,Inputs!AI93/1000))) -> 14809.33897 | AD14: =IF(Inputs!$B$128=Inputs!$B$129,Inputs!AJ91/1000,IF(Inputs!$B$128=Inputs!$B$130,Inputs!AJ92/1000,IF(Inputs!$B$128=Inputs!$B$131,Inputs!AJ93/1000))) -> 14878.41528 | AE14: =IF(Inputs!$B$128=Inputs!$B$129,Inputs!AK91/1000,IF(Inputs!$B$128=Inputs!$B$130,Inputs!AK92/1000,IF(Inputs!$B$128=Inputs!$B$131,Inputs!AK93/1000))) -> 14946.37858 | AF14: =IF(Inputs!$B$128=Inputs!$B$129,Inputs!AL91/1000,IF(Inputs!$B$128=Inputs!$B$130,Inputs!AL92/1000,IF(Inputs!$B$128=Inputs!$B$131,Inputs!AL93/1000))) -> 15014.56188 | AG14: =IF(Inputs!$B$128=Inputs!$B$129,Inputs!AM91/1000,IF(Inputs!$B$128=Inputs!$B$130,Inputs!AM92/1000,IF(Inputs!$B$128=Inputs!$B$131,Inputs!AM93/1000))) -> 15098.62231
A15: Volumes (therms '000) | D15: =SUM(D16:D18) -> 149074.3654 | E15: =SUM(E16:E18) -> 152969.8614 | F15: 156757.7561 | G15: 160525.7222 | H15: 164164.5094 | I15: 167676.0261 | J15: 170767.7746 | K15: 173175.8725 | L15: 174965.2041 | M15: 177508.3243 | N15: 179570.7276 | O15: 181562.166 | P15: 183471.9044 | Q15: 185277.1428 | R15: 186977.8812 | S15: 188572.2196 | T15: 190060.158 | U15: 191441.6964 | V15: 192764.3348 | W15: 194075.5731 | X15: 195310.0701 | Y15: 196531.267 | Z15: 197739.164 | AA15: 198933.7609 | AB15: 200115.0578 | AC15: 201283.0548 | AD15: 202435.8517 | AE15: 203854.2912 | AF15: 204978.5881 | AG15: 206104.1913
A16: P Dom (P1) | D16: =IF(Inputs!$B$128=Inputs!$B$129,Inputs!J97/1000,IF(Inputs!$B$128=Inputs!$B$130,Inputs!J102/1000,IF(Inputs!$B$128=Inputs!$B$131,Inputs!J107/1000))) -> 72721.41084 | E16: =IF(Inputs!$B$128=Inputs!$B$129,Inputs!K97/1000,IF(Inputs!$B$128=Inputs!$B$130,Inputs!K102/1000,IF(Inputs!$B$128=Inputs!$B$131,Inputs!K107/1000))) -> 75996.05294 | F16: =IF(Inputs!$B$128=Inputs!$B$129,Inputs!L97/1000,IF(Inputs!$B$128=Inputs!$B$130,Inputs!L102/1000,IF(Inputs!$B$128=Inputs!$B$131,Inputs!L107/1000))) -> 79142.38854 | G16: =IF(Inputs!$B$128=Inputs!$B$129,Inputs!M97/1000,IF(Inputs!$B$128=Inputs!$B$130,Inputs!M102/1000,IF(Inputs!$B$128=Inputs!$B$131,Inputs!M107/1000))) -> 82215.05487 | H16: =IF(Inputs!$B$128=Inputs!$B$129,Inputs!N97/1000,IF(Inputs!$B$128=Inputs!$B$130,Inputs!N102/1000,IF(Inputs!$B$128=Inputs!$B$131,Inputs!N107/1000))) -> 85206.81976 | I16: =IF(Inputs!$B$128=Inputs!$B$129,Inputs!O97/1000,IF(Inputs!$B$128=Inputs!$B$130,Inputs!O102/1000,IF(Inputs!$B$128=Inputs!$B$131,Inputs!O107/1000))) -> 88071.80282 | J16: =IF(Inputs!$B$128=Inputs!$B$129,Inputs!P97/1000,IF(Inputs!$B$128=Inputs!$B$130,Inputs!P102/1000,IF(Inputs!$B$128=Inputs!$B$131,Inputs!P107/1000))) -> 90569.58785 | K16: =IF(Inputs!$B$128=Inputs!$B$129,Inputs!Q97/1000,IF(Inputs!$B$128=Inputs!$B$130,Inputs!Q102/1000,IF(Inputs!$B$128=Inputs!$B$131,Inputs!Q107/1000))) -> 92657.10214 | L16: =IF(Inputs!$B$128=Inputs!$B$129,Inputs!R97/1000,IF(Inputs!$B$128=Inputs!$B$130,Inputs!R102/1000,IF(Inputs!$B$128=Inputs!$B$131,Inputs!R107/1000))) -> 94644.28552 | M16: =IF(Inputs!$B$128=Inputs!$B$129,Inputs!S97/1000,IF(Inputs!$B$128=Inputs!$B$130,Inputs!S102/1000,IF(Inputs!$B$128=Inputs!$B$131,Inputs!S107/1000))) -> 96439.02165 | N16: =IF(Inputs!$B$128=Inputs!$B$129,Inputs!T97/1000,IF(Inputs!$B$128=Inputs!$B$130,Inputs!T102/1000,IF(Inputs!$B$128=Inputs!$B$131,Inputs!T107/1000))) -> 98272.67102 | O16: =IF(Inputs!$B$128=Inputs!$B$129,Inputs!U97/1000,IF(Inputs!$B$128=Inputs!$B$130,Inputs!U102/1000,IF(Inputs!$B$128=Inputs!$B$131,Inputs!U107/1000))) -> 100047.4204 | P16: =IF(Inputs!$B$128=Inputs!$B$129,Inputs!V97/1000,IF(Inputs!$B$128=Inputs!$B$130,Inputs!V102/1000,IF(Inputs!$B$128=Inputs!$B$131,Inputs!V107/1000))) -> 101740.4698 | Q16: =IF(Inputs!$B$128=Inputs!$B$129,Inputs!W97/1000,IF(Inputs!$B$128=Inputs!$B$130,Inputs!W102/1000,IF(Inputs!$B$128=Inputs!$B$131,Inputs!W107/1000))) -> 103329.0191 | R16: =IF(Inputs!$B$128=Inputs!$B$129,Inputs!X97/1000,IF(Inputs!$B$128=Inputs!$B$130,Inputs!X102/1000,IF(Inputs!$B$128=Inputs!$B$131,Inputs!X107/1000))) -> 104813.0685 | S16: =IF(Inputs!$B$128=Inputs!$B$129,Inputs!Y97/1000,IF(Inputs!$B$128=Inputs!$B$130,Inputs!Y102/1000,IF(Inputs!$B$128=Inputs!$B$131,Inputs!Y107/1000))) -> 106190.7179 | T16: =IF(Inputs!$B$128=Inputs!$B$129,Inputs!Z97/1000,IF(Inputs!$B$128=Inputs!$B$130,Inputs!Z102/1000,IF(Inputs!$B$128=Inputs!$B$131,Inputs!Z107/1000))) -> 107461.9672 | U16: =IF(Inputs!$B$128=Inputs!$B$129,Inputs!AA97/1000,IF(Inputs!$B$128=Inputs!$B$130,Inputs!AA102/1000,IF(Inputs!$B$128=Inputs!$B$131,Inputs!AA107/1000))) -> 108626.8166 | V16: =IF(Inputs!$B$128=Inputs!$B$129,Inputs!AB97/1000,IF(Inputs!$B$128=Inputs!$B$130,Inputs!AB102/1000,IF(Inputs!$B$128=Inputs!$B$131,Inputs!AB107/1000))) -> 109732.766 | W16: =IF(Inputs!$B$128=Inputs!$B$129,Inputs!AC97/1000,IF(Inputs!$B$128=Inputs!$B$130,Inputs!AC102/1000,IF(Inputs!$B$128=Inputs!$B$131,Inputs!AC107/1000))) -> 110827.3154 | X16: =IF(Inputs!$B$128=Inputs!$B$129,Inputs!AD97/1000,IF(Inputs!$B$128=Inputs!$B$130,Inputs!AD102/1000,IF(Inputs!$B$128=Inputs!$B$131,Inputs!AD107/1000))) -> 111910.4647 | Y16: =IF(Inputs!$B$128=Inputs!$B$129,Inputs!AE97/1000,IF(Inputs!$B$128=Inputs!$B$130,Inputs!AE102/1000,IF(Inputs!$B$128=Inputs!$B$131,Inputs!AE107/1000))) -> 112980.3141 | Z16: =IF(Inputs!$B$128=Inputs!$B$129,Inputs!AF97/1000,IF(Inputs!$B$128=Inputs!$B$130,Inputs!AF102/1000,IF(Inputs!$B$128=Inputs!$B$131,Inputs!AF107/1000))) -> 114036.8635 | AA16: =IF(Inputs!$B$128=Inputs!$B$129,Inputs!AG97/1000,IF(Inputs!$B$128=Inputs!$B$130,Inputs!AG102/1000,IF(Inputs!$B$128=Inputs!$B$131,Inputs!AG107/1000))) -> 115080.1128 | AB16: =IF(Inputs!$B$128=Inputs!$B$129,Inputs!AH97/1000,IF(Inputs!$B$128=Inputs!$B$130,Inputs!AH102/1000,IF(Inputs!$B$128=Inputs!$B$131,Inputs!AH107/1000))) -> 116110.0622 | AC16: =IF(Inputs!$B$128=Inputs!$B$129,Inputs!AI97/1000,IF(Inputs!$B$128=Inputs!$B$130,Inputs!AI102/1000,IF(Inputs!$B$128=Inputs!$B$131,Inputs!AI107/1000))) -> 117126.7116 | AD16: =IF(Inputs!$B$128=Inputs!$B$129,Inputs!AJ97/1000,IF(Inputs!$B$128=Inputs!$B$130,Inputs!AJ102/1000,IF(Inputs!$B$128=Inputs!$B$131,Inputs!AJ107/1000))) -> 118128.161 | AE16: =IF(Inputs!$B$128=Inputs!$B$129,Inputs!AK97/1000,IF(Inputs!$B$128=Inputs!$B$130,Inputs!AK102/1000,IF(Inputs!$B$128=Inputs!$B$131,Inputs!AK107/1000))) -> 119395.2529 | AF16: =IF(Inputs!$B$128=Inputs!$B$129,Inputs!AL97/1000,IF(Inputs!$B$128=Inputs!$B$130,Inputs!AL102/1000,IF(Inputs!$B$128=Inputs!$B$131,Inputs!AL107/1000))) -> 120368.2022 | AG16: =IF(Inputs!$B$128=Inputs!$B$129,Inputs!AM97/1000,IF(Inputs!$B$128=Inputs!$B$130,Inputs!AM102/1000,IF(Inputs!$B$128=Inputs!$B$131,Inputs!AM107/1000))) -> 121342.4578
A17: P SME (P2) | D17: =IF(Inputs!$B$128=Inputs!$B$129,Inputs!J98/1000,IF(Inputs!$B$128=Inputs!$B$130,Inputs!J103/1000,IF(Inputs!$B$128=Inputs!$B$131,Inputs!J108/1000))) -> 27987.56231 | E17: =IF(Inputs!$B$128=Inputs!$B$129,Inputs!K98/1000,IF(Inputs!$B$128=Inputs!$B$130,Inputs!K103/1000,IF(Inputs!$B$128=Inputs!$B$131,Inputs!K108/1000))) -> 28483.4162 | F17: =IF(Inputs!$B$128=Inputs!$B$129,Inputs!L98/1000,IF(Inputs!$B$128=Inputs!$B$130,Inputs!L103/1000,IF(Inputs!$B$128=Inputs!$B$131,Inputs!L108/1000))) -> 28999.97533 | G17: =IF(Inputs!$B$128=Inputs!$B$129,Inputs!M98/1000,IF(Inputs!$B$128=Inputs!$B$130,Inputs!M103/1000,IF(Inputs!$B$128=Inputs!$B$131,Inputs!M108/1000))) -> 29570.27507 | H17: =IF(Inputs!$B$128=Inputs!$B$129,Inputs!N98/1000,IF(Inputs!$B$128=Inputs!$B$130,Inputs!N103/1000,IF(Inputs!$B$128=Inputs!$B$131,Inputs!N108/1000))) -> 30092.29738 | I17: =IF(Inputs!$B$128=Inputs!$B$129,Inputs!O98/1000,IF(Inputs!$B$128=Inputs!$B$130,Inputs!O103/1000,IF(Inputs!$B$128=Inputs!$B$131,Inputs!O108/1000))) -> 30613.83098 | J17: =IF(Inputs!$B$128=Inputs!$B$129,Inputs!P98/1000,IF(Inputs!$B$128=Inputs!$B$130,Inputs!P103/1000,IF(Inputs!$B$128=Inputs!$B$131,Inputs!P108/1000))) -> 31082.79446 | K17: =IF(Inputs!$B$128=Inputs!$B$129,Inputs!Q98/1000,IF(Inputs!$B$128=Inputs!$B$130,Inputs!Q103/1000,IF(Inputs!$B$128=Inputs!$B$131,Inputs!Q108/1000))) -> 31278.37808 | L17: =IF(Inputs!$B$128=Inputs!$B$129,Inputs!R98/1000,IF(Inputs!$B$128=Inputs!$B$130,Inputs!R103/1000,IF(Inputs!$B$128=Inputs!$B$131,Inputs!R108/1000))) -> 30955.52627 | M17: =IF(Inputs!$B$128=Inputs!$B$129,Inputs!S98/1000,IF(Inputs!$B$128=Inputs!$B$130,Inputs!S103/1000,IF(Inputs!$B$128=Inputs!$B$131,Inputs!S108/1000))) -> 31703.91039 | N17: =IF(Inputs!$B$128=Inputs!$B$129,Inputs!T98/1000,IF(Inputs!$B$128=Inputs!$B$130,Inputs!T103/1000,IF(Inputs!$B$128=Inputs!$B$131,Inputs!T108/1000))) -> 31932.66431 | O17: =IF(Inputs!$B$128=Inputs!$B$129,Inputs!U98/1000,IF(Inputs!$B$128=Inputs!$B$130,Inputs!U103/1000,IF(Inputs!$B$128=Inputs!$B$131,Inputs!U108/1000))) -> 32149.35333 | P17: =IF(Inputs!$B$128=Inputs!$B$129,Inputs!V98/1000,IF(Inputs!$B$128=Inputs!$B$130,Inputs!V103/1000,IF(Inputs!$B$128=Inputs!$B$131,Inputs!V108/1000))) -> 32366.04235 | Q17: =IF(Inputs!$B$128=Inputs!$B$129,Inputs!W98/1000,IF(Inputs!$B$128=Inputs!$B$130,Inputs!W103/1000,IF(Inputs!$B$128=Inputs!$B$131,Inputs!W108/1000))) -> 32582.73138 | R17: =IF(Inputs!$B$128=Inputs!$B$129,Inputs!X98/1000,IF(Inputs!$B$128=Inputs!$B$130,Inputs!X103/1000,IF(Inputs!$B$128=Inputs!$B$131,Inputs!X108/1000))) -> 32799.4204 | S17: =IF(Inputs!$B$128=Inputs!$B$129,Inputs!Y98/1000,IF(Inputs!$B$128=Inputs!$B$130,Inputs!Y103/1000,IF(Inputs!$B$128=Inputs!$B$131,Inputs!Y108/1000))) -> 33016.10942 | T17: =IF(Inputs!$B$128=Inputs!$B$129,Inputs!Z98/1000,IF(Inputs!$B$128=Inputs!$B$130,Inputs!Z103/1000,IF(Inputs!$B$128=Inputs!$B$131,Inputs!Z108/1000))) -> 33232.79844 | U17: =IF(Inputs!$B$128=Inputs!$B$129,Inputs!AA98/1000,IF(Inputs!$B$128=Inputs!$B$130,Inputs!AA103/1000,IF(Inputs!$B$128=Inputs!$B$131,Inputs!AA108/1000))) -> 33449.48746 | V17: =IF(Inputs!$B$128=Inputs!$B$129,Inputs!AB98/1000,IF(Inputs!$B$128=Inputs!$B$130,Inputs!AB103/1000,IF(Inputs!$B$128=Inputs!$B$131,Inputs!AB108/1000))) -> 33666.17649 | W17: =IF(Inputs!$B$128=Inputs!$B$129,Inputs!AC98/1000,IF(Inputs!$B$128=Inputs!$B$130,Inputs!AC103/1000,IF(Inputs!$B$128=Inputs!$B$131,Inputs!AC108/1000))) -> 33882.86551 | X17: =IF(Inputs!$B$128=Inputs!$B$129,Inputs!AD98/1000,IF(Inputs!$B$128=Inputs!$B$130,Inputs!AD103/1000,IF(Inputs!$B$128=Inputs!$B$131,Inputs!AD108/1000))) -> 34034.21308 | Y17: =IF(Inputs!$B$128=Inputs!$B$129,Inputs!AE98/1000,IF(Inputs!$B$128=Inputs!$B$130,Inputs!AE103/1000,IF(Inputs!$B$128=Inputs!$B$131,Inputs!AE108/1000))) -> 34185.56064 | Z17: =IF(Inputs!$B$128=Inputs!$B$129,Inputs!AF98/1000,IF(Inputs!$B$128=Inputs!$B$130,Inputs!AF103/1000,IF(Inputs!$B$128=Inputs!$B$131,Inputs!AF108/1000))) -> 34336.90821 | AA17: =IF(Inputs!$B$128=Inputs!$B$129,Inputs!AG98/1000,IF(Inputs!$B$128=Inputs!$B$130,Inputs!AG103/1000,IF(Inputs!$B$128=Inputs!$B$131,Inputs!AG108/1000))) -> 34488.25578 | AB17: =IF(Inputs!$B$128=Inputs!$B$129,Inputs!AH98/1000,IF(Inputs!$B$128=Inputs!$B$130,Inputs!AH103/1000,IF(Inputs!$B$128=Inputs!$B$131,Inputs!AH108/1000))) -> 34639.60335 | AC17: =IF(Inputs!$B$128=Inputs!$B$129,Inputs!AI98/1000,IF(Inputs!$B$128=Inputs!$B$130,Inputs!AI103/1000,IF(Inputs!$B$128=Inputs!$B$131,Inputs!AI108/1000))) -> 34790.95092 | AD17: =IF(Inputs!$B$128=Inputs!$B$129,Inputs!AJ98/1000,IF(Inputs!$B$128=Inputs!$B$130,Inputs!AJ103/1000,IF(Inputs!$B$128=Inputs!$B$131,Inputs!AJ108/1000))) -> 34942.29849 | AE17: =IF(Inputs!$B$128=Inputs!$B$129,Inputs!AK98/1000,IF(Inputs!$B$128=Inputs!$B$130,Inputs!AK103/1000,IF(Inputs!$B$128=Inputs!$B$131,Inputs!AK108/1000))) -> 35093.64606 | AF17: =IF(Inputs!$B$128=Inputs!$B$129,Inputs!AL98/1000,IF(Inputs!$B$128=Inputs!$B$130,Inputs!AL103/1000,IF(Inputs!$B$128=Inputs!$B$131,Inputs!AL108/1000))) -> 35244.99363 | AG17: =IF(Inputs!$B$128=Inputs!$B$129,Inputs!AM98/1000,IF(Inputs!$B$128=Inputs!$B$130,Inputs!AM103/1000,IF(Inputs!$B$128=Inputs!$B$131,Inputs!AM108/1000))) -> 35396.3412
A18: P Contract (P3 + P4) | D18: =IF(Inputs!$B$128=Inputs!$B$129,Inputs!J99/1000,IF(Inputs!$B$128=Inputs!$B$130,Inputs!J104/1000,IF(Inputs!$B$128=Inputs!$B$131,Inputs!J109/1000))) -> 48365.39228 | E18: =IF(Inputs!$B$128=Inputs!$B$129,Inputs!K99/1000,IF(Inputs!$B$128=Inputs!$B$130,Inputs!K104/1000,IF(Inputs!$B$128=Inputs!$B$131,Inputs!K109/1000))) -> 48490.39228 | F18: =IF(Inputs!$B$128=Inputs!$B$129,Inputs!L99/1000,IF(Inputs!$B$128=Inputs!$B$130,Inputs!L104/1000,IF(Inputs!$B$128=Inputs!$B$131,Inputs!L109/1000))) -> 48615.39228 | G18: =IF(Inputs!$B$128=Inputs!$B$129,Inputs!M99/1000,IF(Inputs!$B$128=Inputs!$B$130,Inputs!M104/1000,IF(Inputs!$B$128=Inputs!$B$131,Inputs!M109/1000))) -> 48740.39228 | H18: =IF(Inputs!$B$128=Inputs!$B$129,Inputs!N99/1000,IF(Inputs!$B$128=Inputs!$B$130,Inputs!N104/1000,IF(Inputs!$B$128=Inputs!$B$131,Inputs!N109/1000))) -> 48865.39228 | I18: =IF(Inputs!$B$128=Inputs!$B$129,Inputs!O99/1000,IF(Inputs!$B$128=Inputs!$B$130,Inputs!O104/1000,IF(Inputs!$B$128=Inputs!$B$131,Inputs!O109/1000))) -> 48990.39228 | J18: =IF(Inputs!$B$128=Inputs!$B$129,Inputs!P99/1000,IF(Inputs!$B$128=Inputs!$B$130,Inputs!P104/1000,IF(Inputs!$B$128=Inputs!$B$131,Inputs!P109/1000))) -> 49115.39228 | K18: =IF(Inputs!$B$128=Inputs!$B$129,Inputs!Q99/1000,IF(Inputs!$B$128=Inputs!$B$130,Inputs!Q104/1000,IF(Inputs!$B$128=Inputs!$B$131,Inputs!Q109/1000))) -> 49240.39228 | L18: =IF(Inputs!$B$128=Inputs!$B$129,Inputs!R99/1000,IF(Inputs!$B$128=Inputs!$B$130,Inputs!R104/1000,IF(Inputs!$B$128=Inputs!$B$131,Inputs!R109/1000))) -> 49365.39228 | M18: =IF(Inputs!$B$128=Inputs!$B$129,Inputs!S99/1000,IF(Inputs!$B$128=Inputs!$B$130,Inputs!S104/1000,IF(Inputs!$B$128=Inputs!$B$131,Inputs!S109/1000))) -> 49365.39228 | N18: =IF(Inputs!$B$128=Inputs!$B$129,Inputs!T99/1000,IF(Inputs!$B$128=Inputs!$B$130,Inputs!T104/1000,IF(Inputs!$B$128=Inputs!$B$131,Inputs!T109/1000))) -> 49365.39228 | O18: =IF(Inputs!$B$128=Inputs!$B$129,Inputs!U99/1000,IF(Inputs!$B$128=Inputs!$B$130,Inputs!U104/1000,IF(Inputs!$B$128=Inputs!$B$131,Inputs!U109/1000))) -> 49365.39228 | P18: =IF(Inputs!$B$128=Inputs!$B$129,Inputs!V99/1000,IF(Inputs!$B$128=Inputs!$B$130,Inputs!V104/1000,IF(Inputs!$B$128=Inputs!$B$131,Inputs!V109/1000))) -> 49365.39228 | Q18: =IF(Inputs!$B$128=Inputs!$B$129,Inputs!W99/1000,IF(Inputs!$B$128=Inputs!$B$130,Inputs!W104/1000,IF(Inputs!$B$128=Inputs!$B$131,Inputs!W109/1000))) -> 49365.39228 | R18: =IF(Inputs!$B$128=Inputs!$B$129,Inputs!X99/1000,IF(Inputs!$B$128=Inputs!$B$130,Inputs!X104/1000,IF(Inputs!$B$128=Inputs!$B$131,Inputs!X109/1000))) -> 49365.39228 | S18: =IF(Inputs!$B$128=Inputs!$B$129,Inputs!Y99/1000,IF(Inputs!$B$128=Inputs!$B$130,Inputs!Y104/1000,IF(Inputs!$B$128=Inputs!$B$131,Inputs!Y109/1000))) -> 49365.39228 | T18: =IF(Inputs!$B$128=Inputs!$B$129,Inputs!Z99/1000,IF(Inputs!$B$128=Inputs!$B$130,Inputs!Z104/1000,IF(Inputs!$B$128=Inputs!$B$131,Inputs!Z109/1000))) -> 49365.39228 | U18: =IF(Inputs!$B$128=Inputs!$B$129,Inputs!AA99/1000,IF(Inputs!$B$128=Inputs!$B$130,Inputs!AA104/1000,IF(Inputs!$B$128=Inputs!$B$131,Inputs!AA109/1000))) -> 49365.39228 | V18: =IF(Inputs!$B$128=Inputs!$B$129,Inputs!AB99/1000,IF(Inputs!$B$128=Inputs!$B$130,Inputs!AB104/1000,IF(Inputs!$B$128=Inputs!$B$131,Inputs!AB109/1000))) -> 49365.39228 | W18: =IF(Inputs!$B$128=Inputs!$B$129,Inputs!AC99/1000,IF(Inputs!$B$128=Inputs!$B$130,Inputs!AC104/1000,IF(Inputs!$B$128=Inputs!$B$131,Inputs!AC109/1000))) -> 49365.39228 | X18: =IF(Inputs!$B$128=Inputs!$B$129,Inputs!AD99/1000,IF(Inputs!$B$128=Inputs!$B$130,Inputs!AD104/1000,IF(Inputs!$B$128=Inputs!$B$131,Inputs!AD109/1000))) -> 49365.39228 | Y18: =IF(Inputs!$B$128=Inputs!$B$129,Inputs!AE99/1000,IF(Inputs!$B$128=Inputs!$B$130,Inputs!AE104/1000,IF(Inputs!$B$128=Inputs!$B$131,Inputs!AE109/1000))) -> 49365.39228 | Z18: =IF(Inputs!$B$128=Inputs!$B$129,Inputs!AF99/1000,IF(Inputs!$B$128=Inputs!$B$130,Inputs!AF104/1000,IF(Inputs!$B$128=Inputs!$B$131,Inputs!AF109/1000))) -> 49365.39228 | AA18: =IF(Inputs!$B$128=Inputs!$B$129,Inputs!AG99/1000,IF(Inputs!$B$128=Inputs!$B$130,Inputs!AG104/1000,IF(Inputs!$B$128=Inputs!$B$131,Inputs!AG109/1000))) -> 49365.39228 | AB18: =IF(Inputs!$B$128=Inputs!$B$129,Inputs!AH99/1000,IF(Inputs!$B$128=Inputs!$B$130,Inputs!AH104/1000,IF(Inputs!$B$128=Inputs!$B$131,Inputs!AH109/1000))) -> 49365.39228 | AC18: =IF(Inputs!$B$128=Inputs!$B$129,Inputs!AI99/1000,IF(Inputs!$B$128=Inputs!$B$130,Inputs!AI104/1000,IF(Inputs!$B$128=Inputs!$B$131,Inputs!AI109/1000))) -> 49365.39228 | AD18: =IF(Inputs!$B$128=Inputs!$B$129,Inputs!AJ99/1000,IF(Inputs!$B$128=Inputs!$B$130,Inputs!AJ104/1000,IF(Inputs!$B$128=Inputs!$B$131,Inputs!AJ109/1000))) -> 49365.39228 | AE18: =IF(Inputs!$B$128=Inputs!$B$129,Inputs!AK99/1000,IF(Inputs!$B$128=Inputs!$B$130,Inputs!AK104/1000,IF(Inputs!$B$128=Inputs!$B$131,Inputs!AK109/1000))) -> 49365.39228 | AF18: =IF(Inputs!$B$128=Inputs!$B$129,Inputs!AL99/1000,IF(Inputs!$B$128=Inputs!$B$130,Inputs!AL104/1000,IF(Inputs!$B$128=Inputs!$B$131,Inputs!AL109/1000))) -> 49365.39228 | AG18: =IF(Inputs!$B$128=Inputs!$B$129,Inputs!AM99/1000,IF(Inputs!$B$128=Inputs!$B$130,Inputs!AM104/1000,IF(Inputs!$B$128=Inputs!$B$131,Inputs!AM109/1000))) -> 49365.39228
A19: £/therm | D19: 0.3488582654
A20: P Dom (P1) | C20: 1 | D20: 0.3654791556 | E20: =D20 -> 0.3654791556 | F20: =E20 -> 0.3654791556 | G20: 0.3654791556 | H20: 0.3654791556 | I20: 0.3654791556 | J20: 0.3654791556 | K20: 0.3654791556 | L20: 0.3654791556 | M20: 0.3654791556 | N20: 0.3654791556 | O20: 0.3654791556 | P20: 0.3654791556 | Q20: 0.3654791556 | R20: 0.3654791556 | S20: 0.3654791556 | T20: 0.3654791556 | U20: 0.3654791556 | V20: 0.3654791556 | W20: 0.3654791556 | X20: 0.3654791556 | Y20: 0.3654791556 | Z20: 0.3654791556 | AA20: 0.3654791556 | AB20: 0.3654791556 | AC20: 0.3654791556 | AD20: 0.3654791556 | AE20: 0.3654791556 | AF20: 0.3654791556 | AG20: 0.3654791556
A21: P SME (P2) | C21: 0.9 | D21: =$D$20*C21 -> 0.3289312401 | E21: =D21 -> 0.3289312401 | F21: 0.3289312401 | G21: 0.3289312401 | H21: 0.3289312401 | I21: 0.3289312401 | J21: 0.3289312401 | K21: 0.3289312401 | L21: 0.3289312401 | M21: 0.3289312401 | N21: 0.3289312401 | O21: 0.3289312401 | P21: 0.3289312401 | Q21: 0.3289312401 | R21: 0.3289312401 | S21: 0.3289312401 | T21: 0.3289312401 | U21: 0.3289312401 | V21: 0.3289312401 | W21: 0.3289312401 | X21: 0.3289312401 | Y21: 0.3289312401 | Z21: 0.3289312401 | AA21: 0.3289312401 | AB21: 0.3289312401 | AC21: 0.3289312401 | AD21: 0.3289312401 | AE21: 0.3289312401 | AF21: 0.3289312401 | AG21: 0.3289312401
A22: P Contract (P3 + P4) | C22: 0.6871418668 | D22: =$D$20*C22 -> 0.2511360293 | E22: =D22 -> 0.2511360293 | F22: 0.2511360293 | G22: 0.2511360293 | H22: 0.2511360293 | I22: 0.2511360293 | J22: 0.2511360293 | K22: 0.2511360293 | L22: 0.2511360293 | M22: 0.2511360293 | N22: 0.2511360293 | O22: 0.2511360293 | P22: 0.2511360293 | Q22: 0.2511360293 | R22: 0.2511360293 | S22: 0.2511360293 | T22: 0.2511360293 | U22: 0.2511360293 | V22: 0.2511360293 | W22: 0.2511360293 | X22: 0.2511360293 | Y22: 0.2511360293 | Z22: 0.2511360293 | AA22: 0.2511360293 | AB22: 0.2511360293 | AC22: 0.2511360293 | AD22: 0.2511360293 | AE22: 0.2511360293 | AF22: 0.2511360293 | AG22: 0.2511360293
A24: Conditions 2.3.15 and 2.3.16 Establishing Best Available Revenue Per Therm and Calculating Cashflow
A26: Allowed Revenue | D26: =SUMPRODUCT(D16:D18,D20:D22) -> 47930.43597 | E26: =SUMPRODUCT(E16:E18,E20:E22) -> 49321.74325 | F26: 50672.96776 | G26: 52014.94466 | H26: 53311.47382 | I26: 54561.50611 | J26: 55660.04321 | K26: 56518.71174 | L26: 57170.1818 | M26: 58072.28736 | N26: 58817.6923 | O26: 59537.60199 | P26: 60227.65203 | Q26: 60879.5095 | R26: 61493.1744 | S26: 62067.95232 | T26: 62603.84325 | U26: 63100.84721 | V26: 63576.32444 | W26: 64047.6352 | X26: 64493.28667 | Y26: 64934.07725 | Z26: 65370.00697 | AA26: 65801.07581 | AB26: 66227.28378 | AC26: 66648.63088 | AD26: 67064.42269 | AE26: 67577.30132 | AF26: 67982.67698 | AG26: 68388.53004
A27: Capex | D27: =-D13 -> -11811.07228 | E27: -13823.01606 | F27: -14303.38431 | G27: -15865.99143 | H27: -14648.21891 | I27: -15008.39379 | J27: -11629.23359 | K27: -10285.43528 | L27: -12663.40935 | M27: -10112.19828 | N27: -8525.594459 | O27: -8137.103122 | P27: -7884.999188 | Q27: -7458.819012 | R27: -7489.509474 | S27: -7305.110016 | T27: -7259.518561 | U27: -7745.746801 | V27: -7924.406276 | W27: -7552.074275 | X27: -6776.013956 | Y27: -7317.868335 | Z27: =-Z13 -> -7682.419565 | AA27: -8320.789865 | AB27: -8585.051056 | AC27: -9006.655147 | AD27: -9338.072679 | AE27: -8437.855287 | AF27: -8301.400175 | AG27: -8301.400175
A28: Opex | D28: =-D14 -> -13894.88972 | E28: -13786.17283 | F28: -13665.90976 | G28: -13587.44277 | H28: -13515.05036 | I28: -13551.3265 | J28: -13552.40337 | K28: -13665.02678 | L28: -13775.0152 | M28: -13879.28126 | N28: -13975.02481 | O28: -14065.60309 | P28: -14111.24402 | Q28: -14147.88337 | R28: -14175.59599 | S28: -14194.54844 | T28: -14204.90314 | U28: -14211.93015 | V28: -14290.69046 | W28: -14368.40108 | X28: -14444.86137 | Y28: -14520.18679 | Z28: =-Z14 -> -14594.26928 | AA28: -14667.22404 | AB28: -14738.94323 | AC28: -14809.33897 | AD28: -14878.41528 | AE28: -14946.37858 | AF28: -15014.56188 | AG28: -15098.62231
A29: Capex Creditor | D29: =-(Inputs!J119-Inputs!I119)/1000 -> -212.7589711 | E29: =-(Inputs!K119-Inputs!J119)/1000 -> 335.3239648 | F29: =-(Inputs!L119-Inputs!K119)/1000 -> 80.06137493 | G29: =-(Inputs!M119-Inputs!L119)/1000 -> 260.4345198 | H29: =-(Inputs!N119-Inputs!M119)/1000 -> -202.9620866 | I29: =-(Inputs!O119-Inputs!N119)/1000 -> 60.02914611 | J29: =-(Inputs!P119-Inputs!O119)/1000 -> -563.1933671 | K29: =-(Inputs!Q119-Inputs!P119)/1000 -> -223.966385 | L29: =-(Inputs!R119-Inputs!Q119)/1000 -> 396.3290119 | M29: =-(Inputs!S119-Inputs!R119)/1000 -> -425.2018453 | N29: =-(Inputs!T119-Inputs!S119)/1000 -> -264.4339695 | O29: =-(Inputs!U119-Inputs!T119)/1000 -> -64.74855628 | P29: =-(Inputs!V119-Inputs!U119)/1000 -> -42.01732226 | Q29: =-(Inputs!W119-Inputs!V119)/1000 -> -71.03002936 | R29: =-(Inputs!X119-Inputs!W119)/1000 -> 5.115076996 | S29: =-(Inputs!Y119-Inputs!X119)/1000 -> -30.73324294 | T29: =-(Inputs!Z119-Inputs!Y119)/1000 -> -7.598575871 | U29: =-(Inputs!AA119-Inputs!Z119)/1000 -> 81.03804003 | V29: =-(Inputs!AB119-Inputs!AA119)/1000 -> 29.77657917 | W29: =-(Inputs!AC119-Inputs!AB119)/1000 -> -62.05533361 | X29: =-(Inputs!AD119-Inputs!AC119)/1000 -> -129.3433865 | Y29: =-(Inputs!AE119-Inputs!AD119)/1000 -> 90.30906328 | Z29: =-(Inputs!AF119-Inputs!AE119)/1000 -> 60.75853833 | AA29: =-(Inputs!AG119-Inputs!AF119)/1000 -> 106.3950499 | AB29: =-(Inputs!AH119-Inputs!AG119)/1000 -> 44.04353184 | AC29: =-(Inputs!AI119-Inputs!AH119)/1000 -> 70.2673486 | AD29: =-(Inputs!AJ119-Inputs!AI119)/1000 -> 55.23625534 | AE29: =-(Inputs!AK119-Inputs!AJ119)/1000 -> -150.0362322 | AF29: =-(Inputs!AL119-Inputs!AK119)/1000 -> -22.74251852 | AG29: =-(Inputs!AM119-Inputs!AL119)/1000 -> 0
A30: Working Capital Adjustment | D30: =-(Inputs!J117-Inputs!I117)/1000 -> 103.9706003 | E30: =-(Inputs!K117-Inputs!J117)/1000 -> -221.7421173 | F30: =-(Inputs!L117-Inputs!K117)/1000 -> -217.1152463 | G30: =-(Inputs!M117-Inputs!L117)/1000 -> -210.7125737 | H30: =-(Inputs!N117-Inputs!M117)/1000 -> -203.1664627 | I30: =-(Inputs!O117-Inputs!N117)/1000 -> -183.1517061 | J30: =-(Inputs!P117-Inputs!O117)/1000 -> -164.6513416 | K30: =-(Inputs!Q117-Inputs!P117)/1000 -> -115.2854702 | L30: =-(Inputs!R117-Inputs!Q117)/1000 -> -84.52189869 | M30: =-(Inputs!S117-Inputs!R117)/1000 -> -122.8039072 | N30: =-(Inputs!T117-Inputs!S117)/1000 -> -100.3215142 | O30: =-(Inputs!U117-Inputs!T117)/1000 -> -97.11705942 | P30: =-(Inputs!V117-Inputs!U117)/1000 -> -98.03059473 | Q30: =-(Inputs!W117-Inputs!V117)/1000 -> -93.38189903 | R30: =-(Inputs!X117-Inputs!W117)/1000 -> -88.72421996 | S30: =-(Inputs!Y117-Inputs!X117)/1000 -> -83.94239405 | T30: =-(Inputs!Z117-Inputs!Y117)/1000 -> -79.14107693 | U30: =-(Inputs!AA117-Inputs!Z117)/1000 -> -73.70735129 | V30: =-(Inputs!AB117-Inputs!AA117)/1000 -> -61.87034706 | W30: =-(Inputs!AC117-Inputs!AB117)/1000 -> -61.37134125 | X30: =-(Inputs!AD117-Inputs!AC117)/1000 -> -57.67248373 | Y30: =-(Inputs!AE117-Inputs!AD117)/1000 -> -57.07953894 | Z30: =-(Inputs!AF117-Inputs!AE117)/1000 -> -56.49955792 | AA30: =-(Inputs!AG117-Inputs!AF117)/1000 -> -55.90575533 | AB30: =-(Inputs!AH117-Inputs!AG117)/1000 -> -55.32489276 | AC30: =-(Inputs!AI117-Inputs!AH117)/1000 -> -54.75457592 | AD30: =-(Inputs!AJ117-Inputs!AI117)/1000 -> -54.07961421 | AE30: =-(Inputs!AK117-Inputs!AJ117)/1000 -> -68.77619846 | AF30: =-(Inputs!AL117-Inputs!AK117)/1000 -> -52.62435316 | AG30: =-(Inputs!AM117-Inputs!AL117)/1000 -> -50.79070675
A31: Allowed Capex Overspend | D31: =-'Opening Values'!H25 -> 0 | E31: =-'Opening Values'!I25 -> 0 | F31: =-'Opening Values'!J25 -> -113.6807187 | G31: =-'Opening Values'!K25 -> -764.1822918 | H31: =-'Opening Values'!L25 -> -1364.139435
A33: Cashflows | D33: =SUM(D26:D32) -> 22115.68561 | E33: =SUM(E26:E32) -> 21826.1362 | F33: =SUM(F26:F32) -> 22452.9391 | G33: 21847.05011 | H33: 23377.93656 | I33: 25878.66325 | J33: 29750.56154 | K33: 32228.99783 | L33: 31043.56437 | M33: 33532.80207 | N33: 35952.31754 | O33: 37173.03016 | P33: 38091.3609 | Q33: 39108.39519 | R33: 39744.45979 | S33: 40453.61822 | T33: 41052.6819 | U33: 41150.50094 | V33: 41329.13393 | W33: 42003.73318 | X33: 43085.39546 | Y33: 43129.25166 | Z33: 43097.5771 | AA33: 42863.5512 | AB33: 42892.00814 | AC33: 42848.14954 | AD33: 42849.09137 | AE33: 43974.25502 | AF33: 44591.34805 | AG33: 44937.71684
A37: Discounted Cashflow | C37: =SUM(D37:AG37) -> 562856.4002 | D37: =D33*D7 -> 21203.91717 | E37: 20063.5715 | F37: 19788.83708 | G37: 18461.01483 | H37: 18940.20318 | I37: 20101.84819 | J37: 22156.69648 | K37: 23012.95211 | L37: 21252.63603 | M37: 22010.34051 | N37: 22625.56839 | O37: 22429.32805 | P37: 22035.8841 | Q37: =Q33*Q7 -> 21691.50459 | R37: 21135.47302 | S37: 20625.68765 | T37: 20068.19401 | U37: 19286.68444 | V37: 18571.81909 | W37: 18096.79732 | X37: 17797.52479 | Y37: 17081.15121 | Z37: 16364.91529 | AA37: 15605.03499 | AB37: 14971.61564 | AC37: 14339.69955 | AD37: 13748.81567 | AE37: 13528.1327 | AF37: 13152.41965 | AG37: 12708.13298
A41: Closing DAV | D41: =DAV!J37 -> 411900.171 | E41: =DAV!K37 -> 412269.375 | F41: =DAV!L37 -> 410685.5283 | G41: =DAV!M37 -> 403968.8855 | H41: =DAV!N37 -> 402876.2068 | I41: =DAV!O37 -> 400198.7832 | J41: =DAV!P37 -> 393627.1547 | K41: =DAV!Q37 -> 385265.3252 | L41: =DAV!R37 -> 378778.9366 | M41: =DAV!S37 -> 369336.4948 | N41: =DAV!T37 -> 358116.2282 | O41: =DAV!U37 -> 346344.5666 | P41: =DAV!V37 -> 334178.4938 | Q41: =DAV!W37 -> 321446.7548 | R41: =DAV!X37 -> 308584.8933 | S41: =DAV!Y37 -> 295438.2322 | T41: =DAV!Z37 -> 282164.6951 | U41: =DAV!AA37 -> 269272.6837 | V41: =DAV!AB37 -> 256469.9063 | W41: =DAV!AC37 -> 243241.6383 | X41: =DAV!AD37 -> 229272.3271 | Y41: =DAV!AE37 -> 215899.5978 | Z41: =DAV!AF37 -> 202836.6975 | AA41: =DAV!AG37 -> 190327.6595 | AB41: =DAV!AH37 -> 177898.8071 | AC41: =DAV!AI37 -> 165654.6814 | AD41: =DAV!AJ37 -> 153461.4894 | AE41: =DAV!AK37 -> 140177.1638 | AF41: =DAV!AL37 -> 126528.8299 | AG41: =DAV!AM37 -> 124739.1126
A45: TRV | C45: =-'Opening Values'!D20 -> -596320.2813
A46: Discounted DAV2046 | C46: =AG41*AG7 -> 35275.51778
A47: Discounted Capital Creditors (CC2046) | C47: =Inputs!AM119/1000*'Pi''s Calc'!AG7 -> -1591.579205
A48: Discounted Working Capital Adjustment (Q2046) | C48: =Inputs!AM117/1000*'Pi''s Calc'!AG7 -> -220.0575298
A49: Backsolve to 0 by running Macro Ctrl + q | C49: =SUM(C37:C48) -> -9.049472283e-11
A53: Condition 2.3.18 Calculating TRV
B55: Total Regulatory Value (TRV) | I55: =I65+I67+I69+I71 -> 615058.5287 | N55: =N65+N67+N69+N71 -> 582695.2735 | S55: =S65+S67+S69+S71 -> 507560.3985 | X55: =X65+X67+X69+X71 -> 399354.9996 | AC55: =AC65+AC67+AC69+AC71 -> 258771.7376 | AG55: =AG65+AG67+AG69+AG71 -> 118332.9144
A59: Condition 2.3.19 Calculating Profile Adjustment
I60: x | N60: x | S60: x | X60: x | AC60: x | AG60: x
B61: Adjusted Cashflows | D61: =D33*(1+$I$6)^($I$11-D11) -> 27297.44185 | E61: =E33*(1+$I$6)^($I$11-E11) -> 25829.38672 | F61: 25475.69986 | G61: 23766.29162 | H61: 24383.18783 | I61: 25878.66325 | J61: =J33*(1+$N$6)^($N$11-J11) -> 35207.27408 | K61: =K33*(1+$N$6)^($N$11-K11) -> 36567.87523 | L61: =L33*(1+$N$6)^($N$11-L11) -> 33770.71045 | M61: =M33*(1+$N$6)^($N$11-M11) -> 34974.71256 | N61: =N33*(1+$N$6)^($N$11-N11) -> 35952.31754 | O61: =O33*(1+$S$6)^($S$11-O11) -> 43991.13809 | P61: =P33*(1+$S$6)^($S$11-P11) -> 43219.46777 | Q61: =Q33*(1+$S$6)^($S$11-Q11) -> 42544.0286 | R61: =R33*(1+$S$6)^($S$11-R11) -> 41453.47156 | S61: =S33*(1+$S$6)^($S$11-S11) -> 40453.61822 | T61: =T33*(1+$X$6)^($X$11-T11) -> 48582.3779 | U61: =U33*(1+$X$6)^($X$11-U11) -> 46690.44915 | V61: =V33*(1+$X$6)^($X$11-V11) -> 44959.85702 | W61: =W33*(1+$X$6)^($X$11-W11) -> 43809.8937 | X61: =X33*(1+$X$6)^($X$11-X11) -> 43085.39546 | Y61: =Y33*(1+$AC$6)^($AC$11-Y11) -> 51039.82262 | Z61: =Z33*(1+$AC$6)^($AC$11-Z11) -> 48899.65337 | AA61: =AA33*(1+$AC$6)^($AC$11-AA11) -> 46629.07131 | AB61: =AB33*(1+$AC$6)^($AC$11-AB11) -> 44736.36449 | AC61: =AC33*(1+$AC$6)^($AC$11-AC11) -> 42848.14954 | AD61: =AD33*(1+$AG$6)^($AG$11-AD11) -> 48617.71487 | AE61: =AE33*(1+$AG$6)^($AG$11-AE11) -> 47837.34935 | AF61: =AF33*(1+AG6)^(AG11-AF11) -> 46508.77602 | AG61: =AG33*(1+AG6)^(AG11-AG11) -> 44937.71684
B63: Closing TRV (Incl Return) | C63: ='Opening Values'!D20 -> 596320.2813 | I63: =-$C$63*(1+I6)^(I11-C11) -> -767689.1998 | N63: =-I55*(1+N6)^(N11-I11) -> -759168.1634 | S63: =-N55*(1+S6)^(S11-N11) -> -719222.1227 | X63: =-S55*(1+X6)^(X11-S11) -> -626482.9728 | AC63: =-X55*(1+AC6)^(AC11-X11) -> -492924.7989 | AG63: =-AC55*(1+AG6)^(AG11-AC11) -> -306234.4714
B65: DAV | I65: =I41 -> 400198.7832 | N65: =N41 -> 358116.2282 | S65: =S41 -> 295438.2322 | X65: =X41 -> 229272.3271 | AC65: =AC41 -> 165654.6814 | AG65: =AG41 -> 124739.1126
B67: CC | I67: =Inputs!O119/1000 -> -6745.876592 | N67: =Inputs!T119/1000 -> -5665.410037 | S67: =Inputs!Y119/1000 -> -5461.995963 | X67: =Inputs!AD119/1000 -> -5373.813286 | AC67: =Inputs!AI119/1000 -> -5745.586818 | AG67: =Inputs!AM119/1000 -> -5628.044323
B69: Q | I69: =Inputs!O117/1000 -> -2666.531971 | N69: =Inputs!T117/1000 -> -2078.947839 | S69: =Inputs!Y117/1000 -> -1617.751672 | X69: =Inputs!AD117/1000 -> -1283.989072 | AC69: =Inputs!AI117/1000 -> -1004.424751 | AG69: =Inputs!AM117/1000 -> -778.1538784
B71: Calculated PA | I71: =-SUM(D61:I69) -> 224272.154 | N71: =-SUM(J61:N70) -> 232323.4032 | S71: =-SUM(O61:S70) -> 219201.9139 | X71: =-SUM(T61:X70) -> 176740.4748 | AC71: =-SUM(Y61:AC70) -> 99867.06776 | AG71: =-SUM(AD61:AG70) -> -3.092281986e-11
B72: Check | I72: =SUM(D61:I71) -> 0 | N72: =SUM(J61:N71) -> 0 | S72: =SUM(O61:S71) -> 0 | X72: =SUM(T61:X71) -> 0 | AC72: =SUM(Y61:AC71) -> 0 | AG72: =SUM(AD61:AG71) -> 0

Sheet PDP Workings - DD UPDATED
A28: Infill to be removed | B28: 0.075 | C28: 0.043 | D28: =C28 -> 0.043 | E28: =D28 -> 0.043
B29: 2016 | C29: =B29+1 -> 2017 | D29: =C29+1 -> 2018 | E29: 2019 | F29: 2020 | G29: 2021 | H29: 2022 | I29: 2023
A30: Total NPV post Bulk Removal
A31: -6626744.869
A32: Mains Per Model | B32: 1749175.824 | C32: 3701513.824 | D32: 3701513.824 | E32: 2308105.839 | F32: 2308105.839 | G32: 2308105.839 | H32: 2308105.839 | I32: 48818.25741
A33: Mains to be removed to break even | B33: =B32 -> 1749175.824 | C33: =C32 -> 3701513.824 | D33: 1986047.024
A34: NPV at RoR | B34: =B33/(1+B28) -> 1627140.301 | C34: =C33/((1+B28)*(1+C28)) -> 3301312.246 | D34: =D33/((1+B28)*(1+C28)*(1+D28)) -> 1698292.322
A35: =SUM(B34:E34) -> 6626744.869
A36: =SUM(A35,A31) -> 0
A37: Infill to be Removed DAV | B37: 2016 | C37: =B37+1 -> 2017 | D37: =C37+1 -> 2018 | E37: 2019 | F37: 2020 | G37: 2021 | H37: 2022 | I37: 2023
A38: Op Bal | B38: 0 | C38: =B42 -> 1705446.428 | D38: =C42 -> 5270693.011 | E38: 7070821.618 | F38: 6884903.201 | G38: 6698984.784 | H38: 6513066.367 | I38: 6327147.951
A39: Infill | B39: =B33 -> 1749175.824 | C39: =C33 -> 3701513.824 | D39: 1986047.024 | E39: 0 | F39: 0 | G39: 0 | H39: 0 | I39: 0
A40: Additions Depn | B40: =-B39/40 -> -43729.3956 | C40: =-C39/40 -> -92537.84559 | D40: =-D39/40 -> -49651.1756 | E40: 0 | F40: 0 | G40: 0 | H40: 0 | I40: 0
A41: Total Depn (40 yrs) | B41: =SUM($B$40:B40) -> -43729.3956 | C41: =SUM($B$40:C40) -> -136267.2412 | D41: =SUM($B$40:D40) -> -185918.4168 | E41: =SUM($B$40:E40) -> -185918.4168 | F41: =SUM($B$40:F40) -> -185918.4168 | G41: =SUM($B$40:G40) -> -185918.4168 | H41: =SUM($B$40:H40) -> -185918.4168 | I41: =SUM($B$40:I40) -> -185918.4168
A42: Cl Bal | B42: =SUM(B38:B39,B41) -> 1705446.428 | C42: =SUM(C38:C39,C41) -> 5270693.011 | D42: 7070821.618 | E42: 6884903.201 | F42: 6698984.784 | G42: 6513066.367 | H42: 6327147.951 | I42: 6141229.534
A45: Payment Received 31st Dec | C45: 2019 | D45: Removal of infill from opening TRV in year | H45: =C45+1 -> 2020
B47: 2016 | C47: =B47+1 -> 2017 | D47: =C47+1 -> 2018 | E47: 2019 | F47: 2020 | G47: 2021 | H47: 2022 | I47: 2023
A48: Infill Removal from DAV | C48: =C38 -> 1705446.428 | D48: 5270693.011 | E48: 7070821.618 | F48: 6884903.201 | G48: 6698984.784 | H48: 6513066.367 | I48: 6327147.951
A49: Depreciation Adjustment | C49: =SUM($B$40:C40) -> -136267.2412 | D49: =SUM($B$40:D40) -> -185918.4168 | E49: =SUM($B$40:E40) -> -185918.4168 | F49: =SUM($B$40:F40) -> -185918.4168 | G49: =SUM($B$40:G40) -> -185918.4168 | H49: =SUM($B$40:H40) -> -185918.4168 | I49: =SUM($B$40:I40) -> -185918.4168
C50: =SUM(C48:C49) -> 1569179.187 | D50: =SUM(D48:D49) -> 5084774.594 | E50: 6884903.201 | F50: 6698984.784 | G50: 6513066.367 | H50: 6327147.951 | I50: 6141229.534
